Workbook

Sheet For Bill Impact(HideBeforeFile) (hidden)
A1: Summary of Rates and Rate Riders
C3: Current Rates
C5: Rate Group | D5: Commodity | E5: Transportation | F5: REDA | G5: PGTVA | H5: UFGVA | L5: Dist. Customer Rate | M5: Dist. Vol. Rate Tier 1 | N5: Dist. Vol. Rate Tier 2 | O5: Dist. Vol. Rate Tier 3 | P5: Dist. Capacity Rate
C6: ='B1. Current Distribution Rates'!A6 -> R1 - Residential | D6: 18.077 | E6: 2.916080527 | G6: ='C1. Current Rate Riders'!C7 -> 0.6290804449 | H6: ='C1. Current Rate Riders'!D7 -> 1.316518199 | L6: ='B1. Current Distribution Rates'!B6 -> 24 | M6: ='B1. Current Distribution Rates'!C6 -> 10.933 | N6: ='B1. Current Distribution Rates'!D6 -> 10.933 | O6: ="" ->  | P6: ="" -> 
C7: ='B1. Current Distribution Rates'!A7 -> R1 - General Service | D7: =D6 -> 18.077 | E7: =E6 -> 2.916080527 | G7: ='C1. Current Rate Riders'!C8 -> 0.6290804449 | H7: ='C1. Current Rate Riders'!D8 -> 1.316518199 | L7: ='B1. Current Distribution Rates'!B7 -> 23.5 | M7: ='B1. Current Distribution Rates'!C7 -> 12.0582 | N7: ='B1. Current Distribution Rates'!D7 -> 9.6276 | O7: ="" ->  | P7: ="" -> 
C8: ='B1. Current Distribution Rates'!A8 -> R2 - Seasonal - Apr to Oct | D8: =D7 -> 18.077 | E8: 2.916080527 | G8: ='C1. Current Rate Riders'!C9 -> 0.7157536893 | H8: ='C1. Current Rate Riders'!D9 -> 1.457478891 | L8: ='B1. Current Distribution Rates'!B9 -> 23.48 | M8: ='B1. Current Distribution Rates'!C8 -> 17.0039 | N8: ='B1. Current Distribution Rates'!E8 -> 7.6087 | O8: ='B1. Current Distribution Rates'!F8 -> 5.5016 | P8: ="" -> 
C9: ='B1. Current Distribution Rates'!A9 -> R2 - Seasonal - Nov to Mar | D9: 18.077 | E9: 2.916080527 | G9: ='C1. Current Rate Riders'!C10 -> 0.7157536893 | H9: ='C1. Current Rate Riders'!D10 -> 1.457478891 | L9: ='B1. Current Distribution Rates'!B8 -> 23.48 | M9: ='B1. Current Distribution Rates'!C9 -> 22.0752 | N9: ='B1. Current Distribution Rates'!E9 -> 14.2095 | O9: ='B1. Current Distribution Rates'!F9 -> 15.4831 | P9: ="" -> 
C10: ='B1. Current Distribution Rates'!A10 -> R3 - Large Volume Contract | D10: 18.077 | E10: 2.916080527 | G10: ='C1. Current Rate Riders'!C11 -> 0.2336479504 | H10: ='C1. Current Rate Riders'!D11 -> 0.527673602 | L10: ='B1. Current Distribution Rates'!B10 -> 233.68 | M10: ='B1. Current Distribution Rates'!G10 -> 1.7539 | N10: ="" ->  | O10: ="" ->  | P10: ='B1. Current Distribution Rates'!H10 -> 33.9977
C11: ='B1. Current Distribution Rates'!A11 -> R4 - Peaking - Apr to Dec | D11: 18.077 | E11: 2.916080527 | G11: ='C1. Current Rate Riders'!C12 -> 0.6539084146 | H11: ='C1. Current Rate Riders'!D12 -> 1.117808199 | L11: ='B1. Current Distribution Rates'!B11 -> 23.83 | M11: ='B1. Current Distribution Rates'!C11 -> 19.2608 | N11: ='B1. Current Distribution Rates'!D11 -> 10.8506 | O11: ="" ->  | P11: ="" -> 
C12: ='B1. Current Distribution Rates'!A12 -> R4 - Peaking - Jan to Mar | D12: 18.077 | E12: 2.916080527 | G12: ='C1. Current Rate Riders'!C13 -> 0.6539084146 | H12: ='C1. Current Rate Riders'!D13 -> 1.117808199 | L12: ='B1. Current Distribution Rates'!B12 -> 23.83 | M12: ='B1. Current Distribution Rates'!C12 -> 25.2614 | N12: ='B1. Current Distribution Rates'!D12 -> 18.9517 | O12: ="" ->  | P12: ="" -> 
C13: ='B1. Current Distribution Rates'!A13 -> R5 - Interruptible Peaking | D13: 18.077 | E13: 2.916080527 | G13: ='C1. Current Rate Riders'!C14 -> 1.037404084 | H13: ='C1. Current Rate Riders'!D14 -> 1.593380434 | L13: ='B1. Current Distribution Rates'!B13 -> 196.22 | M13: ='B1. Current Distribution Rates'!G13 -> 5.7033 | N13: ="" ->  | O13: ="" ->  | P13: ="" -> 
C14: ='B1. Current Distribution Rates'!A14 -> R6 - Alco Energy (IGPC) | D14: ="" ->  | E14: ="" ->  | L14: ='B1. Current Distribution Rates'!B14 -> 71540.35 | M14: ="" ->  | N14: ="" ->  | O14: ="" ->  | P14: ="" -> 
C16: Proposed Rates
C18: =C5 -> Rate Group | D18: Commodity | E18: Transportation | F18: REDA | G18: PGTVA | H18: UFGVA | I18: 0 | J18: 0 | K18: 0 | L18: Dist. Customer Rate | M18: Dist. Vol. Rate Tier 1 | N18: Dist. Vol. Rate Tier 2 | O18: Dist. Vol. Rate Tier 3 | P18: Dist. Capacity Rate
C19: =C6 -> R1 - Residential | D19: =D6 -> 18.077 | E19: 2.916080527 | F19: ='F1. Proposed Rate Riders'!B7 -> 0.06 | G19: ='F1. Proposed Rate Riders'!C7 -> 0.3240942935 | H19: ='F1. Proposed Rate Riders'!D7 -> 0.4269804258 | I19: ='F1. Proposed Rate Riders'!E7 -> 0 | J19: ='F1. Proposed Rate Riders'!F7 -> 0 | K19: ='F1. Proposed Rate Riders'!G7 -> 0 | L19: ='E1. Proposed Dist Rates '!B6 -> 28.3560675 | M19: ='E1. Proposed Dist Rates '!C6 -> 8.7871 | N19: ='E1. Proposed Dist Rates '!D6 -> 8.7871
C20: =C7 -> R1 - General Service | D20: =D19 -> 18.077 | E20: =E19 -> 2.916080527 | F20: ='F1. Proposed Rate Riders'!B8 -> 0.06 | G20: ='F1. Proposed Rate Riders'!C8 -> 0.3240942935 | H20: ='F1. Proposed Rate Riders'!D8 -> 0.4269804258 | I20: ='F1. Proposed Rate Riders'!E8 -> 0 | J20: ='F1. Proposed Rate Riders'!F8 -> 0 | K20: ='F1. Proposed Rate Riders'!G8 -> 0 | L20: ='E1. Proposed Dist Rates '!B7 -> 27.76531609 | M20: ='E1. Proposed Dist Rates '!C7 -> 12.02636997 | N20: ='E1. Proposed Dist Rates '!D7 -> 9.602186024
C21: R2 - Seasonal - Apr to Oct | D21: =D20 -> 18.077 | E21: 2.916080527 | F21: ='F1. Proposed Rate Riders'!B9 -> 0.06 | G21: ='F1. Proposed Rate Riders'!C9 -> 0.3240942935 | H21: ='F1. Proposed Rate Riders'!D9 -> 0.4269804258 | I21: ='F1. Proposed Rate Riders'!E9 -> 0 | J21: ='F1. Proposed Rate Riders'!F9 -> 0 | K21: ='F1. Proposed Rate Riders'!G9 -> 0 | L21: ='E1. Proposed Dist Rates '!B8 -> 24.12320525 | M21: ='E1. Proposed Dist Rates '!C8 -> 17.46970059 | N21: ='E1. Proposed Dist Rates '!E8 -> 7.817130826 | O21: ='E1. Proposed Dist Rates '!F8 -> 5.652309455
C22: R2 - Seasonal - Nov to Mar | D22: =D21 -> 18.077 | E22: 2.916080527 | F22: ='F1. Proposed Rate Riders'!B10 -> 0.06 | G22: ='F1. Proposed Rate Riders'!C10 -> 0.3240942935 | H22: ='F1. Proposed Rate Riders'!D10 -> 0.4269804258 | I22: ='F1. Proposed Rate Riders'!E10 -> 0 | J22: ='F1. Proposed Rate Riders'!F10 -> 0 | K22: ='F1. Proposed Rate Riders'!G10 -> 0 | L22: ='E1. Proposed Dist Rates '!B9 -> 24.12320525 | M22: ='E1. Proposed Dist Rates '!C9 -> 22.67992251 | N22: ='E1. Proposed Dist Rates '!E9 -> 14.59875149 | O22: ='E1. Proposed Dist Rates '!F9 -> 15.90724017
C23: R3 - Large Volume Contract | D23: =D22 -> 18.077 | E23: 2.916080527 | F23: ='F1. Proposed Rate Riders'!B11 -> 0.06 | G23: ='F1. Proposed Rate Riders'!C11 -> 0.3240942935 | H23: ='F1. Proposed Rate Riders'!D11 -> 0.4269804258 | I23: ='F1. Proposed Rate Riders'!E11 -> 0 | J23: ='F1. Proposed Rate Riders'!F11 -> 0 | K23: ='F1. Proposed Rate Riders'!G11 -> 0 | L23: ='E1. Proposed Dist Rates '!B10 -> 240.0813715 | M23: ='E1. Proposed Dist Rates '!G10 -> 1.801945898 | P23: ='E1. Proposed Dist Rates '!H10 -> 34.92902449
C24: R4 - Peaking - Apr to Dec | D24: =D23 -> 18.077 | E24: 2.916080527 | F24: ='F1. Proposed Rate Riders'!B12 -> 0.06 | G24: ='F1. Proposed Rate Riders'!C12 -> 0.3240942935 | H24: ='F1. Proposed Rate Riders'!D12 -> 0.4269804258 | I24: ='F1. Proposed Rate Riders'!E12 -> 0 | J24: ='F1. Proposed Rate Riders'!F12 -> 0 | K24: ='F1. Proposed Rate Riders'!G12 -> 0 | L24: ='E1. Proposed Dist Rates '!B11 -> 24.48279306 | M24: ='E1. Proposed Dist Rates '!C11 -> 19.78842554 | N24: ='E1. Proposed Dist Rates '!D11 -> 11.14783862
C25: R4 - Peaking - Jan to Mar | D25: =D24 -> 18.077 | E25: 2.916080527 | F25: ='F1. Proposed Rate Riders'!B13 -> 0.06 | G25: ='F1. Proposed Rate Riders'!C13 -> 0.3240942935 | H25: ='F1. Proposed Rate Riders'!D13 -> 0.4269804258 | I25: ='F1. Proposed Rate Riders'!E13 -> 0 | J25: ='F1. Proposed Rate Riders'!F13 -> 0 | K25: ='F1. Proposed Rate Riders'!G13 -> 0 | L25: ='E1. Proposed Dist Rates '!B12 -> 24.48279306 | M25: ='E1. Proposed Dist Rates '!C12 -> 25.95340448 | N25: ='E1. Proposed Dist Rates '!D12 -> 19.47085813
C26: R5 - Interruptible Peaking | D26: =D25 -> 18.077 | E26: 2.916080527 | F26: ='F1. Proposed Rate Riders'!B14 -> 0.06 | G26: ='F1. Proposed Rate Riders'!C14 -> 0.3240942935 | H26: ='F1. Proposed Rate Riders'!D14 -> 0.4269804258 | I26: ='F1. Proposed Rate Riders'!E14 -> 0 | J26: ='F1. Proposed Rate Riders'!F14 -> 0 | K26: ='F1. Proposed Rate Riders'!G14 -> 0 | L26: ='E1. Proposed Dist Rates '!B13 -> 201.5952016 | M26: ='E1. Proposed Dist Rates '!G13 -> 5.859534774
C27: R6 - Alco Energy (IGPC) | D27: ="" ->  | E27: ="" ->  | F27: ='F1. Proposed Rate Riders'!B15 -> 0 | I27: ='F1. Proposed Rate Riders'!E15 -> 0 | K27: ='F1. Proposed Rate Riders'!G15 -> 0 | L27: ='E1. Proposed Dist Rates '!B14 -> 73500.10846 | M27: ="" ->  | N27: ="" ->  | O27: ="" -> 
C29: Average Bill Determinant per Customer
C31: =C44 -> Rate Group | D31: Commodity | E31: Transportation | F31: REDA | G31: PGTVA | H31: UFGVA | I31: =I44 -> 0 | J31: 0 | K31: =K18 -> 0 | L31: =L44 -> Dist. Customer Rate | M31: =M44 -> Dist. Vol. Rate Tier 1 | N31: =N44 -> Dist. Vol. Rate Tier 2 | O31: =O44 -> Dist. Vol. Rate Tier 3 | P31: =P44 -> Dist. Capacity Rate
C32: =C6 -> R1 - Residential | D32: =SUM($M32:$O32) -> 1815.003432 | E32: =SUM($M32:$O32) -> 1815.003432 | F32: =$L32 -> 12 | G32: =SUM($M32:$O32) -> 1815.003432 | H32: 1815.003432 | I32: =$L32 -> 12 | J32: =SUM($M32:$O32) -> 1815.003432 | K32: =$L32 -> 12 | L32: 12 | M32: ='B2. Billing Determinants'!C6/'B2. Billing Determinants'!$B6 -> 1802.851992 | N32: ='B2. Billing Determinants'!D6/'B2. Billing Determinants'!$B6 -> 12.15144017 | O32: ="" ->  | P32: ="" -> 
C33: R1 - General Service | D33: =SUM($M33:$O33) -> 13712.70296 | E33: 13712.70296 | F33: 12 | G33: 13712.70296 | H33: 13712.70296 | I33: 12 | J33: 13712.70296 | K33: 12 | L33: 12 | M33: ='B2. Billing Determinants'!C7/'B2. Billing Determinants'!$B7 -> 5217.130694 | N33: ='B2. Billing Determinants'!D7/'B2. Billing Determinants'!$B7 -> 8495.572267 | O33: ="" ->  | P33: ="" -> 
C34: R2 - Seasonal - Apr to Oct | D34: 15645.93443 | E34: 15645.93443 | F34: 7 | G34: 15645.93443 | H34: 15645.93443 | I34: 7 | J34: 15645.93443 | K34: 7 | L34: 7 | M34: ='B2. Billing Determinants'!C8/'B2. Billing Determinants'!$B8 -> 1429.038226 | N34: ='B2. Billing Determinants'!E8/'B2. Billing Determinants'!$B8 -> 11936.53055 | O34: ='B2. Billing Determinants'!F8/'B2. Billing Determinants'!$B8 -> 2280.365652 | P34: ="" -> 
C35: R2 - Seasonal - Nov to Mar | D35: 5816.998915 | E35: 5816.998915 | F35: 5 | G35: 5816.998915 | H35: 5816.998915 | I35: 5 | J35: 5816.998915 | K35: 5 | L35: 5 | M35: ='B2. Billing Determinants'!C9/'B2. Billing Determinants'!$B9 -> 1109.005697 | N35: ='B2. Billing Determinants'!E9/'B2. Billing Determinants'!$B9 -> 4416.099158 | O35: ='B2. Billing Determinants'!F9/'B2. Billing Determinants'!$B9 -> 291.89406 | P35: ="" -> 
C36: R3 - Large Volume Contract | D36: 575019.6129 | E36: 575019.6129 | F36: 12 | G36: 575019.6129 | H36: 575019.6129 | I36: 12 | J36: 575019.6129 | K36: 12 | L36: 12 | M36: ='B2. Billing Determinants'!G10/'B2. Billing Determinants'!B10 -> 575019.6129 | N36: ="" ->  | O36: ="" ->  | P36: ='B2. Billing Determinants'!H10/'B2. Billing Determinants'!B10 -> 116293.44
C37: R4 - Peaking - Apr to Dec | D37: 33189.69551 | E37: 33189.69551 | F37: 9 | G37: 33189.69551 | H37: 33189.69551 | I37: 9 | J37: 33189.69551 | K37: 9 | L37: 9 | M37: ='B2. Billing Determinants'!C11/'B2. Billing Determinants'!$B11 -> 2776.286787 | N37: ='B2. Billing Determinants'!D11/'B2. Billing Determinants'!$B11 -> 30413.40873 | O37: ="" ->  | P37: ="" -> 
C38: R4 - Peaking - Jan to Mar | D38: 637.3224445 | E38: 637.3224445 | F38: 3 | G38: 637.3224445 | H38: 637.3224445 | I38: 3 | J38: 637.3224445 | K38: 3 | L38: 3 | M38: ='B2. Billing Determinants'!C12/'B2. Billing Determinants'!$B12 -> 530.0202668 | N38: ='B2. Billing Determinants'!D12/'B2. Billing Determinants'!$B12 -> 107.3021776 | O38: ="" ->  | P38: ="" -> 
C39: R5 - Interruptible Peaking | D39: 125990.575 | E39: 125990.575 | F39: 12 | G39: 125990.575 | H39: 125990.575 | I39: 12 | J39: 125990.575 | K39: 12 | L39: 12 | M39: ='B2. Billing Determinants'!G13/'B2. Billing Determinants'!B13 -> 125990.575 | N39: ="" ->  | O39: ="" ->  | P39: ="" -> 
C40: R6 - Alco Energy (IGPC) | D40: ="" ->  | E40: ="" ->  | F40: 12 | G40: 0 | H40: 0 | I40: 12 | J40: 0 | K40: 12 | L40: 12 | M40: ="" ->  | N40: ="" ->  | O40: ="" ->  | P40: ="" -> 
C42: Label
C44: =C18 -> Rate Group | D44: Commodity | E44: Transportation | F44: REDA | G44: PGTVA | H44: UFGVA | I44: 0 | J44: 0 | K44: =K31 -> 0 | L44: =L18 -> Dist. Customer Rate | M44: =M18 -> Dist. Vol. Rate Tier 1 | N44: =N18 -> Dist. Vol. Rate Tier 2 | O44: =O18 -> Dist. Vol. Rate Tier 3 | P44: =P18 -> Dist. Capacity Rate
C45: =C6 -> R1 - Residential | D45: Commodity | E45: Transportation | F45: =F44 -> REDA | G45: =G44 -> PGTVA | H45: UFGVA | I45: 0 | J45: 0 | K45: 0 | L45: Monthly Service Charge | M45: Block 1 (First 1,000 m3 per month) | N45: Block 2 (Over 1,000 m3 per month) | O45: ="" ->  | P45: ="" -> 
C46: R1 - General Service | D46: Commodity | E46: Transportation | F46: =F45 -> REDA | G46: =G45 -> PGTVA | H46: =H45 -> UFGVA | I46: =I45 -> 0 | J46: =J45 -> 0 | K46: =K45 -> 0 | L46: Monthly Service Charge | M46: Block 1 (First 1,000 m3 per month) | N46: Block 2 (Over 1,000 m3 per month) | O46: ="" ->  | P46: ="" -> 
C47: R2 - Seasonal - Apr to Oct | D47: Commodity | E47: Transportation | F47: REDA | G47: PGTVA | H47: UFGVA | I47: 0 | J47: 0 | K47: 0 | L47: Monthly Service Charge | M47: Block 1 (First 1,000 m3 per month) | N47: Block 2 (Next 24,000 m3 per month) | O47: Block 3 (Over 25,000 m3 per month) | P47: ="" -> 
C48: R2 - Seasonal - Nov to Mar | D48: Commodity | E48: Transportation | F48: REDA | G48: PGTVA | H48: UFGVA | I48: 0 | J48: 0 | K48: 0 | L48: Monthly Service Charge | M48: Block 1 (First 1,000 m3 per month) | N48: Block 2 (Next 24,000 m3 per month) | O48: Block 3 (Over 25,000 m3 per month) | P48: ="" -> 
C49: R3 - Large Volume Contract | D49: Commodity | E49: Transportation | F49: REDA | G49: PGTVA | H49: UFGVA | I49: 0 | J49: 0 | K49: 0 | L49: Monthly Service Charge | M49: Delivery - Firm | N49: ="" ->  | O49: ="" ->  | P49: Demand - Firm
C50: R4 - Peaking - Apr to Dec | D50: Commodity | E50: Transportation | F50: REDA | G50: PGTVA | H50: UFGVA | I50: 0 | J50: 0 | K50: 0 | L50: Monthly Service Charge | M50: Block 1 (First 1,000 m3 per month) | N50: Block 2 (Over 1,000 m3 per month) | O50: ="" ->  | P50: ="" -> 
C51: R4 - Peaking - Jan to Mar | D51: Commodity | E51: Transportation | F51: REDA | G51: PGTVA | H51: UFGVA | I51: 0 | J51: 0 | K51: 0 | L51: Monthly Service Charge | M51: Block 1 (First 1,000 m3 per month) | N51: Block 2 (Over 1,000 m3 per month) | O51: ="" ->  | P51: ="" -> 
C52: R5 - Interruptible Peaking | D52: Commodity | E52: Transportation | F52: REDA | G52: PGTVA | H52: UFGVA | I52: 0 | J52: 0 | K52: 0 | L52: Monthly Service Charge | M52: Delivery - Firm | N52: ="" ->  | O52: ="" ->  | P52: ="" -> 
C53: R6 - Alco Energy (IGPC) | D53: ="" ->  | E53: ="" ->  | F53: REDA | G53: PGTVA | H53: UFGVA | I53: 0 | J53: 0 | K53: 0 | L53: Monthly Service Charge | M53: ="" ->  | N53: ="" ->  | O53: ="" ->  | P53: ="" -> 
C55: Unit
C57: =C31 -> Rate Group | D57: Commodity | E57: Transportation | F57: REDA | G57: PGTVA | H57: UFGVA | I57: 0 | J57: 0 | K57: =K44 -> 0 | L57: =L31 -> Dist. Customer Rate | M57: =M31 -> Dist. Vol. Rate Tier 1 | N57: =N31 -> Dist. Vol. Rate Tier 2 | O57: =O31 -> Dist. Vol. Rate Tier 3 | P57: =P31 -> Dist. Capacity Rate
C58: =C19 -> R1 - Residential | D58: cents / m3 | E58: cents / m3 | F58: $ / month | G58: cents / m3 | H58: cents / m3 | I58: $ / month | J58: ='F1. Proposed Rate Riders'!$D$6 -> cents / m3 | K58: =I58 -> $ / month | L58: $ / month | M58: cents / m3 | N58: cents / m3 | O58: ="" ->  | P58: ="" -> 
C59: R1 - General Service | D59: cents / m3 | E59: cents / m3 | F59: $ / month | G59: cents / m3 | H59: cents / m3 | I59: $ / month | J59: ='F1. Proposed Rate Riders'!$D$6 -> cents / m3 | K59: =I59 -> $ / month | L59: $ / month | M59: cents / m3 | N59: cents / m3 | O59: ="" ->  | P59: ="" -> 
C60: R2 - Seasonal - Apr to Oct | D60: cents / m3 | E60: cents / m3 | F60: $ / month | G60: cents / m3 | H60: cents / m3 | I60: $ / month | J60: ='F1. Proposed Rate Riders'!$D$6 -> cents / m3 | K60: $ / month | L60: $ / month | M60: cents / m3 | N60: cents / m3 | O60: cents / m3 | P60: ="" -> 
C61: R2 - Seasonal - Nov to Mar | D61: cents / m3 | E61: cents / m3 | F61: $ / month | G61: cents / m3 | H61: cents / m3 | I61: $ / month | J61: ='F1. Proposed Rate Riders'!$D$6 -> cents / m3 | K61: $ / month | L61: $ / month | M61: cents / m3 | N61: cents / m3 | O61: cents / m3 | P61: ="" -> 
C62: R3 - Large Volume Contract | D62: cents / m3 | E62: cents / m3 | F62: $ / month | G62: cents / m3 | H62: cents / m3 | I62: $ / month | J62: ='F1. Proposed Rate Riders'!$D$6 -> cents / m3 | K62: $ / month | L62: $ / month | M62: cents / m3 | N62: ="" ->  | O62: ="" ->  | P62: cents / m3
C63: R4 - Peaking - Apr to Dec | D63: cents / m3 | E63: cents / m3 | F63: $ / month | G63: cents / m3 | H63: cents / m3 | I63: $ / month | J63: ='F1. Proposed Rate Riders'!$D$6 -> cents / m3 | K63: $ / month | L63: $ / month | M63: cents / m3 | N63: cents / m3 | O63: ="" ->  | P63: ="" -> 
C64: R4 - Peaking - Jan to Mar | D64: cents / m3 | E64: cents / m3 | F64: $ / month | G64: cents / m3 | H64: cents / m3 | I64: $ / month | J64: ='F1. Proposed Rate Riders'!$D$6 -> cents / m3 | K64: $ / month | L64: $ / month | M64: cents / m3 | N64: cents / m3 | O64: ="" ->  | P64: ="" -> 
C65: R5 - Interruptible Peaking | D65: cents / m3 | E65: cents / m3 | F65: $ / month | G65: cents / m3 | H65: cents / m3 | I65: $ / month | J65: ='F1. Proposed Rate Riders'!$D$6 -> cents / m3 | K65: $ / month | L65: $ / month | M65: cents / m3 | N65: ="" ->  | O65: ="" ->  | P65: ="" -> 
C66: R6 - Alco Energy (IGPC) | D66: ="" ->  | E66: ="" ->  | F66: $ / month | G66: $ / month | H66: $ / month | I66: $ / month | J66: ='F1. Proposed Rate Riders'!$D$6 -> cents / m3 | K66: $ / month | L66: $ / month | M66: ="" ->  | N66: ="" ->  | O66: ="" ->  | P66: ="" -> 

Sheet A1. Application Information
A1: =MID(CELL("filename",A1),FIND("]",CELL("filename",A1))+1,255) -> A1. Application Information
A4: Distributor Name | B4: EPCOR Natural Gas Limited Partnership
A6: OEB Application Number | B6: EB-2025-0177
A8: Rates Effective | B8: 2026-01-01
A11: Price Cap Adjustment (PCA) Calculation
A12: Revenue at Current Rates | B12: ='B3. Revenue From Current Rates'!I15 -> 7363213.549
A13: WACC Adjustment | B13: ='A2. WACC Adjustment'!E19 -> -0.004945520564
A14: Adjusted Revenue | B14: =B12+B12*B13 -> 7326798.625
A15: OEB Inflationary Index | B15: 0.037
A16: Less Stretch Factor | B16: -0.0045
A18: 2026 Revenue at Proposed Rates | B18: =B14*(1+B15+B16) -> 7564919.581
A19: Final Price Cap Adjustment | B19: =(B18-B12)/B12 -> 0.02739375002

Sheet A2. WACC Adjustment
A1: ='A1. Application Information'!B4 -> EPCOR Natural Gas Limited Partnership
A2: ='A1. Application Information'!B6 -> EB-2025-0177
A3: =MID(CELL("filename",A3),FIND("]",CELL("filename",A3))+1,255) -> A2. WACC Adjustment
A5: ENGLP Settlement Proposal: The Parties agree that the proposed cost of capital parameters (i.e., deemed short-term debt rate of 5.04%, long-term debt rate of 3.87%, and return on equity of 9.25%) and capital structure are appropriate. These parameters align or incorporate the OEB’s 2025 cost of capital parameters issued on October 31, 2024, on an interim basis. These cost of capital parameters will be implemented in accordance with the direction set out in the OEB’s Letter and Accounting Order issued on July 26, 2024, as well as the OEB’s Letter and Accounting Orders issued on October 31, 2024. This is subject to the Parties agreeing that, for the 2025-2029 capital structure and cost of capital parameters, ENGLP will implement whatever outcomes are decided by the OEB in the Generic Cost of Capital Proceeding (EB-2024-0063), including what the OEB decides with respect to implementation. For clarity, no Party will be restricted from taking any position, or making any submission in the Generic Cost of Capital proceeding as a result of this settlement.
A7: EB-2024-0063 Decision and Order (Page 91): Utilities that implemented rates in 2025 using interim cost of capital parameters were granted variance accounts to record the difference between the revenue requirement at interim and final cost of capital parameters. The OEB will consider the disposition of these balances in both IRM and Custom IR update rate applications. The OEB will also consider applications to amend base rates to reflect any changes in revenue requirement for 2025, but only if there was no specific treatment previously approved by the OEB for the 2025 rate application. This approach will allow the variance accounts for 2025 to be disposed and closed.
A10: Revenue Requirement | B10: 2025T - Settlement | C10: 2025T - WACC Adjusted | D10: Variance ($) | E10: Variance (%)
A11: OM&A | B11: 4141958.399 | C11: =B11 -> 4141958.399 | D11: =(C11-B11) -> 0 | E11: =D11/B11 -> 0
A12: Depreciation | B12: 1302707.174 | C12: =B12 -> 1302707.174 | D12: 0 | E12: 0
A13: Property Taxes | B13: 705564 | C13: 705564 | D13: 0 | E13: 0
A14: Income Taxes | B14: 11366.3071 | C14: 11366.3071 | D14: 0 | E14: 0
A15: Cost of Debt | B15: =B21*(B23*0.04)+B21*(B24*0.56) -> 613545.1958 | C15: =C21*(C23*0.04)+C21*(C24*0.56) -> 601719.7989 | D15: -11825.39686 | E15: -0.01927388063
A16: Return on Equity | B16: =B21*B25*0.4 -> 957596.2404 | C16: =C21*C25*0.4 -> 931715.261 | D16: -25880.97947 | E16: -0.02702702703
A17: Service Revenue Requirement | B17: =SUM(B11:B16) -> 7732737.317 | C17: =SUM(C11:C16) -> 7695030.94 | D17: -37706.37633 | E17: -0.00487620034
A18: Revenue Offsets | B18: -108388 | C18: =B18 -> -108388 | D18: 0 | E18: 0
A19: Distribution Revenue Requirement | B19: =B17+B18 -> 7624349.317 | C19: =C17+C18 -> 7586642.94 | D19: -37706.37633 | E19: -0.004945520564 | F19: Proposed adjustment to distribution rates, before applying inflationary increase
A21: Rate Base (Mid-Year) | B21: 25880979.47 | C21: =B21 -> 25880979.47 | D21: =(C21-B21) -> 0 | E21: =D21/B21 -> 0
A22: Weighted Average Cost of Capital | B22: =B23*0.04+B24*0.56+B25*0.4 -> 0.06070641329 | C22: =C23*0.04+C24*0.56+C25*0.4 -> 0.05924949871 | D22: =(C22-B22) -> -0.00145691458
A23: Short-Term Debt | B23: 0.0504 | C23: 0.0391 | D23: =(C23-B23) -> -0.0113
A24: Long-Term Debt | B24: =H37 -> 0.03873288088 | C24: =H50 -> 0.03872410484 | D24: =(C24-B24) -> -8.776035572e-06
A25: Return on Equity | B25: 0.0925 | C25: 0.09 | D25: =(C25-B25) -> -0.0025
A27: ENGLP Long Term Debt As Per Settlement Proposal (Interim)
A28: Description | B28: Lender | C28: Affiliated or Third-Party Debt? | D28: Fixed or Variable-Rate? | E28: Start Date | F28: Term (years) | G28: Principal ($) | H28: Rate (%) | I28: Interest ($)
A29: Promissory Note | B29: EPCOR Utilities Inc. | C29: Affiliated | D29: Fixed Rate | E29: 2017-11-29 | F29: 30 | G29: 8660000 | H29: 0.0372 | I29: =G29*H29 -> 322152
A30: Promissory Note | B30: EPCOR Utilities Inc. | C30: Affiliated | D30: Fixed Rate | E30: 2021-12-15 | F30: 30 | G30: 2500000 | H30: 0.0341 | I30: =G30*H30 -> 85250
A31: Promissory Note | B31: EPCOR Utilities Inc. | C31: Affiliated | D31: Fixed Rate | E31: 2023-12-04 | F31: 30 | G31: 1000000 | H31: 0.0488 | I31: 48800
A32: Promissory Note | B32: EPCOR Utilities Inc. | C32: Affiliated | D32: Fixed Rate | E32: 2024-12-01 | F32: 30 | G32: 2000000 | H32: 0.0458 | I32: 91600
A33: Promissory Note | B33: EPCOR Utilities Inc. | C33: Affiliated | D33: Fixed Rate | E33: 2025-12-01 | F33: 30 | G33: 1000000 | H33: 0.0466 | I33: =G33*H33*1/12 -> 3883.333333
G34: =SUM(G29:G33) -> 15160000 | H34: =IF(G34=0,"",I34/G34) -> 0.03639085312 | I34: =SUM(I29:I33) -> 551685.3333
F36: Less: pro-rated principal for 2025 | G36: =G33*-11/12 -> -916666.6667
F37: True cost of debt | G37: =SUM(G34:G36) -> 14243333.33 | H37: =I37/G37 -> 0.03873288088 | I37: =I34 -> 551685.3333
A40: ENGLP Long Term Debt as per EB-2024-0063 Decision (Final)
A41: Description | B41: Lender | C41: Affiliated or Third-Party Debt? | D41: Fixed or Variable-Rate? | E41: Start Date | F41: Term (years) | G41: Principal ($) | H41: Rate (%) 2 | I41: Interest ($) 1
A42: Promissory Note | B42: EPCOR Utilities Inc. | C42: Affiliated | D42: Fixed Rate | E42: 2017-11-29 | F42: 30 | G42: 8660000 | H42: 0.0372 | I42: =G42*H42 -> 322152
A43: Promissory Note | B43: EPCOR Utilities Inc. | C43: Affiliated | D43: Fixed Rate | E43: 2021-12-15 | F43: 30 | G43: 2500000 | H43: 0.0341 | I43: =G43*H43 -> 85250
A44: Promissory Note | B44: EPCOR Utilities Inc. | C44: Affiliated | D44: Fixed Rate | E44: 2023-12-04 | F44: 30 | G44: 1000000 | H44: 0.0488 | I44: 48800
A45: Promissory Note | B45: EPCOR Utilities Inc. | C45: Affiliated | D45: Fixed Rate | E45: 2024-12-01 | F45: 30 | G45: 2000000 | H45: 0.0458 | I45: 91600
A46: Promissory Note | B46: EPCOR Utilities Inc. | C46: Affiliated | D46: Fixed Rate | E46: 2025-12-01 | F46: 30 | G46: 1000000 | H46: 0.0451 | I46: =G46*H46/12 -> 3758.333333
G47: =SUM(G42:G46) -> 15160000 | H47: =IF(G47=0,"",I47/G47) -> 0.03638260774 | I47: =SUM(I42:I46) -> 551560.3333
F49: Less: pro-rated principal for 2025 | G49: =G46*-11/12 -> -916666.6667
F50: True cost of debt | G50: =SUM(G47:G49) -> 14243333.33 | H50: =I50/G50 -> 0.03872410484 | I50: =I47 -> 551560.3333

Sheet B1. Current Distribution Rates
A1: ='A1. Application Information'!B4 -> EPCOR Natural Gas Limited Partnership
A2: ='A1. Application Information'!B6 -> EB-2025-0177
A3: =MID(CELL("filename",A3),FIND("]",CELL("filename",A3))+1,255) -> B1. Current Distribution Rates
A5: Rate Class | B5: Monthly Service Charge ($) (1) | C5: Delivery First 1,000 m3 (₵) | D5: Delivery Over 1,000 m3 (₵) | E5: Delivery Next 24,000 m3 (₵) | F5: Delivery Over 25,000 m3 (₵) | G5: Delivery - Firm (₵) | H5: Demand - Firm (₵) | I5: Delivery - Int - Lower (₵) | J5: Delivery - Int - Upper (₵)
A6: R1 - Residential | B6: 24 | C6: 10.933 | D6: 10.933
A7: R1 - General Service | B7: 23.5 | C7: 12.0582 | D7: 9.6276
A8: R2 - Seasonal - Apr to Oct | B8: 23.48 | C8: 17.0039 | E8: 7.6087 | F8: 5.5016
A9: R2 - Seasonal - Nov to Mar | B9: 23.48 | C9: 22.0752 | E9: 14.2095 | F9: 15.4831
A10: R3 - Large Volume Contract | B10: 233.68 | G10: 1.7539 | H10: 33.9977 | I10: 6.4445 | J10: 9.8284
A11: R4 - Peaking - Apr to Dec | B11: 23.83 | C11: 19.2608 | D11: 10.8506
A12: R4 - Peaking - Jan to Mar | B12: 23.83 | C12: 25.2614 | D12: 18.9517
A13: R5 - Interruptible Peaking | B13: 196.22 | G13: 5.7033 | H13: -2 | I13: 4.0069 | J13: 7.3996
A14: R6 - Alco Energy (IGPC) | B14: 71540.35
A15: 1 Bill 32 charge excluded
A16: 2 Placeholder rate for average customer

Sheet B2. Billing Determinants
A1: ='B1. Current Distribution Rates'!A1 -> EPCOR Natural Gas Limited Partnership
A2: ='B1. Current Distribution Rates'!A2 -> EB-2025-0177
A3: =MID(CELL("filename",A3),FIND("]",CELL("filename",A3))+1,255) -> B2. Billing Determinants
A5: ='B1. Current Distribution Rates'!A5 -> Rate Class | B5: Monthly Service Charge | C5: Delivery First 1,000 m3 | D5: Delivery Over 1,000 m3 | E5: Delivery Next 24,000 m3 | F5: Delivery Over 25,000 m3 | G5: Delivery - Firm | H5: Demand - Firm | I5: Delivery - Int - Lower | J5: Delivery - Int - Upper
A6: ='B1. Current Distribution Rates'!A6 -> R1 - Residential | B6: 9449.916667 | C6: 17036801.08 | D6: 114830.097
A7: ='B1. Current Distribution Rates'!A7 -> R1 - General Service | B7: 748 | C7: 3902413.759 | D7: 6354688.056
A8: ='B1. Current Distribution Rates'!A8 -> R2 - Seasonal - Apr to Oct | B8: 51 | C8: 72880.94951 | E8: 608763.058 | F8: 116298.6483
A9: ='B1. Current Distribution Rates'!A9 -> R2 - Seasonal - Nov to Mar | B9: 51 | C9: 56559.29055 | E9: 225221.057 | F9: 14886.59706
A10: ='B1. Current Distribution Rates'!A10 -> R3 - Large Volume Contract | B10: 5 | G10: 2875098.065 | H10: 581467.2
A11: ='B1. Current Distribution Rates'!A11 -> R4 - Peaking - Apr to Dec | B11: 44 | C11: 122156.6186 | D11: 1338189.984
A12: ='B1. Current Distribution Rates'!A12 -> R4 - Peaking - Jan to Mar | B12: 44 | C12: 23320.89174 | D12: 4721.295816
A13: ='B1. Current Distribution Rates'!A13 -> R5 - Interruptible Peaking | B13: 4 | G13: 503962.3
A14: ='B1. Current Distribution Rates'!A14 -> R6 - Alco Energy (IGPC) | B14: 1 | G14: 65859321.8
A15: Total | C15: =SUM(C6:C14) -> 21214132.59 | D15: 7812429.433 | E15: 833984.115 | F15: 131185.2453 | G15: 69238382.16 | H15: 581467.2 | I15: 0 | J15: =SUM(J6:J14) -> 0
A16: Source: EB-2025-0140 Gas Supply Plan Load Forecast - 2024 Weather Normalized Actuals

Sheet B3. Revenue From Current Rates
A1: ='B1. Current Distribution Rates'!A1 -> EPCOR Natural Gas Limited Partnership
A2: ='B1. Current Distribution Rates'!A2 -> EB-2025-0177
A3: =MID(CELL("filename",A3),FIND("]",CELL("filename",A3))+1,255) -> B3. Revenue From Current Rates
A5: ='B2. Billing Determinants'!A5 -> Rate Class | B5: ='B2. Billing Determinants'!B5 -> Monthly Service Charge | C5: ='B2. Billing Determinants'!C5 -> Delivery First 1,000 m3 | D5: ='B2. Billing Determinants'!D5 -> Delivery Over 1,000 m3 | E5: ='B2. Billing Determinants'!E5 -> Delivery Next 24,000 m3 | F5: ='B2. Billing Determinants'!F5 -> Delivery Over 25,000 m3 | G5: ='B2. Billing Determinants'!G5 -> Delivery - Firm | H5: ='B2. Billing Determinants'!H5 -> Demand - Firm | I5: Total Distribution
A6: ='B2. Billing Determinants'!A6 -> R1 - Residential | B6: ='B1. Current Distribution Rates'!B6*'B2. Billing Determinants'!B6*12 -> 2721576 | C6: ='B1. Current Distribution Rates'!C6*'B2. Billing Determinants'!C6/100 -> 1862633.462 | D6: ='B1. Current Distribution Rates'!D6*'B2. Billing Determinants'!D6/100 -> 12554.3745 | I6: =SUM(B6:H6) -> 4596763.837
A7: ='B2. Billing Determinants'!A7 -> R1 - General Service | B7: ='B1. Current Distribution Rates'!B7*'B2. Billing Determinants'!B7*12 -> 210936 | C7: ='B1. Current Distribution Rates'!C7*'B2. Billing Determinants'!C7/100 -> 470560.8559 | D7: ='B1. Current Distribution Rates'!D7*'B2. Billing Determinants'!D7/100 -> 611803.9473 | I7: =SUM(B7:H7) -> 1293300.803
A8: ='B2. Billing Determinants'!A8 -> R2 - Seasonal - Apr to Oct | B8: ='B1. Current Distribution Rates'!B8*'B2. Billing Determinants'!B8*5 -> 5987.4 | C8: ='B1. Current Distribution Rates'!C8*'B2. Billing Determinants'!C8/100 -> 12392.60377 | E8: ='B1. Current Distribution Rates'!E8*'B2. Billing Determinants'!E8/100 -> 46318.95479 | F8: ='B1. Current Distribution Rates'!F8*'B2. Billing Determinants'!F8/100 -> 6398.286432 | I8: 71097.245
A9: ='B2. Billing Determinants'!A9 -> R2 - Seasonal - Nov to Mar | B9: ='B1. Current Distribution Rates'!B9*'B2. Billing Determinants'!B9*7 -> 8382.36 | C9: ='B1. Current Distribution Rates'!C9*'B2. Billing Determinants'!C9/100 -> 12485.57651 | E9: ='B1. Current Distribution Rates'!E9*'B2. Billing Determinants'!E9/100 -> 32002.7861 | F9: ='B1. Current Distribution Rates'!F9*'B2. Billing Determinants'!F9/100 -> 2304.90671 | I9: =SUM(B9:H9) -> 55175.62932
A10: ='B2. Billing Determinants'!A10 -> R3 - Large Volume Contract | B10: ='B1. Current Distribution Rates'!B10*'B2. Billing Determinants'!B10*12 -> 14020.8 | C10: ='B1. Current Distribution Rates'!C10*'B2. Billing Determinants'!C10/100 -> 0 | G10: ='B1. Current Distribution Rates'!G10*'B2. Billing Determinants'!G10/100 -> 50426.34496 | H10: ='B1. Current Distribution Rates'!H10*'B2. Billing Determinants'!H10/100 -> 197685.4743 | I10: 262132.6192
A11: ='B2. Billing Determinants'!A11 -> R4 - Peaking - Apr to Dec | B11: ='B1. Current Distribution Rates'!B11*'B2. Billing Determinants'!B11*9 -> 9436.68 | C11: ='B1. Current Distribution Rates'!C11*'B2. Billing Determinants'!C11/100 -> 23528.342 | D11: ='B1. Current Distribution Rates'!D11*'B2. Billing Determinants'!D11/100 -> 145201.6424 | I11: 178166.6644
A12: ='B2. Billing Determinants'!A12 -> R4 - Peaking - Jan to Mar | B12: ='B1. Current Distribution Rates'!B12*'B2. Billing Determinants'!B12*3 -> 3145.56 | C12: ='B1. Current Distribution Rates'!C12*'B2. Billing Determinants'!C12/100 -> 5891.183746 | D12: ='B1. Current Distribution Rates'!D12*'B2. Billing Determinants'!D12/100 -> 894.7658191 | I12: 9931.509565
A13: ='B2. Billing Determinants'!A13 -> R5 - Interruptible Peaking | B13: ='B1. Current Distribution Rates'!B13*'B2. Billing Determinants'!B13*12 -> 9418.56 | G13: ='B1. Current Distribution Rates'!G13*'B2. Billing Determinants'!G13/100 -> 28742.48186 | I13: 38161.04186
A14: ='B2. Billing Determinants'!A14 -> R6 - Alco Energy (IGPC) | B14: ='B1. Current Distribution Rates'!B14*'B2. Billing Determinants'!B14*12 -> 858484.2 | I14: 858484.2
A15: Total | B15: =SUM(B6:B14) -> 3841387.56 | C15: 2387492.024 | D15: 770454.73 | E15: 78321.74089 | F15: 8703.193142 | G15: 79168.82681 | H15: 197685.4743 | I15: 7363213.549

Sheet C1. Current Rate Riders
A1: ='B3. Revenue From Current Rates'!A1 -> EPCOR Natural Gas Limited Partnership
A2: ='B3. Revenue From Current Rates'!A2 -> EB-2025-0177
A3: =MID(CELL("filename",A3),FIND("]",CELL("filename",A3))+1,255) -> C1. Current Rate Riders
A5: ='B3. Revenue From Current Rates'!A5 -> Rate Class | B5: REDA | C5: PGTVA | D5: UFGVA
B6: $ per month | C6: cents / m3 | D6: cents / m3
A7: ='B3. Revenue From Current Rates'!A6 -> R1 - Residential | B7: 0 | C7: 0.6290804449 | D7: 1.316518199
A8: ='B3. Revenue From Current Rates'!A7 -> R1 - General Service | B8: 0 | C8: 0.6290804449 | D8: 1.316518199
A9: ='B3. Revenue From Current Rates'!A9 -> R2 - Seasonal - Nov to Mar | B9: 0 | C9: 0.7157536893 | D9: 1.457478891
A10: ='B3. Revenue From Current Rates'!A8 -> R2 - Seasonal - Apr to Oct | B10: 0 | C10: 0.7157536893 | D10: 1.457478891
A11: ='B3. Revenue From Current Rates'!A10 -> R3 - Large Volume Contract | B11: 0 | C11: 0.2336479504 | D11: 0.527673602
A12: ='B3. Revenue From Current Rates'!A11 -> R4 - Peaking - Apr to Dec | B12: 0 | C12: 0.6539084146 | D12: 1.117808199
A13: ='B3. Revenue From Current Rates'!A12 -> R4 - Peaking - Jan to Mar | B13: 0 | C13: 0.6539084146 | D13: 1.117808199
A14: ='B3. Revenue From Current Rates'!A13 -> R5 - Interruptible Peaking | B14: 0 | C14: 1.037404084 | D14: 1.593380434
A15: ='B3. Revenue From Current Rates'!A14 -> R6 - Alco Energy (IGPC)

Sheet D1a. Rate 1-Res Adjustment
A1: ='B3. Revenue From Current Rates'!A1 -> EPCOR Natural Gas Limited Partnership
A2: ='B3. Revenue From Current Rates'!A2 -> EB-2025-0177
A3: =MID(CELL("filename",A3),FIND("]",CELL("filename",A3))+1,255) -> D1a. Rate 1-Res Adjustment
B5: Current Rate | C5: Price Cap | D5: Price Cap Adjust | E5: Adjusted Rates | F5: Billing Determinants | G5: Annual Revenue | H5: Balanced Rates | I5: Annual Revenue
A6: Monthly Service Charge ($/month) | B6: ='B1. Current Distribution Rates'!B6 -> 24 | C6: =PCA -> 0.02739375002 | D6: =B6*C6 -> 0.6574500004 | E6: =B6+D6 -> 24.65745 | F6: =SUM('B2. Billing Determinants'!B6) -> 9449.916667 | G6: =E6*F6*12 -> 2796130.173 | H6: =E6*1.15 -> 28.3560675 | I6: =F6*H6*12 -> 3215549.698
A7: Delivery All Volumes (¢/m3) | B7: ='B1. Current Distribution Rates'!C6 -> 10.933 | C7: =PCA -> 0.02739375002 | D7: =B7*C7 -> 0.2994958689 | E7: =B7+D7 -> 11.23249587 | F7: =SUM('B2. Billing Determinants'!C6)+'B2. Billing Determinants'!D6 -> 17151631.18 | G7: =E7*F7/100 -> 1926556.264 | H7: =ROUND(I7/F7*100,4) -> 8.7871 | I7: =G8-I6 -> 1507136.738
A8: Total | G8: =SUM(G6:G7) -> 4722686.436 | I8: =I6+I7 -> 4722686.436
H10: Revenue at Current Rates | I10: ='B3. Revenue From Current Rates'!I6 -> 4596763.837
H11: Variance $ | I11: =I8-I10 -> 125922.5994
H12: Variance % | I12: =I11/I10 -> 0.02739375002

Sheet D1b. Rate 1-GS Adjustment
A1: ='B3. Revenue From Current Rates'!A1 -> EPCOR Natural Gas Limited Partnership
A2: ='B3. Revenue From Current Rates'!A2 -> EB-2025-0177
A3: =MID(CELL("filename",A3),FIND("]",CELL("filename",A3))+1,255) -> D1b. Rate 1-GS Adjustment
B5: Current Rate | C5: Price Cap | D5: Price Cap Adjust | E5: Adjusted Rates | F5: Billing Determinants | G5: Annual Revenue | H5: Balanced Rates | I5: Annual Revenue
A6: Monthly Service Charge ($/month) | B6: ='B1. Current Distribution Rates'!B7 -> 23.5 | C6: =PCA -> 0.02739375002 | D6: =B6*C6 -> 0.6437531254 | E6: =B6+D6 -> 24.14375313 | F6: ='B2. Billing Determinants'!B7 -> 748 | G6: =E6*F6*12 -> 216714.3281 | H6: =E6*1.15 -> 27.76531609 | I6: =F6*H6*12 -> 249221.4773
A7: Delivery First 1,000 m3 (¢/m3) | B7: ='B1. Current Distribution Rates'!C7 -> 12.0582 | C7: =PCA -> 0.02739375002 | D7: =B7*C7 -> 0.3303193165 | E7: =B7+D7 -> 12.38851932 | F7: ='B2. Billing Determinants'!C7 -> 3902413.759 | G7: =E7*F7/100 -> 483451.2824 | H7: =I7/F7*100 -> 12.02636997 | I7: =G7/(G7+G8)*(G9-I6) -> 469318.7164
A8: Delivery Over 1,000 m3 (¢/m3) | B8: ='B1. Current Distribution Rates'!D7 -> 9.6276 | C8: =PCA -> 0.02739375002 | D8: =B8*C8 -> 0.2637360677 | E8: =B8+D8 -> 9.891336068 | F8: ='B2. Billing Determinants'!D7 -> 6354688.056 | G8: =E8*F8/100 -> 628563.5517 | H8: =I8/F8*100 -> 9.602186024 | I8: =G8/(G7+G8)*(G9-I6) -> 610188.9684
A9: Total | G9: =SUM(G6:G8) -> 1328729.162 | I9: =I6+I7+I8 -> 1328729.162
H11: Revenue at Current Rates | I11: ='B3. Revenue From Current Rates'!I7 -> 1293300.803
H12: Variance $ | I12: =I9-I11 -> 35428.3589
H13: Variance % | I13: =I12/I11 -> 0.02739375002

Sheet D2. Rate 2 Adjustment
A1: ='D1a. Rate 1-Res Adjustment'!A1 -> EPCOR Natural Gas Limited Partnership
A2: ='D1a. Rate 1-Res Adjustment'!A2 -> EB-2025-0177
A3: =MID(CELL("filename",A3),FIND("]",CELL("filename",A3))+1,255) -> D2. Rate 2 Adjustment
B5: Current Rate | C5: Price Cap | D5: Price Cap Adjust | E5: Adjusted Rates | F5: Billing Determinants | G5: Annual Revenue
A6: Monthly Service Charge ($/month) | B6: ='B1. Current Distribution Rates'!B9 -> 23.48 | C6: =PCA -> 0.02739375002 | D6: =B6*(C6) -> 0.6432052504 | E6: =B6+D6 -> 24.12320525 | F6: ='B2. Billing Determinants'!B8 -> 51 | G6: =E6*F6*12 -> 14763.40161
A7: Delivery First 1,000 m3 - Apr to Oct (¢/m3) | B7: ='B1. Current Distribution Rates'!C8 -> 17.0039 | C7: 0.02739375002 | D7: =B7*(C7) -> 0.4658005859 | E7: =B7+D7 -> 17.46970059 | F7: ='B2. Billing Determinants'!C8 -> 72880.94951 | G7: =E7*F7/100 -> 12732.08366
A8: Delivery Next 24,000 m3 - Apr to Oct (¢/m3) | B8: ='B1. Current Distribution Rates'!E8 -> 7.6087 | C8: 0.02739375002 | D8: 0.2084308258 | E8: 7.817130826 | F8: ='B2. Billing Determinants'!E8 -> 608763.058 | G8: =E8*F8/100 -> 47587.80466
A9: Delivery Over 25,000 m3 - Apr to Oct (¢/m3) | B9: ='B1. Current Distribution Rates'!F8 -> 5.5016 | C9: 0.02739375002 | D9: 0.1507094551 | E9: 5.652309455 | F9: ='B2. Billing Determinants'!F8 -> 116298.6483 | G9: 6573.559491
A10: Delivery First 1,000 m3 - Nov to Mar (¢/m3) | B10: ='B1. Current Distribution Rates'!C9 -> 22.0752 | C10: 0.02739375002 | D10: 0.6047225104 | E10: 22.67992251 | F10: ='B2. Billing Determinants'!C9 -> 56559.29055 | G10: 12827.60327
A11: Delivery Next 24,000 m3 - Nov to Mar (¢/m3) | B11: ='B1. Current Distribution Rates'!E9 -> 14.2095 | C11: 0.02739375002 | D11: 0.3892514909 | E11: 14.59875149 | F11: ='B2. Billing Determinants'!E9 -> 225221.057 | G11: 32879.46242
A12: Delivery Over 25,000 m3 - Nov to Mar (¢/m3) | B12: ='B1. Current Distribution Rates'!F9 -> 15.4831 | C12: 0.02739375002 | D12: 0.4241401709 | E12: 15.90724017 | F12: ='B2. Billing Determinants'!F9 -> 14886.59706 | G12: 2368.046748
A13: Total | G13: =SUM(G6:G12) -> 129731.9619
F15: Revenue at Current Rates | G15: ='B3. Revenue From Current Rates'!I8+'B3. Revenue From Current Rates'!I9 -> 126272.8743
F16: Variance $ | G16: =G13-G15 -> 3459.087553
F17: Variance % | G17: =G16/G15 -> 0.02739375002

Sheet D3. Rate 3 Adjustment
A1: ='D1a. Rate 1-Res Adjustment'!A1 -> EPCOR Natural Gas Limited Partnership
A2: ='D1a. Rate 1-Res Adjustment'!A2 -> EB-2025-0177
A3: =MID(CELL("filename",A3),FIND("]",CELL("filename",A3))+1,255) -> D3. Rate 3 Adjustment
B5: Current Rate | C5: Price Cap | D5: Price Cap Adjust | E5: Adjusted Rates | F5: Billing Determinants | G5: Annual Revenue
A6: Monthly Service Charge ($/month) | B6: ='B1. Current Distribution Rates'!B10 -> 233.68 | C6: =PCA -> 0.02739375002 | D6: =C6*B6 -> 6.401371504 | E6: =B6+D6 -> 240.0813715 | F6: ='B2. Billing Determinants'!B10 -> 5 | G6: =F6*E6*12 -> 14404.88229
A7: Delivery Firm (¢/m3) | B7: ='B1. Current Distribution Rates'!G10 -> 1.7539 | C7: =PCA -> 0.02739375002 | D7: =C7*B7 -> 0.04804589816 | E7: =B7+D7 -> 1.801945898 | F7: ='B2. Billing Determinants'!G10 -> 2875098.065 | G7: =F7*E7/100 -> 51807.71164
A8: Demand Firm (¢/CD/month) | B8: ='B1. Current Distribution Rates'!H10 -> 33.9977 | C8: =PCA -> 0.02739375002 | D8: 0.931324495 | E8: 34.92902449 | F8: ='B2. Billing Determinants'!H10 -> 581467.2 | G8: =F8*E8/100 -> 203100.8207
A9: Total | G9: =SUM(G2:G8) -> 269313.4147
F11: Revenue at Current Rates | G11: ='B3. Revenue From Current Rates'!I10 -> 262132.6192
F12: Variance $ | G12: =G9-G11 -> 7180.795442
F13: Variance % | G13: =G12/G11 -> 0.02739375002

Sheet D4. Rate 4 Adjustment
A1: ='D1a. Rate 1-Res Adjustment'!A1 -> EPCOR Natural Gas Limited Partnership
A2: ='D1a. Rate 1-Res Adjustment'!A2 -> EB-2025-0177
A3: =MID(CELL("filename",A3),FIND("]",CELL("filename",A3))+1,255) -> D4. Rate 4 Adjustment
B5: Current Rate | C5: Price Cap | D5: Price Cap Adjust | E5: Adjusted Rates | F5: Billing Determinants | G5: Annual Revenue
A6: Monthly Service Charge ($/month) | B6: ='B1. Current Distribution Rates'!B11 -> 23.83 | C6: =PCA -> 0.02739375002 | D6: =B6*C6 -> 0.6527930629 | E6: =B6+D6 -> 24.48279306 | F6: ='B2. Billing Determinants'!B11 -> 44 | G6: =F6*E6*12 -> 12926.91474
A7: Delivery First 1,000 m3 - Apr To Dec (¢/m3) | B7: ='B1. Current Distribution Rates'!C11 -> 19.2608 | C7: =PCA -> 0.02739375002 | D7: =B7*C7 -> 0.5276255403 | E7: =B7+D7 -> 19.78842554 | F7: ='B2. Billing Determinants'!C11 -> 122156.6186 | G7: =F7*E7/100 -> 24172.87152
A8: Delivery Over 1,000 m3 - Apr To Dec (¢/m3) | B8: ='B1. Current Distribution Rates'!D11 -> 10.8506 | C8: =PCA -> 0.02739375002 | D8: 0.2972386239 | E8: 11.14783862 | F8: ='B2. Billing Determinants'!D11 -> 1338189.984 | G8: =F8*E8/100 -> 149179.2599
A9: Delivery First 1,000 m3 - Jan To Mar (¢/m3) | B9: ='B1. Current Distribution Rates'!C12 -> 25.2614 | C9: =PCA -> 0.02739375002 | D9: 0.6920044767 | E9: 25.95340448 | F9: ='B2. Billing Determinants'!C12 -> 23320.89174 | G9: 6052.565361
A10: Delivery Over 1,000 m3 - Jan To Mar (¢/m3) | B10: ='B1. Current Distribution Rates'!D12 -> 18.9517 | C10: =PCA -> 0.02739375002 | D10: 0.5191581322 | E10: 19.47085813 | F10: ='B2. Billing Determinants'!D12 -> 4721.295816 | G10: 919.2768103
A11: Total | G11: =SUM(G4:G10) -> 193250.8883
F13: Revenue at Current Rates | G13: ='B3. Revenue From Current Rates'!I11+'B3. Revenue From Current Rates'!I12 -> 188098.174
F14: Variance $ | G14: =G11-G13 -> 5152.714357
F15: Variance % | G15: =G14/G13 -> 0.02739375002

Sheet D5. Rate 5 Adjustment
A1: ='D1a. Rate 1-Res Adjustment'!A1 -> EPCOR Natural Gas Limited Partnership
A2: ='D1a. Rate 1-Res Adjustment'!A2 -> EB-2025-0177
A3: =MID(CELL("filename",A3),FIND("]",CELL("filename",A3))+1,255) -> D5. Rate 5 Adjustment
B5: Current Rate | C5: Price Cap | D5: Price Cap Adjust | E5: Adjusted Rates | F5: Billing Determinants | G5: Annual Revenue
A6: Monthly Service Charge ($/month) | B6: ='B1. Current Distribution Rates'!B13 -> 196.22 | C6: =PCA -> 0.02739375002 | D6: =B6*C6 -> 5.375201628 | E6: =B6+D6 -> 201.5952016 | F6: ='B2. Billing Determinants'!B13 -> 4 | G6: =E6*F6*12 -> 9676.569678
A7: Delivery Firm (¢/m3) | B7: ='B1. Current Distribution Rates'!G13 -> 5.7033 | C7: =PCA -> 0.02739375002 | D7: =B7*C7 -> 0.1562347745 | E7: =B7+D7 -> 5.859534774 | F7: ='B2. Billing Determinants'!G13 -> 503962.3 | G7: =E7*F7/100 -> 29529.84622
A8: Total | G8: =SUM(G1:G7) -> 39206.4159
F10: Revenue at Current Rates | G10: ='B3. Revenue From Current Rates'!I13 -> 38161.04186
F11: Variance $ | G11: =G8-G10 -> 1045.374041
F12: Variance % | G12: =G11/G10 -> 0.02739375002

Sheet D6. Rate 6 Adjustment
A1: ='D1a. Rate 1-Res Adjustment'!A1 -> EPCOR Natural Gas Limited Partnership
A2: ='D1a. Rate 1-Res Adjustment'!A2 -> EB-2025-0177
A3: =MID(CELL("filename",A3),FIND("]",CELL("filename",A3))+1,255) -> D6. Rate 6 Adjustment
B5: Current Rate | C5: Price Cap | D5: Price Cap Adjust | E5: Adjusted Rates | F5: Billing Determinants | G5: Annual Revenue
A6: Monthly Service Charge ($/month) | B6: ='B1. Current Distribution Rates'!B14 -> 71540.35 | C6: =PCA -> 0.02739375002 | D6: =B6*C6 -> 1959.758464 | E6: =B6+D6 -> 73500.10846 | F6: ='B2. Billing Determinants'!B14 -> 1 | G6: =E6*F6*12 -> 882001.3016
A7: Total | G7: =G6 -> 882001.3016
F9: Revenue at Current Rates | G9: ='B3. Revenue From Current Rates'!I14 -> 858484.2
F10: Variance $ | G10: =G7-G9 -> 23517.10157
F11: Variance % | G11: =G10/G9 -> 0.02739375002

Sheet E1. Proposed Dist Rates
A1: ='D1a. Rate 1-Res Adjustment'!A1 -> EPCOR Natural Gas Limited Partnership
A2: ='D1a. Rate 1-Res Adjustment'!A2 -> EB-2025-0177
A3: =MID(CELL("filename",A3),FIND("]",CELL("filename",A3))+1,255) -> E1. Proposed Dist Rates
A5: Rate Class | B5: Monthly Service Charge ($) (1) | C5: Delivery First 1,000 m3 (₵) | D5: Delivery Over 1,000 m3 (₵) | E5: Delivery Next 24,000 m3 (₵) | F5: Delivery Over 25,000 m3 (₵) | G5: Delivery - Firm (₵) | H5: Demand - Firm (₵) | I5: Delivery - Int - Lower (₵) | J5: Delivery - Int - Upper (₵)
A6: ='B1. Current Distribution Rates'!A6 -> R1 - Residential | B6: ='D1a. Rate 1-Res Adjustment'!H6 -> 28.3560675 | C6: ='D1a. Rate 1-Res Adjustment'!H7 -> 8.7871 | D6: =C6 -> 8.7871
A7: R1 - GS | B7: ='D1b. Rate 1-GS Adjustment'!H6 -> 27.76531609 | C7: ='D1b. Rate 1-GS Adjustment'!H7 -> 12.02636997 | D7: ='D1b. Rate 1-GS Adjustment'!H8 -> 9.602186024
A8: ='B1. Current Distribution Rates'!A8 -> R2 - Seasonal - Apr to Oct | B8: ='D2. Rate 2 Adjustment'!E6 -> 24.12320525 | C8: ='D2. Rate 2 Adjustment'!E7 -> 17.46970059 | E8: ='D2. Rate 2 Adjustment'!E8 -> 7.817130826 | F8: ='D2. Rate 2 Adjustment'!E9 -> 5.652309455
A9: ='B1. Current Distribution Rates'!A9 -> R2 - Seasonal - Nov to Mar | B9: =B8 -> 24.12320525 | C9: ='D2. Rate 2 Adjustment'!E10 -> 22.67992251 | E9: ='D2. Rate 2 Adjustment'!E11 -> 14.59875149 | F9: ='D2. Rate 2 Adjustment'!E12 -> 15.90724017
A10: ='B1. Current Distribution Rates'!A10 -> R3 - Large Volume Contract | B10: ='D3. Rate 3 Adjustment'!E6 -> 240.0813715 | G10: ='D3. Rate 3 Adjustment'!E7 -> 1.801945898 | H10: ='D3. Rate 3 Adjustment'!E8 -> 34.92902449 | I10: ='B1. Current Distribution Rates'!I10*(1+PCA) -> 6.621039022 | J10: ='B1. Current Distribution Rates'!J10*(1+PCA) -> 10.09763673
A11: ='B1. Current Distribution Rates'!A11 -> R4 - Peaking - Apr to Dec | B11: ='D4. Rate 4 Adjustment'!E6 -> 24.48279306 | C11: ='D4. Rate 4 Adjustment'!E7 -> 19.78842554 | D11: ='D4. Rate 4 Adjustment'!E8 -> 11.14783862
A12: ='B1. Current Distribution Rates'!A12 -> R4 - Peaking - Jan to Mar | B12: =B11 -> 24.48279306 | C12: ='D4. Rate 4 Adjustment'!E9 -> 25.95340448 | D12: ='D4. Rate 4 Adjustment'!E10 -> 19.47085813
A13: ='B1. Current Distribution Rates'!A13 -> R5 - Interruptible Peaking | B13: ='D5. Rate 5 Adjustment'!E6 -> 201.5952016 | G13: ='D5. Rate 5 Adjustment'!E7 -> 5.859534774 | H13: -2 | I13: ='B1. Current Distribution Rates'!I13*(1+PCA) -> 4.116664017 | J13: ='B1. Current Distribution Rates'!J13*(1+PCA) -> 7.602302793
A14: ='B1. Current Distribution Rates'!A14 -> R6 - Alco Energy (IGPC) | B14: ='D6. Rate 6 Adjustment'!E6 -> 73500.10846
A15: 1 Bill 32 charge excluded
A16: 2 Placeholder rate for average customer

Sheet E2. Revenue From Proposed Rates
A1: ='D1a. Rate 1-Res Adjustment'!A1 -> EPCOR Natural Gas Limited Partnership
A2: ='D1a. Rate 1-Res Adjustment'!A2 -> EB-2025-0177
A3: =MID(CELL("filename",A3),FIND("]",CELL("filename",A3))+1,255) -> E2. Revenue From Proposed Rates
A5: ='B2. Billing Determinants'!A5 -> Rate Class | B5: ='B2. Billing Determinants'!B5 -> Monthly Service Charge | C5: ='B2. Billing Determinants'!C5 -> Delivery First 1,000 m3 | D5: ='B2. Billing Determinants'!D5 -> Delivery Over 1,000 m3 | E5: ='B2. Billing Determinants'!E5 -> Delivery Next 24,000 m3 | F5: ='B2. Billing Determinants'!F5 -> Delivery Over 25,000 m3 | G5: ='B2. Billing Determinants'!G5 -> Delivery - Firm | H5: ='B2. Billing Determinants'!H5 -> Demand - Firm | I5: Proposed Rates | K5: Current Rates | L5: Variance $ | M5: Variance %
A6: ='B2. Billing Determinants'!A6 -> R1 - Residential | B6: ='E1. Proposed Dist Rates '!B6*'B2. Billing Determinants'!B6*12 -> 3215549.698 | C6: =('E1. Proposed Dist Rates '!C6*'B2. Billing Determinants'!C6)/100 -> 1497040.748 | D6: =('E1. Proposed Dist Rates '!D6*'B2. Billing Determinants'!D6)/100 -> 10090.23545 | I6: =SUM(B6:H6) -> 4722680.682 | K6: ='B3. Revenue From Current Rates'!I6 -> 4596763.837 | L6: =I6-K6 -> 125916.845 | M6: =L6/K6 -> 0.02739249817
A7: ='B2. Billing Determinants'!A7 -> R1 - General Service | B7: ='E1. Proposed Dist Rates '!B7*'B2. Billing Determinants'!B7*12 -> 249221.4773 | C7: =('E1. Proposed Dist Rates '!C7*'B2. Billing Determinants'!C7)/100 -> 469318.7164 | D7: =('E1. Proposed Dist Rates '!D7*'B2. Billing Determinants'!D7)/100 -> 610188.9684 | I7: =SUM(B7:H7) -> 1328729.162 | K7: ='B3. Revenue From Current Rates'!I7 -> 1293300.803 | L7: =I7-K7 -> 35428.3589 | M7: =L7/K7 -> 0.02739375002
A8: ='B2. Billing Determinants'!A8 -> R2 - Seasonal - Apr to Oct | B8: ='E1. Proposed Dist Rates '!B8*'B2. Billing Determinants'!B8*5 -> 6151.417339 | C8: =('E1. Proposed Dist Rates '!C8*'B2. Billing Determinants'!C8)/100 -> 12732.08366 | E8: =('E1. Proposed Dist Rates '!E8*'B2. Billing Determinants'!E8)/100 -> 47587.80466 | F8: =('E1. Proposed Dist Rates '!F8*'B2. Billing Determinants'!F8)/100 -> 6573.559491 | I8: 73044.86515 | K8: ='B3. Revenue From Current Rates'!I8 -> 71097.245 | L8: 1947.620156 | M8: 0.02739375002
A9: ='B2. Billing Determinants'!A9 -> R2 - Seasonal - Nov to Mar | B9: ='E1. Proposed Dist Rates '!B9*'B2. Billing Determinants'!B9*7 -> 8611.984274 | C9: =('E1. Proposed Dist Rates '!C9*'B2. Billing Determinants'!C9)/100 -> 12827.60327 | E9: =('E1. Proposed Dist Rates '!E9*'B2. Billing Determinants'!E9)/100 -> 32879.46242 | F9: =('E1. Proposed Dist Rates '!F9*'B2. Billing Determinants'!F9)/100 -> 2368.046748 | I9: =SUM(B9:H9) -> 56687.09671 | K9: ='B3. Revenue From Current Rates'!I9 -> 55175.62932 | L9: 1511.467397 | M9: 0.02739375002
A10: ='B2. Billing Determinants'!A10 -> R3 - Large Volume Contract | B10: ='E1. Proposed Dist Rates '!B10*'B2. Billing Determinants'!B10*12 -> 14404.88229 | G10: =('E1. Proposed Dist Rates '!G10*'B2. Billing Determinants'!G10)/100 -> 51807.71164 | H10: =('E1. Proposed Dist Rates '!H10*'B2. Billing Determinants'!H10)/100 -> 203100.8207 | I10: 269313.4147 | K10: ='B3. Revenue From Current Rates'!I10 -> 262132.6192 | L10: 7180.795442 | M10: 0.02739375002
A11: ='B2. Billing Determinants'!A11 -> R4 - Peaking - Apr to Dec | B11: ='E1. Proposed Dist Rates '!B11*'B2. Billing Determinants'!B11*9 -> 9695.186053 | C11: =('E1. Proposed Dist Rates '!C11*'B2. Billing Determinants'!C11)/100 -> 24172.87152 | D11: =('E1. Proposed Dist Rates '!D11*'B2. Billing Determinants'!D11)/100 -> 149179.2599 | I11: 183047.3175 | K11: ='B3. Revenue From Current Rates'!I11 -> 178166.6644 | L11: 4880.653066 | M11: 0.02739375002
A12: ='B2. Billing Determinants'!A12 -> R4 - Peaking - Jan to Mar | B12: ='E1. Proposed Dist Rates '!B12*'B2. Billing Determinants'!B12*3 -> 3231.728684 | C12: =('E1. Proposed Dist Rates '!C12*'B2. Billing Determinants'!C12)/100 -> 6052.565361 | D12: =('E1. Proposed Dist Rates '!D12*'B2. Billing Determinants'!D12)/100 -> 919.2768103 | I12: 10203.57086 | K12: ='B3. Revenue From Current Rates'!I12 -> 9931.509565 | L12: 272.0612903 | M12: 0.02739375002
A13: ='B2. Billing Determinants'!A13 -> R5 - Interruptible Peaking | B13: ='E1. Proposed Dist Rates '!B13*'B2. Billing Determinants'!B13*12 -> 9676.569678 | G13: =('E1. Proposed Dist Rates '!G13*'B2. Billing Determinants'!G13)/100 -> 29529.84622 | I13: 39206.4159 | K13: ='B3. Revenue From Current Rates'!I13 -> 38161.04186 | L13: 1045.374041 | M13: 0.02739375002
A14: ='B2. Billing Determinants'!A14 -> R6 - Alco Energy (IGPC) | B14: ='E1. Proposed Dist Rates '!B14*'B2. Billing Determinants'!B14*12 -> 882001.3016 | I14: 882001.3016 | K14: ='B3. Revenue From Current Rates'!I14 -> 858484.2 | L14: 23517.10157 | M14: 0.02739375002
A15: Total | B15: =SUM(B6:B14) -> 4398544.246 | C15: 2022144.588 | D15: 770377.7406 | E15: 80467.26708 | F15: 8941.606239 | G15: 81337.55786 | H15: 203100.8207 | I15: 7564913.826 | K15: =SUM(K6:K14) -> 7363213.549 | L15: 201700.2769 | M15: 0.02739296851

Sheet F1. Proposed Rate Riders
A1: ='D1a. Rate 1-Res Adjustment'!A1 -> EPCOR Natural Gas Limited Partnership
A2: ='D1a. Rate 1-Res Adjustment'!A2 -> EB-2025-0177
A3: =MID(CELL("filename",A3),FIND("]",CELL("filename",A3))+1,255) -> F1. Proposed Rate Riders
A5: Rate Class | B5: REDA | C5: PGTVA | D5: UFGVA
B6: $ per month | C6: cents / m3 | D6: cents / m3
A7: ='B3. Revenue From Current Rates'!A6 -> R1 - Residential | B7: 0.06 | C7: 0.3240942935 | D7: 0.4269804258
A8: ='B3. Revenue From Current Rates'!A7 -> R1 - General Service | B8: 0.06 | C8: =C7 -> 0.3240942935 | D8: =D7 -> 0.4269804258
A9: ='B3. Revenue From Current Rates'!A9 -> R2 - Seasonal - Nov to Mar | B9: 0.06 | C9: =C8 -> 0.3240942935 | D9: =D8 -> 0.4269804258
A10: ='B3. Revenue From Current Rates'!A8 -> R2 - Seasonal - Apr to Oct | B10: 0.06 | C10: =C9 -> 0.3240942935 | D10: 0.4269804258
A11: ='B3. Revenue From Current Rates'!A10 -> R3 - Large Volume Contract | B11: 0.06 | C11: =C10 -> 0.3240942935 | D11: 0.4269804258
A12: ='B3. Revenue From Current Rates'!A11 -> R4 - Peaking - Apr to Dec | B12: 0.06 | C12: 0.3240942935 | D12: 0.4269804258
A13: ='B3. Revenue From Current Rates'!A12 -> R4 - Peaking - Jan to Mar | B13: 0.06 | C13: 0.3240942935 | D13: 0.4269804258
A14: ='B3. Revenue From Current Rates'!A13 -> R5 - Interruptible Peaking | B14: 0.06 | C14: 0.3240942935 | D14: 0.4269804258
A15: ='B3. Revenue From Current Rates'!A14 -> R6 - Alco Energy (IGPC)

Sheet G1. R1-R Bill Impact
A1: ='D1a. Rate 1-Res Adjustment'!A1 -> EPCOR Natural Gas Limited Partnership
A2: ='D1a. Rate 1-Res Adjustment'!A2 -> EB-2025-0177
A3: =MID(CELL("filename",A3),FIND("]",CELL("filename",A3))+1,255) -> G1. R1-R Bill Impact
A5: ='For Bill Impact(HideBeforeFile)'!C6 -> R1 - Residential | H5: Look-up
A6: Rates | B6: Current | C6: Proposed | D6: Bill Determinant | E6: Calculation
A7: =INDEX('For Bill Impact(HideBeforeFile)'!$D$45:$P$53,MATCH(A5,'For Bill Impact(HideBeforeFile)'!$C$58:$C$66,0),MATCH($H7,'For Bill Impact(HideBeforeFile)'!$D$57:$P$57,0)) -> Commodity | B7: =INDEX('For Bill Impact(HideBeforeFile)'!$D$6:$P$14,MATCH(A5,'For Bill Impact(HideBeforeFile)'!$C$58:$C$66,0),MATCH($H7,'For Bill Impact(HideBeforeFile)'!$D$57:$P$57,0)) -> 18.077 | C7: =INDEX('For Bill Impact(HideBeforeFile)'!$D$19:$P$27,MATCH(A5,'For Bill Impact(HideBeforeFile)'!$C$58:$C$66,0),MATCH($H7,'For Bill Impact(HideBeforeFile)'!$D$57:$P$57,0)) -> 18.077 | D7: =INDEX('For Bill Impact(HideBeforeFile)'!$D$32:$P$40,MATCH(A5,'For Bill Impact(HideBeforeFile)'!$C$58:$C$66,0),MATCH($H7,'For Bill Impact(HideBeforeFile)'!$D$57:$P$57,0)) -> 1815.003432 | E7: =INDEX('For Bill Impact(HideBeforeFile)'!$D$58:$P$66,MATCH(A5,'For Bill Impact(HideBeforeFile)'!$C$58:$C$66,0),MATCH($H7,'For Bill Impact(HideBeforeFile)'!$D$57:$P$57,0)) -> cents / m3 | H7: ='For Bill Impact(HideBeforeFile)'!$D$5 -> Commodity
A8: =INDEX('For Bill Impact(HideBeforeFile)'!$D$45:$P$53,MATCH(A5,'For Bill Impact(HideBeforeFile)'!$C$58:$C$66,0),MATCH($H8,'For Bill Impact(HideBeforeFile)'!$D$57:$P$57,0)) -> Monthly Service Charge | B8: =INDEX('For Bill Impact(HideBeforeFile)'!$D$6:$P$14,MATCH(A5,'For Bill Impact(HideBeforeFile)'!$C$58:$C$66,0),MATCH($H8,'For Bill Impact(HideBeforeFile)'!$D$57:$P$57,0)) -> 24 | C8: =INDEX('For Bill Impact(HideBeforeFile)'!$D$19:$P$27,MATCH(A5,'For Bill Impact(HideBeforeFile)'!$C$58:$C$66,0),MATCH($H8,'For Bill Impact(HideBeforeFile)'!$D$57:$P$57,0)) -> 28.3560675 | D8: =INDEX('For Bill Impact(HideBeforeFile)'!$D$32:$P$40,MATCH(A5,'For Bill Impact(HideBeforeFile)'!$C$58:$C$66,0),MATCH($H8,'For Bill Impact(HideBeforeFile)'!$D$57:$P$57,0)) -> 12 | E8: =INDEX('For Bill Impact(HideBeforeFile)'!$D$58:$P$66,MATCH(A5,'For Bill Impact(HideBeforeFile)'!$C$58:$C$66,0),MATCH($H8,'For Bill Impact(HideBeforeFile)'!$D$57:$P$57,0)) -> $ / month | H8: ='For Bill Impact(HideBeforeFile)'!$L$5 -> Dist. Customer Rate
A9: =INDEX('For Bill Impact(HideBeforeFile)'!$D$45:$P$53,MATCH(A5,'For Bill Impact(HideBeforeFile)'!$C$58:$C$66,0),MATCH($H9,'For Bill Impact(HideBeforeFile)'!$D$57:$P$57,0)) -> Block 1 (First 1,000 m3 per month) | B9: =INDEX('For Bill Impact(HideBeforeFile)'!$D$6:$P$14,MATCH(A5,'For Bill Impact(HideBeforeFile)'!$C$58:$C$66,0),MATCH($H9,'For Bill Impact(HideBeforeFile)'!$D$57:$P$57,0)) -> 10.933 | C9: =INDEX('For Bill Impact(HideBeforeFile)'!$D$19:$P$27,MATCH(A5,'For Bill Impact(HideBeforeFile)'!$C$58:$C$66,0),MATCH($H9,'For Bill Impact(HideBeforeFile)'!$D$57:$P$57,0)) -> 8.7871 | D9: =INDEX('For Bill Impact(HideBeforeFile)'!$D$32:$P$40,MATCH(A5,'For Bill Impact(HideBeforeFile)'!$C$58:$C$66,0),MATCH($H9,'For Bill Impact(HideBeforeFile)'!$D$57:$P$57,0)) -> 1802.851992 | E9: =INDEX('For Bill Impact(HideBeforeFile)'!$D$58:$P$66,MATCH(A5,'For Bill Impact(HideBeforeFile)'!$C$58:$C$66,0),MATCH($H9,'For Bill Impact(HideBeforeFile)'!$D$57:$P$57,0)) -> cents / m3 | H9: ='For Bill Impact(HideBeforeFile)'!$M$5 -> Dist. Vol. Rate Tier 1
A10: =INDEX('For Bill Impact(HideBeforeFile)'!$D$45:$P$53,MATCH(A5,'For Bill Impact(HideBeforeFile)'!$C$58:$C$66,0),MATCH($H10,'For Bill Impact(HideBeforeFile)'!$D$57:$P$57,0)) -> Block 2 (Over 1,000 m3 per month) | B10: =INDEX('For Bill Impact(HideBeforeFile)'!$D$6:$P$14,MATCH(A5,'For Bill Impact(HideBeforeFile)'!$C$58:$C$66,0),MATCH($H10,'For Bill Impact(HideBeforeFile)'!$D$57:$P$57,0)) -> 10.933 | C10: =INDEX('For Bill Impact(HideBeforeFile)'!$D$19:$P$27,MATCH(A5,'For Bill Impact(HideBeforeFile)'!$C$58:$C$66,0),MATCH($H10,'For Bill Impact(HideBeforeFile)'!$D$57:$P$57,0)) -> 8.7871 | D10: =INDEX('For Bill Impact(HideBeforeFile)'!$D$32:$P$40,MATCH(A5,'For Bill Impact(HideBeforeFile)'!$C$58:$C$66,0),MATCH($H10,'For Bill Impact(HideBeforeFile)'!$D$57:$P$57,0)) -> 12.15144017 | E10: =INDEX('For Bill Impact(HideBeforeFile)'!$D$58:$P$66,MATCH(A5,'For Bill Impact(HideBeforeFile)'!$C$58:$C$66,0),MATCH($H10,'For Bill Impact(HideBeforeFile)'!$D$57:$P$57,0)) -> cents / m3 | H10: ='For Bill Impact(HideBeforeFile)'!$N$5 -> Dist. Vol. Rate Tier 2
A11: =INDEX('For Bill Impact(HideBeforeFile)'!$D$45:$P$53,MATCH(A5,'For Bill Impact(HideBeforeFile)'!$C$58:$C$66,0),MATCH($H11,'For Bill Impact(HideBeforeFile)'!$D$57:$P$57,0)) -> Transportation | B11: =INDEX('For Bill Impact(HideBeforeFile)'!$D$6:$P$14,MATCH(A5,'For Bill Impact(HideBeforeFile)'!$C$58:$C$66,0),MATCH($H11,'For Bill Impact(HideBeforeFile)'!$D$57:$P$57,0)) -> 2.916080527 | C11: =INDEX('For Bill Impact(HideBeforeFile)'!$D$19:$P$27,MATCH(A5,'For Bill Impact(HideBeforeFile)'!$C$58:$C$66,0),MATCH($H11,'For Bill Impact(HideBeforeFile)'!$D$57:$P$57,0)) -> 2.916080527 | D11: =INDEX('For Bill Impact(HideBeforeFile)'!$D$32:$P$40,MATCH(A5,'For Bill Impact(HideBeforeFile)'!$C$58:$C$66,0),MATCH($H11,'For Bill Impact(HideBeforeFile)'!$D$57:$P$57,0)) -> 1815.003432 | E11: =INDEX('For Bill Impact(HideBeforeFile)'!$D$58:$P$66,MATCH(A5,'For Bill Impact(HideBeforeFile)'!$C$58:$C$66,0),MATCH($H11,'For Bill Impact(HideBeforeFile)'!$D$57:$P$57,0)) -> cents / m3 | H11: ='For Bill Impact(HideBeforeFile)'!$E$5 -> Transportation
A12: =INDEX('For Bill Impact(HideBeforeFile)'!$D$45:$P$53,MATCH(A5,'For Bill Impact(HideBeforeFile)'!$C$58:$C$66,0),MATCH($H12,'For Bill Impact(HideBeforeFile)'!$D$57:$P$57,0)) -> REDA | B12: =INDEX('For Bill Impact(HideBeforeFile)'!$D$6:$P$14,MATCH(A5,'For Bill Impact(HideBeforeFile)'!$C$58:$C$66,0),MATCH($H12,'For Bill Impact(HideBeforeFile)'!$D$57:$P$57,0)) -> 0 | C12: =INDEX('For Bill Impact(HideBeforeFile)'!$D$19:$P$27,MATCH(A5,'For Bill Impact(HideBeforeFile)'!$C$58:$C$66,0),MATCH($H12,'For Bill Impact(HideBeforeFile)'!$D$57:$P$57,0)) -> 0.06 | D12: =INDEX('For Bill Impact(HideBeforeFile)'!$D$32:$P$40,MATCH(A5,'For Bill Impact(HideBeforeFile)'!$C$58:$C$66,0),MATCH($H12,'For Bill Impact(HideBeforeFile)'!$D$57:$P$57,0)) -> 12 | E12: =INDEX('For Bill Impact(HideBeforeFile)'!$D$58:$P$66,MATCH(A5,'For Bill Impact(HideBeforeFile)'!$C$58:$C$66,0),MATCH($H12,'For Bill Impact(HideBeforeFile)'!$D$57:$P$57,0)) -> $ / month | H12: ='For Bill Impact(HideBeforeFile)'!$F$5 -> REDA
A13: =INDEX('For Bill Impact(HideBeforeFile)'!$D$45:$P$53,MATCH(A5,'For Bill Impact(HideBeforeFile)'!$C$58:$C$66,0),MATCH($H13,'For Bill Impact(HideBeforeFile)'!$D$57:$P$57,0)) -> PGTVA | B13: =INDEX('For Bill Impact(HideBeforeFile)'!$D$6:$P$14,MATCH(A5,'For Bill Impact(HideBeforeFile)'!$C$58:$C$66,0),MATCH($H13,'For Bill Impact(HideBeforeFile)'!$D$57:$P$57,0)) -> 0.6290804449 | C13: =INDEX('For Bill Impact(HideBeforeFile)'!$D$19:$P$27,MATCH(A5,'For Bill Impact(HideBeforeFile)'!$C$58:$C$66,0),MATCH($H13,'For Bill Impact(HideBeforeFile)'!$D$57:$P$57,0)) -> 0.3240942935 | D13: =INDEX('For Bill Impact(HideBeforeFile)'!$D$32:$P$40,MATCH(A5,'For Bill Impact(HideBeforeFile)'!$C$58:$C$66,0),MATCH($H13,'For Bill Impact(HideBeforeFile)'!$D$57:$P$57,0)) -> 1815.003432 | E13: =INDEX('For Bill Impact(HideBeforeFile)'!$D$58:$P$66,MATCH(A5,'For Bill Impact(HideBeforeFile)'!$C$58:$C$66,0),MATCH($H13,'For Bill Impact(HideBeforeFile)'!$D$57:$P$57,0)) -> cents / m3 | H13: ='For Bill Impact(HideBeforeFile)'!$G$5 -> PGTVA
A14: =INDEX('For Bill Impact(HideBeforeFile)'!$D$45:$P$53,MATCH(A5,'For Bill Impact(HideBeforeFile)'!$C$58:$C$66,0),MATCH($H14,'For Bill Impact(HideBeforeFile)'!$D$57:$P$57,0)) -> UFGVA | B14: =INDEX('For Bill Impact(HideBeforeFile)'!$D$6:$P$14,MATCH(A5,'For Bill Impact(HideBeforeFile)'!$C$58:$C$66,0),MATCH($H14,'For Bill Impact(HideBeforeFile)'!$D$57:$P$57,0)) -> 1.316518199 | C14: =INDEX('For Bill Impact(HideBeforeFile)'!$D$19:$P$27,MATCH(A5,'For Bill Impact(HideBeforeFile)'!$C$58:$C$66,0),MATCH($H14,'For Bill Impact(HideBeforeFile)'!$D$57:$P$57,0)) -> 0.4269804258 | D14: =INDEX('For Bill Impact(HideBeforeFile)'!$D$32:$P$40,MATCH(A5,'For Bill Impact(HideBeforeFile)'!$C$58:$C$66,0),MATCH($H14,'For Bill Impact(HideBeforeFile)'!$D$57:$P$57,0)) -> 1815.003432 | E14: =INDEX('For Bill Impact(HideBeforeFile)'!$D$58:$P$66,MATCH(A5,'For Bill Impact(HideBeforeFile)'!$C$58:$C$66,0),MATCH($H14,'For Bill Impact(HideBeforeFile)'!$D$57:$P$57,0)) -> cents / m3 | H14: ='For Bill Impact(HideBeforeFile)'!$H$5 -> UFGVA
A15: =INDEX('For Bill Impact(HideBeforeFile)'!$D$45:$P$53,MATCH(A5,'For Bill Impact(HideBeforeFile)'!$C$58:$C$66,0),MATCH($H15,'For Bill Impact(HideBeforeFile)'!$D$57:$P$57,0)) -> 0 | B15: =INDEX('For Bill Impact(HideBeforeFile)'!$D$6:$P$14,MATCH(A5,'For Bill Impact(HideBeforeFile)'!$C$58:$C$66,0),MATCH($H15,'For Bill Impact(HideBeforeFile)'!$D$57:$P$57,0)) -> 0 | C15: =INDEX('For Bill Impact(HideBeforeFile)'!$D$19:$P$27,MATCH(A5,'For Bill Impact(HideBeforeFile)'!$C$58:$C$66,0),MATCH($H15,'For Bill Impact(HideBeforeFile)'!$D$57:$P$57,0)) -> 0 | D15: =INDEX('For Bill Impact(HideBeforeFile)'!$D$32:$P$40,MATCH(A5,'For Bill Impact(HideBeforeFile)'!$C$58:$C$66,0),MATCH($H15,'For Bill Impact(HideBeforeFile)'!$D$57:$P$57,0)) -> 12 | E15: =INDEX('For Bill Impact(HideBeforeFile)'!$D$58:$P$66,MATCH(A5,'For Bill Impact(HideBeforeFile)'!$C$58:$C$66,0),MATCH($H15,'For Bill Impact(HideBeforeFile)'!$D$57:$P$57,0)) -> $ / month | H15: ='For Bill Impact(HideBeforeFile)'!$I$5 -> 0
A16: =INDEX('For Bill Impact(HideBeforeFile)'!$D$45:$P$53,MATCH(A5,'For Bill Impact(HideBeforeFile)'!$C$58:$C$66,0),MATCH($H16,'For Bill Impact(HideBeforeFile)'!$D$57:$P$57,0)) -> 0 | B16: =INDEX('For Bill Impact(HideBeforeFile)'!$D$6:$P$14,MATCH(A5,'For Bill Impact(HideBeforeFile)'!$C$58:$C$66,0),MATCH($H16,'For Bill Impact(HideBeforeFile)'!$D$57:$P$57,0)) -> 0 | C16: =INDEX('For Bill Impact(HideBeforeFile)'!$D$19:$P$27,MATCH(A5,'For Bill Impact(HideBeforeFile)'!$C$58:$C$66,0),MATCH($H16,'For Bill Impact(HideBeforeFile)'!$D$57:$P$57,0)) -> 0 | D16: =INDEX('For Bill Impact(HideBeforeFile)'!$D$32:$P$40,MATCH(A5,'For Bill Impact(HideBeforeFile)'!$C$58:$C$66,0),MATCH($H16,'For Bill Impact(HideBeforeFile)'!$D$57:$P$57,0)) -> 12 | E16: =INDEX('For Bill Impact(HideBeforeFile)'!$D$58:$P$66,MATCH(A5,'For Bill Impact(HideBeforeFile)'!$C$58:$C$66,0),MATCH($H16,'For Bill Impact(HideBeforeFile)'!$D$57:$P$57,0)) -> $ / month | H16: ='For Bill Impact(HideBeforeFile)'!$J$5 -> 0
A17: =INDEX('For Bill Impact(HideBeforeFile)'!$D$45:$P$53,MATCH(A5,'For Bill Impact(HideBeforeFile)'!$C$58:$C$66,0),MATCH($H17,'For Bill Impact(HideBeforeFile)'!$D$57:$P$57,0)) -> 0 | B17: =INDEX('For Bill Impact(HideBeforeFile)'!$D$6:$P$14,MATCH(A5,'For Bill Impact(HideBeforeFile)'!$C$58:$C$66,0),MATCH($H17,'For Bill Impact(HideBeforeFile)'!$D$57:$P$57,0)) -> 0 | C17: =INDEX('For Bill Impact(HideBeforeFile)'!$D$19:$P$27,MATCH(A5,'For Bill Impact(HideBeforeFile)'!$C$58:$C$66,0),MATCH($H17,'For Bill Impact(HideBeforeFile)'!$D$57:$P$57,0)) -> 0 | D17: =INDEX('For Bill Impact(HideBeforeFile)'!$D$32:$P$40,MATCH(A5,'For Bill Impact(HideBeforeFile)'!$C$58:$C$66,0),MATCH($H17,'For Bill Impact(HideBeforeFile)'!$D$57:$P$57,0)) -> 12 | E17: =INDEX('For Bill Impact(HideBeforeFile)'!$D$58:$P$66,MATCH(A5,'For Bill Impact(HideBeforeFile)'!$C$58:$C$66,0),MATCH($H17,'For Bill Impact(HideBeforeFile)'!$D$57:$P$57,0)) -> $ / month | H17: ='For Bill Impact(HideBeforeFile)'!$K$5 -> 0
A19: Annual Billings | B19: Current | C19: Proposed | D19: Variance $ | E19: Variance %
A20: Commodity | B20: =B7*$D7/100 -> 328.0981704 | C20: =C7*$D7/100 -> 328.0981704 | D20: =C20-B20 -> 0 | E20: =IFERROR(D20/B20,"") -> 0 | H20: ='For Bill Impact(HideBeforeFile)'!$D$5 -> Commodity
A22: Distribution
A23: =IF(A8<>"",A8,"") -> Monthly Service Charge | B23: =B8*$D8 -> 288 | C23: =C8*$D8 -> 340.27281 | D23: =IFERROR(C23-B23,"") -> 52.27281001 | E23: =IFERROR(D23/B23,"") -> 0.1815028125 | H23: ='For Bill Impact(HideBeforeFile)'!$L$5 -> Dist. Customer Rate
A25: =IF(A9<>"",A9,"") -> Block 1 (First 1,000 m3 per month) | B25: =IFERROR(B9*$D9/100,"") -> 197.1058082 | C25: =IFERROR(C9*$D9/100,"") -> 158.4184073 | D25: =IFERROR(C25-B25,"") -> -38.68740089 | E25: =IFERROR(D25/B25,"") -> -0.1962773255 | H25: ='For Bill Impact(HideBeforeFile)'!$M$5 -> Dist. Vol. Rate Tier 1
A26: =IF(A10<>"",A10,"") -> Block 2 (Over 1,000 m3 per month) | B26: =IFERROR(B10*$D10/100,"") -> 1.328516953 | C26: =IFERROR(C10*$D10/100,"") -> 1.067759199 | D26: =IFERROR(C26-B26,"") -> -0.2607577545 | E26: =IFERROR(D26/B26,"") -> -0.1962773255 | H26: ='For Bill Impact(HideBeforeFile)'!$N$5 -> Dist. Vol. Rate Tier 2
A27: Total Distribution | B27: =SUM(B23:B26) -> 486.4343252 | C27: =SUM(C23:C26) -> 499.7589766 | D27: =SUM(D23:D26) -> 13.32465136 | E27: =IF(ISERROR(D27/B27),0,D27/B27) -> 0.02739249817
A29: Bill 32 | B29: 12 | C29: 12 | D29: =IFERROR(C29-B29,"") -> 0 | E29: =IFERROR(D29/B29,"") -> 0
A30: =IF(A11<>"",A11,"") -> Transportation | B30: =IFERROR(B11*$D11/100,"") -> 52.92696164 | C30: =IFERROR(C11*$D11/100,"") -> 52.92696164 | D30: =IFERROR(C30-B30,"") -> 0 | E30: =IFERROR(D30/B30,"") -> 0 | H30: ='For Bill Impact(HideBeforeFile)'!$E$5 -> Transportation
A32: Rate Riders
A33: =A12 -> REDA | B33: =B12*$D12 -> 0 | C33: =C12*$D12 -> 0.72 | D33: =IFERROR(C33-B33,"") -> 0.72 | E33: =IFERROR(D33/B33,"") ->  | H33: =H12 -> REDA
A34: PGTVA | B34: =IFERROR(B13*$D13/100,"") -> 11.41783166 | C34: =IFERROR(C13*$D13/100,"") -> 5.882322549 | D34: -5.535509114 | E34: -0.4848126402 | H34: PGTVA
A35: UFGVA | B35: =IFERROR(B14*$D14/100,"") -> 23.89485048 | C35: =IFERROR(C14*$D14/100,"") -> 7.74970938 | D35: -16.1451411 | E35: -0.6756744979 | H35: UFGVA
A36: 0 | B36: =B15*$D15 -> 0 | C36: =C15*$D15 -> 0 | D36: 0 | H36: 0
A37: 0 | B37: =IFERROR(B16*$D16/100,"") -> 0 | C37: =IFERROR(C16*$D16/100,"") -> 0 | D37: 0 | H37: 0
A38: 0 | B38: =B17*$D17 -> 0 | C38: =C17*$D17 -> 0 | D38: 0 | H38: 0
A39: Total Rate Riders | B39: =SUM(B33:B38) -> 35.31268215 | C39: =SUM(C33:C38) -> 14.35203193 | D39: =SUM(D33:D38) -> -20.96065022 | E39: =IF(ISERROR(D39/B39),0,D39/B39) -> -0.5935728736
A41: Total Bill | B41: =B20+B27+B29+B30+B39 -> 914.7721393 | C41: =C20+C27+C29+C30+C39 -> 907.1361405 | D41: =D20+D27+D29+D30+D39 -> -7.635998852 | E41: =IFERROR(D41/B41,"") -> -0.008347432682
A43: R1 - Residential - Bottom 10 Percentile
A44: =A5 -> R1 - Residential | H44: Look-up
A45: Rates | B45: Current | C45: Proposed | D45: Bill Determinant | E45: Calculation
A46: =INDEX('For Bill Impact(HideBeforeFile)'!$D$45:$P$53,MATCH(A44,'For Bill Impact(HideBeforeFile)'!$C$58:$C$66,0),MATCH($H46,'For Bill Impact(HideBeforeFile)'!$D$57:$P$57,0)) -> Commodity | B46: =INDEX('For Bill Impact(HideBeforeFile)'!$D$6:$P$14,MATCH(A44,'For Bill Impact(HideBeforeFile)'!$C$58:$C$66,0),MATCH($H46,'For Bill Impact(HideBeforeFile)'!$D$57:$P$57,0)) -> 18.077 | C46: =INDEX('For Bill Impact(HideBeforeFile)'!$D$19:$P$27,MATCH(A44,'For Bill Impact(HideBeforeFile)'!$C$58:$C$66,0),MATCH($H46,'For Bill Impact(HideBeforeFile)'!$D$57:$P$57,0)) -> 18.077 | D46: 608.4504598 | E46: =INDEX('For Bill Impact(HideBeforeFile)'!$D$58:$P$66,MATCH(A44,'For Bill Impact(HideBeforeFile)'!$C$58:$C$66,0),MATCH($H46,'For Bill Impact(HideBeforeFile)'!$D$57:$P$57,0)) -> cents / m3 | H46: ='For Bill Impact(HideBeforeFile)'!$D$5 -> Commodity
A47: =INDEX('For Bill Impact(HideBeforeFile)'!$D$45:$P$53,MATCH(A44,'For Bill Impact(HideBeforeFile)'!$C$58:$C$66,0),MATCH($H47,'For Bill Impact(HideBeforeFile)'!$D$57:$P$57,0)) -> Monthly Service Charge | B47: =INDEX('For Bill Impact(HideBeforeFile)'!$D$6:$P$14,MATCH(A44,'For Bill Impact(HideBeforeFile)'!$C$58:$C$66,0),MATCH($H47,'For Bill Impact(HideBeforeFile)'!$D$57:$P$57,0)) -> 24 | C47: =INDEX('For Bill Impact(HideBeforeFile)'!$D$19:$P$27,MATCH(A44,'For Bill Impact(HideBeforeFile)'!$C$58:$C$66,0),MATCH($H47,'For Bill Impact(HideBeforeFile)'!$D$57:$P$57,0)) -> 28.3560675 | D47: =INDEX('For Bill Impact(HideBeforeFile)'!$D$32:$P$40,MATCH(A44,'For Bill Impact(HideBeforeFile)'!$C$58:$C$66,0),MATCH($H47,'For Bill Impact(HideBeforeFile)'!$D$57:$P$57,0)) -> 12 | E47: =INDEX('For Bill Impact(HideBeforeFile)'!$D$58:$P$66,MATCH(A44,'For Bill Impact(HideBeforeFile)'!$C$58:$C$66,0),MATCH($H47,'For Bill Impact(HideBeforeFile)'!$D$57:$P$57,0)) -> $ / month | H47: ='For Bill Impact(HideBeforeFile)'!$L$5 -> Dist. Customer Rate
A48: =INDEX('For Bill Impact(HideBeforeFile)'!$D$45:$P$53,MATCH(A44,'For Bill Impact(HideBeforeFile)'!$C$58:$C$66,0),MATCH($H48,'For Bill Impact(HideBeforeFile)'!$D$57:$P$57,0)) -> Block 1 (First 1,000 m3 per month) | B48: =INDEX('For Bill Impact(HideBeforeFile)'!$D$6:$P$14,MATCH(A44,'For Bill Impact(HideBeforeFile)'!$C$58:$C$66,0),MATCH($H48,'For Bill Impact(HideBeforeFile)'!$D$57:$P$57,0)) -> 10.933 | C48: =INDEX('For Bill Impact(HideBeforeFile)'!$D$19:$P$27,MATCH(A44,'For Bill Impact(HideBeforeFile)'!$C$58:$C$66,0),MATCH($H48,'For Bill Impact(HideBeforeFile)'!$D$57:$P$57,0)) -> 8.7871 | D48: =D46 -> 608.4504598 | E48: =INDEX('For Bill Impact(HideBeforeFile)'!$D$58:$P$66,MATCH(A44,'For Bill Impact(HideBeforeFile)'!$C$58:$C$66,0),MATCH($H48,'For Bill Impact(HideBeforeFile)'!$D$57:$P$57,0)) -> cents / m3 | H48: ='For Bill Impact(HideBeforeFile)'!$M$5 -> Dist. Vol. Rate Tier 1
A49: =INDEX('For Bill Impact(HideBeforeFile)'!$D$45:$P$53,MATCH(A44,'For Bill Impact(HideBeforeFile)'!$C$58:$C$66,0),MATCH($H49,'For Bill Impact(HideBeforeFile)'!$D$57:$P$57,0)) -> Block 2 (Over 1,000 m3 per month) | B49: =INDEX('For Bill Impact(HideBeforeFile)'!$D$6:$P$14,MATCH(A44,'For Bill Impact(HideBeforeFile)'!$C$58:$C$66,0),MATCH($H49,'For Bill Impact(HideBeforeFile)'!$D$57:$P$57,0)) -> 10.933 | C49: =INDEX('For Bill Impact(HideBeforeFile)'!$D$19:$P$27,MATCH(A44,'For Bill Impact(HideBeforeFile)'!$C$58:$C$66,0),MATCH($H49,'For Bill Impact(HideBeforeFile)'!$D$57:$P$57,0)) -> 8.7871 | D49: 0 | E49: =INDEX('For Bill Impact(HideBeforeFile)'!$D$58:$P$66,MATCH(A44,'For Bill Impact(HideBeforeFile)'!$C$58:$C$66,0),MATCH($H49,'For Bill Impact(HideBeforeFile)'!$D$57:$P$57,0)) -> cents / m3 | H49: ='For Bill Impact(HideBeforeFile)'!$N$5 -> Dist. Vol. Rate Tier 2
A50: =INDEX('For Bill Impact(HideBeforeFile)'!$D$45:$P$53,MATCH(A44,'For Bill Impact(HideBeforeFile)'!$C$58:$C$66,0),MATCH($H50,'For Bill Impact(HideBeforeFile)'!$D$57:$P$57,0)) -> Transportation | B50: =INDEX('For Bill Impact(HideBeforeFile)'!$D$6:$P$14,MATCH(A44,'For Bill Impact(HideBeforeFile)'!$C$58:$C$66,0),MATCH($H50,'For Bill Impact(HideBeforeFile)'!$D$57:$P$57,0)) -> 2.916080527 | C50: =INDEX('For Bill Impact(HideBeforeFile)'!$D$19:$P$27,MATCH(A44,'For Bill Impact(HideBeforeFile)'!$C$58:$C$66,0),MATCH($H50,'For Bill Impact(HideBeforeFile)'!$D$57:$P$57,0)) -> 2.916080527 | D50: =D46 -> 608.4504598 | E50: =INDEX('For Bill Impact(HideBeforeFile)'!$D$58:$P$66,MATCH(A44,'For Bill Impact(HideBeforeFile)'!$C$58:$C$66,0),MATCH($H50,'For Bill Impact(HideBeforeFile)'!$D$57:$P$57,0)) -> cents / m3 | H50: ='For Bill Impact(HideBeforeFile)'!$E$5 -> Transportation
A51: =INDEX('For Bill Impact(HideBeforeFile)'!$D$45:$P$53,MATCH(A44,'For Bill Impact(HideBeforeFile)'!$C$58:$C$66,0),MATCH($H51,'For Bill Impact(HideBeforeFile)'!$D$57:$P$57,0)) -> REDA | B51: =INDEX('For Bill Impact(HideBeforeFile)'!$D$6:$P$14,MATCH(A44,'For Bill Impact(HideBeforeFile)'!$C$58:$C$66,0),MATCH($H51,'For Bill Impact(HideBeforeFile)'!$D$57:$P$57,0)) -> 0 | C51: =INDEX('For Bill Impact(HideBeforeFile)'!$D$19:$P$27,MATCH(A44,'For Bill Impact(HideBeforeFile)'!$C$58:$C$66,0),MATCH($H51,'For Bill Impact(HideBeforeFile)'!$D$57:$P$57,0)) -> 0.06 | D51: =INDEX('For Bill Impact(HideBeforeFile)'!$D$32:$P$40,MATCH(A44,'For Bill Impact(HideBeforeFile)'!$C$58:$C$66,0),MATCH($H51,'For Bill Impact(HideBeforeFile)'!$D$57:$P$57,0)) -> 12 | E51: =INDEX('For Bill Impact(HideBeforeFile)'!$D$58:$P$66,MATCH(A44,'For Bill Impact(HideBeforeFile)'!$C$58:$C$66,0),MATCH($H51,'For Bill Impact(HideBeforeFile)'!$D$57:$P$57,0)) -> $ / month | H51: ='For Bill Impact(HideBeforeFile)'!$F$5 -> REDA
A52: =INDEX('For Bill Impact(HideBeforeFile)'!$D$45:$P$53,MATCH(A44,'For Bill Impact(HideBeforeFile)'!$C$58:$C$66,0),MATCH($H52,'For Bill Impact(HideBeforeFile)'!$D$57:$P$57,0)) -> PGTVA | B52: =INDEX('For Bill Impact(HideBeforeFile)'!$D$6:$P$14,MATCH(A44,'For Bill Impact(HideBeforeFile)'!$C$58:$C$66,0),MATCH($H52,'For Bill Impact(HideBeforeFile)'!$D$57:$P$57,0)) -> 0.6290804449 | C52: =INDEX('For Bill Impact(HideBeforeFile)'!$D$19:$P$27,MATCH(A44,'For Bill Impact(HideBeforeFile)'!$C$58:$C$66,0),MATCH($H52,'For Bill Impact(HideBeforeFile)'!$D$57:$P$57,0)) -> 0.3240942935 | D52: =D46 -> 608.4504598 | E52: =INDEX('For Bill Impact(HideBeforeFile)'!$D$58:$P$66,MATCH(A44,'For Bill Impact(HideBeforeFile)'!$C$58:$C$66,0),MATCH($H52,'For Bill Impact(HideBeforeFile)'!$D$57:$P$57,0)) -> cents / m3 | H52: ='For Bill Impact(HideBeforeFile)'!$G$5 -> PGTVA
A53: =INDEX('For Bill Impact(HideBeforeFile)'!$D$45:$P$53,MATCH(A44,'For Bill Impact(HideBeforeFile)'!$C$58:$C$66,0),MATCH($H53,'For Bill Impact(HideBeforeFile)'!$D$57:$P$57,0)) -> UFGVA | B53: =INDEX('For Bill Impact(HideBeforeFile)'!$D$6:$P$14,MATCH(A44,'For Bill Impact(HideBeforeFile)'!$C$58:$C$66,0),MATCH($H53,'For Bill Impact(HideBeforeFile)'!$D$57:$P$57,0)) -> 1.316518199 | C53: =INDEX('For Bill Impact(HideBeforeFile)'!$D$19:$P$27,MATCH(A44,'For Bill Impact(HideBeforeFile)'!$C$58:$C$66,0),MATCH($H53,'For Bill Impact(HideBeforeFile)'!$D$57:$P$57,0)) -> 0.4269804258 | D53: =D46 -> 608.4504598 | E53: =INDEX('For Bill Impact(HideBeforeFile)'!$D$58:$P$66,MATCH(A44,'For Bill Impact(HideBeforeFile)'!$C$58:$C$66,0),MATCH($H53,'For Bill Impact(HideBeforeFile)'!$D$57:$P$57,0)) -> cents / m3 | H53: ='For Bill Impact(HideBeforeFile)'!$H$5 -> UFGVA
A54: =INDEX('For Bill Impact(HideBeforeFile)'!$D$45:$P$53,MATCH(A44,'For Bill Impact(HideBeforeFile)'!$C$58:$C$66,0),MATCH($H54,'For Bill Impact(HideBeforeFile)'!$D$57:$P$57,0)) -> 0 | B54: =INDEX('For Bill Impact(HideBeforeFile)'!$D$6:$P$14,MATCH(A44,'For Bill Impact(HideBeforeFile)'!$C$58:$C$66,0),MATCH($H54,'For Bill Impact(HideBeforeFile)'!$D$57:$P$57,0)) -> 0 | C54: =INDEX('For Bill Impact(HideBeforeFile)'!$D$19:$P$27,MATCH(A44,'For Bill Impact(HideBeforeFile)'!$C$58:$C$66,0),MATCH($H54,'For Bill Impact(HideBeforeFile)'!$D$57:$P$57,0)) -> 0 | D54: =INDEX('For Bill Impact(HideBeforeFile)'!$D$32:$P$40,MATCH(A44,'For Bill Impact(HideBeforeFile)'!$C$58:$C$66,0),MATCH($H54,'For Bill Impact(HideBeforeFile)'!$D$57:$P$57,0)) -> 12 | E54: =INDEX('For Bill Impact(HideBeforeFile)'!$D$58:$P$66,MATCH(A44,'For Bill Impact(HideBeforeFile)'!$C$58:$C$66,0),MATCH($H54,'For Bill Impact(HideBeforeFile)'!$D$57:$P$57,0)) -> $ / month | H54: ='For Bill Impact(HideBeforeFile)'!$I$5 -> 0
A55: =INDEX('For Bill Impact(HideBeforeFile)'!$D$45:$P$53,MATCH(A44,'For Bill Impact(HideBeforeFile)'!$C$58:$C$66,0),MATCH($H55,'For Bill Impact(HideBeforeFile)'!$D$57:$P$57,0)) -> 0 | B55: =INDEX('For Bill Impact(HideBeforeFile)'!$D$6:$P$14,MATCH(A44,'For Bill Impact(HideBeforeFile)'!$C$58:$C$66,0),MATCH($H55,'For Bill Impact(HideBeforeFile)'!$D$57:$P$57,0)) -> 0 | C55: =INDEX('For Bill Impact(HideBeforeFile)'!$D$19:$P$27,MATCH(A44,'For Bill Impact(HideBeforeFile)'!$C$58:$C$66,0),MATCH($H55,'For Bill Impact(HideBeforeFile)'!$D$57:$P$57,0)) -> 0 | D55: =D46 -> 608.4504598 | E55: =INDEX('For Bill Impact(HideBeforeFile)'!$D$58:$P$66,MATCH(A44,'For Bill Impact(HideBeforeFile)'!$C$58:$C$66,0),MATCH($H55,'For Bill Impact(HideBeforeFile)'!$D$57:$P$57,0)) -> $ / month | H55: ='For Bill Impact(HideBeforeFile)'!$J$5 -> 0
A56: =INDEX('For Bill Impact(HideBeforeFile)'!$D$45:$P$53,MATCH(A44,'For Bill Impact(HideBeforeFile)'!$C$58:$C$66,0),MATCH($H56,'For Bill Impact(HideBeforeFile)'!$D$57:$P$57,0)) -> 0 | B56: =INDEX('For Bill Impact(HideBeforeFile)'!$D$6:$P$14,MATCH(A44,'For Bill Impact(HideBeforeFile)'!$C$58:$C$66,0),MATCH($H56,'For Bill Impact(HideBeforeFile)'!$D$57:$P$57,0)) -> 0 | C56: =INDEX('For Bill Impact(HideBeforeFile)'!$D$19:$P$27,MATCH(A44,'For Bill Impact(HideBeforeFile)'!$C$58:$C$66,0),MATCH($H56,'For Bill Impact(HideBeforeFile)'!$D$57:$P$57,0)) -> 0 | D56: =INDEX('For Bill Impact(HideBeforeFile)'!$D$32:$P$40,MATCH(A44,'For Bill Impact(HideBeforeFile)'!$C$58:$C$66,0),MATCH($H56,'For Bill Impact(HideBeforeFile)'!$D$57:$P$57,0)) -> 12 | E56: =INDEX('For Bill Impact(HideBeforeFile)'!$D$58:$P$66,MATCH(A44,'For Bill Impact(HideBeforeFile)'!$C$58:$C$66,0),MATCH($H56,'For Bill Impact(HideBeforeFile)'!$D$57:$P$57,0)) -> $ / month | H56: ='For Bill Impact(HideBeforeFile)'!$K$5 -> 0
A58: Annual Billings | B58: Current | C58: Proposed | D58: Variance $ | E58: Variance %
A59: Commodity | B59: =B46*$D46/100 -> 109.9895896 | C59: =C46*$D46/100 -> 109.9895896 | D59: =C59-B59 -> 0 | E59: =IFERROR(D59/B59,"") -> 0 | H59: ='For Bill Impact(HideBeforeFile)'!$D$5 -> Commodity
A61: Distribution
A62: =IF(A47<>"",A47,"") -> Monthly Service Charge | B62: =B47*$D47 -> 288 | C62: =C47*$D47 -> 340.27281 | D62: =IFERROR(C62-B62,"") -> 52.27281001 | E62: =IFERROR(D62/B62,"") -> 0.1815028125 | H62: ='For Bill Impact(HideBeforeFile)'!$L$5 -> Dist. Customer Rate
A64: =IF(A48<>"",A48,"") -> Block 1 (First 1,000 m3 per month) | B64: =IFERROR(B48*$D48/100,"") -> 66.52188877 | C64: =IFERROR(C48*$D48/100,"") -> 53.46515035 | D64: =IFERROR(C64-B64,"") -> -13.05673842 | E64: =IFERROR(D64/B64,"") -> -0.1962773255 | H64: ='For Bill Impact(HideBeforeFile)'!$M$5 -> Dist. Vol. Rate Tier 1
A65: =IF(A49<>"",A49,"") -> Block 2 (Over 1,000 m3 per month) | B65: =IFERROR(B49*$D49/100,"") -> 0 | C65: =IFERROR(C49*$D49/100,"") -> 0 | D65: =IFERROR(C65-B65,"") -> 0 | E65: =IFERROR(D65/B65,"") ->  | H65: ='For Bill Impact(HideBeforeFile)'!$N$5 -> Dist. Vol. Rate Tier 2
A66: Total Distribution | B66: =SUM(B62:B65) -> 354.5218888 | C66: =SUM(C62:C65) -> 393.7379604 | D66: =SUM(D62:D65) -> 39.21607159 | E66: =IF(ISERROR(D66/B66),0,D66/B66) -> 0.1106167851
A68: Bill 32 | B68: 12 | C68: 12 | D68: =IFERROR(C68-B68,"") -> 0 | E68: =IFERROR(D68/B68,"") -> 0
A69: =IF(A50<>"",A50,"") -> Transportation | B69: =IFERROR(B50*$D50/100,"") -> 17.74290537 | C69: =IFERROR(C50*$D50/100,"") -> 17.74290537 | D69: =IFERROR(C69-B69,"") -> 0 | E69: =IFERROR(D69/B69,"") -> 0 | H69: ='For Bill Impact(HideBeforeFile)'!$E$5 -> Transportation
A71: Rate Riders
A72: =A51 -> REDA | B72: =B51*$D51 -> 0 | C72: =C51*$D51 -> 0.72 | D72: =IFERROR(C72-B72,"") -> 0.72 | E72: =IFERROR(D72/B72,"") ->  | H72: =H51 -> REDA
A73: PGTVA | B73: =IFERROR(B52*$D52/100,"") -> 3.827642859 | C73: =IFERROR(C52*$D52/100,"") -> 1.971953219 | D73: -1.855689641 | E73: -0.4848126402 | H73: PGTVA
A74: UFGVA | B74: =IFERROR(B53*$D53/100,"") -> 8.010361032 | C74: =IFERROR(C53*$D53/100,"") -> 2.597964364 | D74: -5.412396668 | E74: -0.6756744979 | H74: UFGVA
A75: 0 | B75: =B54*$D54 -> 0 | C75: =C54*$D54 -> 0 | D75: 0 | H75: 0
A76: 0 | B76: =IFERROR(B55*$D55/100,"") -> 0 | C76: =IFERROR(C55*$D55/100,"") -> 0 | D76: 0 | H76: 0
A77: 0 | B77: =B56*$D56 -> 0 | C77: =C56*$D56 -> 0 | D77: 0 | H77: 0
A78: Total Rate Riders | B78: =SUM(B72:B77) -> 11.83800389 | C78: =SUM(C72:C77) -> 5.289917583 | D78: =SUM(D72:D77) -> -6.548086309 | E78: =IF(ISERROR(D78/B78),0,D78/B78) -> -0.5531410843
A80: Total Bill | B80: =B59+B66+B68+B69+B78 -> 506.0923876 | C80: =C59+C66+C68+C69+C78 -> 538.7603729 | D80: =D59+D66+D68+D69+D78 -> 32.66798528 | E80: =IFERROR(D80/B80,"") -> 0.06454945002

Sheet G1. R1-GS Bill Impact
A1: ='D1a. Rate 1-Res Adjustment'!A1 -> EPCOR Natural Gas Limited Partnership
A2: ='D1a. Rate 1-Res Adjustment'!A2 -> EB-2025-0177
A3: =MID(CELL("filename",A3),FIND("]",CELL("filename",A3))+1,255) -> G1. R1-GS Bill Impact
A5: ='For Bill Impact(HideBeforeFile)'!C7 -> R1 - General Service | H5: Look-up
A6: Rates | B6: Current | C6: Proposed | D6: Bill Determinant | E6: Calculation
A7: =INDEX('For Bill Impact(HideBeforeFile)'!$D$45:$P$53,MATCH(A5,'For Bill Impact(HideBeforeFile)'!$C$58:$C$66,0),MATCH($H7,'For Bill Impact(HideBeforeFile)'!$D$57:$P$57,0)) -> Commodity | B7: =INDEX('For Bill Impact(HideBeforeFile)'!$D$6:$P$14,MATCH(A5,'For Bill Impact(HideBeforeFile)'!$C$58:$C$66,0),MATCH($H7,'For Bill Impact(HideBeforeFile)'!$D$57:$P$57,0)) -> 18.077 | C7: =INDEX('For Bill Impact(HideBeforeFile)'!$D$19:$P$27,MATCH(A5,'For Bill Impact(HideBeforeFile)'!$C$58:$C$66,0),MATCH($H7,'For Bill Impact(HideBeforeFile)'!$D$57:$P$57,0)) -> 18.077 | D7: =INDEX('For Bill Impact(HideBeforeFile)'!$D$32:$P$40,MATCH(A5,'For Bill Impact(HideBeforeFile)'!$C$58:$C$66,0),MATCH($H7,'For Bill Impact(HideBeforeFile)'!$D$57:$P$57,0)) -> 13712.70296 | E7: =INDEX('For Bill Impact(HideBeforeFile)'!$D$58:$P$66,MATCH(A5,'For Bill Impact(HideBeforeFile)'!$C$58:$C$66,0),MATCH($H7,'For Bill Impact(HideBeforeFile)'!$D$57:$P$57,0)) -> cents / m3 | H7: ='For Bill Impact(HideBeforeFile)'!$D$5 -> Commodity
A8: =INDEX('For Bill Impact(HideBeforeFile)'!$D$45:$P$53,MATCH(A5,'For Bill Impact(HideBeforeFile)'!$C$58:$C$66,0),MATCH($H8,'For Bill Impact(HideBeforeFile)'!$D$57:$P$57,0)) -> Monthly Service Charge | B8: =INDEX('For Bill Impact(HideBeforeFile)'!$D$6:$P$14,MATCH(A5,'For Bill Impact(HideBeforeFile)'!$C$58:$C$66,0),MATCH($H8,'For Bill Impact(HideBeforeFile)'!$D$57:$P$57,0)) -> 23.5 | C8: =INDEX('For Bill Impact(HideBeforeFile)'!$D$19:$P$27,MATCH(A5,'For Bill Impact(HideBeforeFile)'!$C$58:$C$66,0),MATCH($H8,'For Bill Impact(HideBeforeFile)'!$D$57:$P$57,0)) -> 27.76531609 | D8: =INDEX('For Bill Impact(HideBeforeFile)'!$D$32:$P$40,MATCH(A5,'For Bill Impact(HideBeforeFile)'!$C$58:$C$66,0),MATCH($H8,'For Bill Impact(HideBeforeFile)'!$D$57:$P$57,0)) -> 12 | E8: =INDEX('For Bill Impact(HideBeforeFile)'!$D$58:$P$66,MATCH(A5,'For Bill Impact(HideBeforeFile)'!$C$58:$C$66,0),MATCH($H8,'For Bill Impact(HideBeforeFile)'!$D$57:$P$57,0)) -> $ / month | H8: ='For Bill Impact(HideBeforeFile)'!$L$5 -> Dist. Customer Rate
A9: =INDEX('For Bill Impact(HideBeforeFile)'!$D$45:$P$53,MATCH(A5,'For Bill Impact(HideBeforeFile)'!$C$58:$C$66,0),MATCH($H9,'For Bill Impact(HideBeforeFile)'!$D$57:$P$57,0)) -> Block 1 (First 1,000 m3 per month) | B9: =INDEX('For Bill Impact(HideBeforeFile)'!$D$6:$P$14,MATCH(A5,'For Bill Impact(HideBeforeFile)'!$C$58:$C$66,0),MATCH($H9,'For Bill Impact(HideBeforeFile)'!$D$57:$P$57,0)) -> 12.0582 | C9: =INDEX('For Bill Impact(HideBeforeFile)'!$D$19:$P$27,MATCH(A5,'For Bill Impact(HideBeforeFile)'!$C$58:$C$66,0),MATCH($H9,'For Bill Impact(HideBeforeFile)'!$D$57:$P$57,0)) -> 12.02636997 | D9: =INDEX('For Bill Impact(HideBeforeFile)'!$D$32:$P$40,MATCH(A5,'For Bill Impact(HideBeforeFile)'!$C$58:$C$66,0),MATCH($H9,'For Bill Impact(HideBeforeFile)'!$D$57:$P$57,0)) -> 5217.130694 | E9: =INDEX('For Bill Impact(HideBeforeFile)'!$D$58:$P$66,MATCH(A5,'For Bill Impact(HideBeforeFile)'!$C$58:$C$66,0),MATCH($H9,'For Bill Impact(HideBeforeFile)'!$D$57:$P$57,0)) -> cents / m3 | H9: ='For Bill Impact(HideBeforeFile)'!$M$5 -> Dist. Vol. Rate Tier 1
A10: =INDEX('For Bill Impact(HideBeforeFile)'!$D$45:$P$53,MATCH(A5,'For Bill Impact(HideBeforeFile)'!$C$58:$C$66,0),MATCH($H10,'For Bill Impact(HideBeforeFile)'!$D$57:$P$57,0)) -> Block 2 (Over 1,000 m3 per month) | B10: =INDEX('For Bill Impact(HideBeforeFile)'!$D$6:$P$14,MATCH(A5,'For Bill Impact(HideBeforeFile)'!$C$58:$C$66,0),MATCH($H10,'For Bill Impact(HideBeforeFile)'!$D$57:$P$57,0)) -> 9.6276 | C10: =INDEX('For Bill Impact(HideBeforeFile)'!$D$19:$P$27,MATCH(A5,'For Bill Impact(HideBeforeFile)'!$C$58:$C$66,0),MATCH($H10,'For Bill Impact(HideBeforeFile)'!$D$57:$P$57,0)) -> 9.602186024 | D10: =INDEX('For Bill Impact(HideBeforeFile)'!$D$32:$P$40,MATCH(A5,'For Bill Impact(HideBeforeFile)'!$C$58:$C$66,0),MATCH($H10,'For Bill Impact(HideBeforeFile)'!$D$57:$P$57,0)) -> 8495.572267 | E10: =INDEX('For Bill Impact(HideBeforeFile)'!$D$58:$P$66,MATCH(A5,'For Bill Impact(HideBeforeFile)'!$C$58:$C$66,0),MATCH($H10,'For Bill Impact(HideBeforeFile)'!$D$57:$P$57,0)) -> cents / m3 | H10: ='For Bill Impact(HideBeforeFile)'!$N$5 -> Dist. Vol. Rate Tier 2
A11: =INDEX('For Bill Impact(HideBeforeFile)'!$D$45:$P$53,MATCH(A5,'For Bill Impact(HideBeforeFile)'!$C$58:$C$66,0),MATCH($H11,'For Bill Impact(HideBeforeFile)'!$D$57:$P$57,0)) -> Transportation | B11: =INDEX('For Bill Impact(HideBeforeFile)'!$D$6:$P$14,MATCH(A5,'For Bill Impact(HideBeforeFile)'!$C$58:$C$66,0),MATCH($H11,'For Bill Impact(HideBeforeFile)'!$D$57:$P$57,0)) -> 2.916080527 | C11: =INDEX('For Bill Impact(HideBeforeFile)'!$D$19:$P$27,MATCH(A5,'For Bill Impact(HideBeforeFile)'!$C$58:$C$66,0),MATCH($H11,'For Bill Impact(HideBeforeFile)'!$D$57:$P$57,0)) -> 2.916080527 | D11: =INDEX('For Bill Impact(HideBeforeFile)'!$D$32:$P$40,MATCH(A5,'For Bill Impact(HideBeforeFile)'!$C$58:$C$66,0),MATCH($H11,'For Bill Impact(HideBeforeFile)'!$D$57:$P$57,0)) -> 13712.70296 | E11: =INDEX('For Bill Impact(HideBeforeFile)'!$D$58:$P$66,MATCH(A5,'For Bill Impact(HideBeforeFile)'!$C$58:$C$66,0),MATCH($H11,'For Bill Impact(HideBeforeFile)'!$D$57:$P$57,0)) -> cents / m3 | H11: ='For Bill Impact(HideBeforeFile)'!$E$5 -> Transportation
A12: =INDEX('For Bill Impact(HideBeforeFile)'!$D$45:$P$53,MATCH(A5,'For Bill Impact(HideBeforeFile)'!$C$58:$C$66,0),MATCH($H12,'For Bill Impact(HideBeforeFile)'!$D$57:$P$57,0)) -> REDA | B12: =INDEX('For Bill Impact(HideBeforeFile)'!$D$6:$P$14,MATCH(A5,'For Bill Impact(HideBeforeFile)'!$C$58:$C$66,0),MATCH($H12,'For Bill Impact(HideBeforeFile)'!$D$57:$P$57,0)) -> 0 | C12: =INDEX('For Bill Impact(HideBeforeFile)'!$D$19:$P$27,MATCH(A5,'For Bill Impact(HideBeforeFile)'!$C$58:$C$66,0),MATCH($H12,'For Bill Impact(HideBeforeFile)'!$D$57:$P$57,0)) -> 0.06 | D12: =INDEX('For Bill Impact(HideBeforeFile)'!$D$32:$P$40,MATCH(A5,'For Bill Impact(HideBeforeFile)'!$C$58:$C$66,0),MATCH($H12,'For Bill Impact(HideBeforeFile)'!$D$57:$P$57,0)) -> 12 | E12: =INDEX('For Bill Impact(HideBeforeFile)'!$D$58:$P$66,MATCH(A5,'For Bill Impact(HideBeforeFile)'!$C$58:$C$66,0),MATCH($H12,'For Bill Impact(HideBeforeFile)'!$D$57:$P$57,0)) -> $ / month | H12: ='For Bill Impact(HideBeforeFile)'!$F$5 -> REDA
A13: =INDEX('For Bill Impact(HideBeforeFile)'!$D$45:$P$53,MATCH(A5,'For Bill Impact(HideBeforeFile)'!$C$58:$C$66,0),MATCH($H13,'For Bill Impact(HideBeforeFile)'!$D$57:$P$57,0)) -> PGTVA | B13: =INDEX('For Bill Impact(HideBeforeFile)'!$D$6:$P$14,MATCH(A5,'For Bill Impact(HideBeforeFile)'!$C$58:$C$66,0),MATCH($H13,'For Bill Impact(HideBeforeFile)'!$D$57:$P$57,0)) -> 0.6290804449 | C13: =INDEX('For Bill Impact(HideBeforeFile)'!$D$19:$P$27,MATCH(A5,'For Bill Impact(HideBeforeFile)'!$C$58:$C$66,0),MATCH($H13,'For Bill Impact(HideBeforeFile)'!$D$57:$P$57,0)) -> 0.3240942935 | D13: =INDEX('For Bill Impact(HideBeforeFile)'!$D$32:$P$40,MATCH(A5,'For Bill Impact(HideBeforeFile)'!$C$58:$C$66,0),MATCH($H13,'For Bill Impact(HideBeforeFile)'!$D$57:$P$57,0)) -> 13712.70296 | E13: =INDEX('For Bill Impact(HideBeforeFile)'!$D$58:$P$66,MATCH(A5,'For Bill Impact(HideBeforeFile)'!$C$58:$C$66,0),MATCH($H13,'For Bill Impact(HideBeforeFile)'!$D$57:$P$57,0)) -> cents / m3 | H13: ='For Bill Impact(HideBeforeFile)'!$G$5 -> PGTVA
A14: =INDEX('For Bill Impact(HideBeforeFile)'!$D$45:$P$53,MATCH(A5,'For Bill Impact(HideBeforeFile)'!$C$58:$C$66,0),MATCH($H14,'For Bill Impact(HideBeforeFile)'!$D$57:$P$57,0)) -> UFGVA | B14: =INDEX('For Bill Impact(HideBeforeFile)'!$D$6:$P$14,MATCH(A5,'For Bill Impact(HideBeforeFile)'!$C$58:$C$66,0),MATCH($H14,'For Bill Impact(HideBeforeFile)'!$D$57:$P$57,0)) -> 1.316518199 | C14: =INDEX('For Bill Impact(HideBeforeFile)'!$D$19:$P$27,MATCH(A5,'For Bill Impact(HideBeforeFile)'!$C$58:$C$66,0),MATCH($H14,'For Bill Impact(HideBeforeFile)'!$D$57:$P$57,0)) -> 0.4269804258 | D14: =INDEX('For Bill Impact(HideBeforeFile)'!$D$32:$P$40,MATCH(A5,'For Bill Impact(HideBeforeFile)'!$C$58:$C$66,0),MATCH($H14,'For Bill Impact(HideBeforeFile)'!$D$57:$P$57,0)) -> 13712.70296 | E14: =INDEX('For Bill Impact(HideBeforeFile)'!$D$58:$P$66,MATCH(A5,'For Bill Impact(HideBeforeFile)'!$C$58:$C$66,0),MATCH($H14,'For Bill Impact(HideBeforeFile)'!$D$57:$P$57,0)) -> cents / m3 | H14: ='For Bill Impact(HideBeforeFile)'!$H$5 -> UFGVA
A15: =INDEX('For Bill Impact(HideBeforeFile)'!$D$45:$P$53,MATCH(A5,'For Bill Impact(HideBeforeFile)'!$C$58:$C$66,0),MATCH($H15,'For Bill Impact(HideBeforeFile)'!$D$57:$P$57,0)) -> 0 | B15: =INDEX('For Bill Impact(HideBeforeFile)'!$D$6:$P$14,MATCH(A5,'For Bill Impact(HideBeforeFile)'!$C$58:$C$66,0),MATCH($H15,'For Bill Impact(HideBeforeFile)'!$D$57:$P$57,0)) -> 0 | C15: =INDEX('For Bill Impact(HideBeforeFile)'!$D$19:$P$27,MATCH(A5,'For Bill Impact(HideBeforeFile)'!$C$58:$C$66,0),MATCH($H15,'For Bill Impact(HideBeforeFile)'!$D$57:$P$57,0)) -> 0 | D15: =INDEX('For Bill Impact(HideBeforeFile)'!$D$32:$P$40,MATCH(A5,'For Bill Impact(HideBeforeFile)'!$C$58:$C$66,0),MATCH($H15,'For Bill Impact(HideBeforeFile)'!$D$57:$P$57,0)) -> 12 | E15: =INDEX('For Bill Impact(HideBeforeFile)'!$D$58:$P$66,MATCH(A5,'For Bill Impact(HideBeforeFile)'!$C$58:$C$66,0),MATCH($H15,'For Bill Impact(HideBeforeFile)'!$D$57:$P$57,0)) -> $ / month | H15: ='For Bill Impact(HideBeforeFile)'!$I$5 -> 0
A16: =INDEX('For Bill Impact(HideBeforeFile)'!$D$45:$P$53,MATCH(A5,'For Bill Impact(HideBeforeFile)'!$C$58:$C$66,0),MATCH($H16,'For Bill Impact(HideBeforeFile)'!$D$57:$P$57,0)) -> 0 | B16: =INDEX('For Bill Impact(HideBeforeFile)'!$D$6:$P$14,MATCH(A5,'For Bill Impact(HideBeforeFile)'!$C$58:$C$66,0),MATCH($H16,'For Bill Impact(HideBeforeFile)'!$D$57:$P$57,0)) -> 0 | C16: =INDEX('For Bill Impact(HideBeforeFile)'!$D$19:$P$27,MATCH(A5,'For Bill Impact(HideBeforeFile)'!$C$58:$C$66,0),MATCH($H16,'For Bill Impact(HideBeforeFile)'!$D$57:$P$57,0)) -> 0 | D16: =INDEX('For Bill Impact(HideBeforeFile)'!$D$32:$P$40,MATCH(A5,'For Bill Impact(HideBeforeFile)'!$C$58:$C$66,0),MATCH($H16,'For Bill Impact(HideBeforeFile)'!$D$57:$P$57,0)) -> 12 | E16: =INDEX('For Bill Impact(HideBeforeFile)'!$D$58:$P$66,MATCH(A5,'For Bill Impact(HideBeforeFile)'!$C$58:$C$66,0),MATCH($H16,'For Bill Impact(HideBeforeFile)'!$D$57:$P$57,0)) -> $ / month | H16: ='For Bill Impact(HideBeforeFile)'!$J$5 -> 0
A17: =INDEX('For Bill Impact(HideBeforeFile)'!$D$45:$P$53,MATCH(A5,'For Bill Impact(HideBeforeFile)'!$C$58:$C$66,0),MATCH($H17,'For Bill Impact(HideBeforeFile)'!$D$57:$P$57,0)) -> 0 | B17: =INDEX('For Bill Impact(HideBeforeFile)'!$D$6:$P$14,MATCH(A5,'For Bill Impact(HideBeforeFile)'!$C$58:$C$66,0),MATCH($H17,'For Bill Impact(HideBeforeFile)'!$D$57:$P$57,0)) -> 0 | C17: =INDEX('For Bill Impact(HideBeforeFile)'!$D$19:$P$27,MATCH(A5,'For Bill Impact(HideBeforeFile)'!$C$58:$C$66,0),MATCH($H17,'For Bill Impact(HideBeforeFile)'!$D$57:$P$57,0)) -> 0 | D17: =INDEX('For Bill Impact(HideBeforeFile)'!$D$32:$P$40,MATCH(A5,'For Bill Impact(HideBeforeFile)'!$C$58:$C$66,0),MATCH($H17,'For Bill Impact(HideBeforeFile)'!$D$57:$P$57,0)) -> 12 | E17: =INDEX('For Bill Impact(HideBeforeFile)'!$D$58:$P$66,MATCH(A5,'For Bill Impact(HideBeforeFile)'!$C$58:$C$66,0),MATCH($H17,'For Bill Impact(HideBeforeFile)'!$D$57:$P$57,0)) -> $ / month | H17: ='For Bill Impact(HideBeforeFile)'!$K$5 -> 0
A19: Annual Billings | B19: Current | C19: Proposed | D19: Variance $ | E19: Variance %
A20: Commodity | B20: =B7*$D7/100 -> 2478.845314 | C20: =C7*$D7/100 -> 2478.845314 | D20: =C20-B20 -> 0 | E20: =IFERROR(D20/B20,"") -> 0 | H20: ='For Bill Impact(HideBeforeFile)'!$D$5 -> Commodity
A22: Distribution
A23: =IF(A8<>"",A8,"") -> Monthly Service Charge | B23: =B8*$D8 -> 282 | C23: =C8*$D8 -> 333.1837931 | D23: =IFERROR(C23-B23,"") -> 51.18379313 | E23: =IFERROR(D23/B23,"") -> 0.1815028125 | H23: ='For Bill Impact(HideBeforeFile)'!$L$5 -> Dist. Customer Rate
A25: =IF(A9<>"",A9,"") -> Block 1 (First 1,000 m3 per month) | B25: =IFERROR(B9*$D9/100,"") -> 629.0920534 | C25: =IFERROR(C9*$D9/100,"") -> 627.4314391 | D25: =IFERROR(C25-B25,"") -> -1.660614288 | E25: =IFERROR(D25/B25,"") -> -0.002639699992 | H25: ='For Bill Impact(HideBeforeFile)'!$M$5 -> Dist. Vol. Rate Tier 1
A26: =IF(A10<>"",A10,"") -> Block 2 (Over 1,000 m3 per month) | B26: =IFERROR(B10*$D10/100,"") -> 817.9197156 | C26: =IFERROR(C10*$D10/100,"") -> 815.7606529 | D26: =IFERROR(C26-B26,"") -> -2.159062666 | E26: =IFERROR(D26/B26,"") -> -0.002639699992 | H26: ='For Bill Impact(HideBeforeFile)'!$N$5 -> Dist. Vol. Rate Tier 2
A27: Total Distribution | B27: =SUM(B23:B26) -> 1729.011769 | C27: =SUM(C23:C26) -> 1776.375885 | D27: =SUM(D23:D26) -> 47.36411618 | E27: =IF(ISERROR(D27/B27),0,D27/B27) -> 0.02739375002
A29: Bill 32 | B29: 12 | C29: 12 | D29: =IFERROR(C29-B29,"") -> 0 | E29: =IFERROR(D29/B29,"") -> 0
A30: =IF(A11<>"",A11,"") -> Transportation | B30: =IFERROR(B11*$D11/100,"") -> 399.8734608 | C30: =IFERROR(C11*$D11/100,"") -> 399.8734608 | D30: =IFERROR(C30-B30,"") -> 0 | E30: =IFERROR(D30/B30,"") -> 0 | H30: ='For Bill Impact(HideBeforeFile)'!$E$5 -> Transportation
A32: Rate Riders
A33: =A12 -> REDA | B33: =B12*$D12 -> 0 | C33: =C12*$D12 -> 0.72 | D33: =IFERROR(C33-B33,"") -> 0.72 | E33: =IFERROR(D33/B33,"") ->  | H33: =H12 -> REDA
A34: PGTVA | B34: =IFERROR(B13*$D13/100,"") -> 86.2639328 | C34: =IFERROR(C13*$D13/100,"") -> 44.44208778 | D34: -41.82184502 | E34: -0.4848126402 | H34: =H13 -> PGTVA
A35: UFGVA | B35: =IFERROR(B14*$D14/100,"") -> 180.53023 | C35: =IFERROR(C14*$D14/100,"") -> 58.55055749 | D35: -121.9796725 | E35: -0.6756744979 | H35: UFGVA
A36: 0 | B36: =B15*$D15 -> 0 | C36: =C15*$D15 -> 0 | D36: 0 | H36: 0
A37: 0 | B37: =IFERROR(B16*$D16/100,"") -> 0 | C37: =IFERROR(C16*$D16/100,"") -> 0 | D37: 0 | H37: 0
A38: 0 | B38: =B17*$D17 -> 0 | C38: =C17*$D17 -> 0 | D38: 0 | H38: 0
A39: Total Rate Riders | B39: =SUM(B33:B38) -> 266.7941628 | C39: =SUM(C33:C38) -> 103.7126453 | D39: =SUM(D33:D38) -> -163.0815175 | E39: =IF(ISERROR(D39/B39),0,D39/B39) -> -0.6112634393
A41: Total Bill | B41: =B20+B27+B29+B30+B39 -> 4886.524707 | C41: =C20+C27+C29+C30+C39 -> 4770.807306 | D41: =D20+D27+D29+D30+D39 -> -115.7174014 | E41: =IFERROR(D41/B41,"") -> -0.02368092014
A43: R1 - General Service - Bottom 10 Percentile
A44: =A5 -> R1 - General Service | H44: Look-up
A45: Rates | B45: Current | C45: Proposed | D45: Bill Determinant | E45: Calculation
A46: =INDEX('For Bill Impact(HideBeforeFile)'!$D$45:$P$53,MATCH(A44,'For Bill Impact(HideBeforeFile)'!$C$58:$C$66,0),MATCH($H46,'For Bill Impact(HideBeforeFile)'!$D$57:$P$57,0)) -> Commodity | B46: =INDEX('For Bill Impact(HideBeforeFile)'!$D$6:$P$14,MATCH(A44,'For Bill Impact(HideBeforeFile)'!$C$58:$C$66,0),MATCH($H46,'For Bill Impact(HideBeforeFile)'!$D$57:$P$57,0)) -> 18.077 | C46: =INDEX('For Bill Impact(HideBeforeFile)'!$D$19:$P$27,MATCH(A44,'For Bill Impact(HideBeforeFile)'!$C$58:$C$66,0),MATCH($H46,'For Bill Impact(HideBeforeFile)'!$D$57:$P$57,0)) -> 18.077 | D46: 1594 | E46: =INDEX('For Bill Impact(HideBeforeFile)'!$D$58:$P$66,MATCH(A44,'For Bill Impact(HideBeforeFile)'!$C$58:$C$66,0),MATCH($H46,'For Bill Impact(HideBeforeFile)'!$D$57:$P$57,0)) -> cents / m3 | H46: ='For Bill Impact(HideBeforeFile)'!$D$5 -> Commodity
A47: =INDEX('For Bill Impact(HideBeforeFile)'!$D$45:$P$53,MATCH(A44,'For Bill Impact(HideBeforeFile)'!$C$58:$C$66,0),MATCH($H47,'For Bill Impact(HideBeforeFile)'!$D$57:$P$57,0)) -> Monthly Service Charge | B47: =INDEX('For Bill Impact(HideBeforeFile)'!$D$6:$P$14,MATCH(A44,'For Bill Impact(HideBeforeFile)'!$C$58:$C$66,0),MATCH($H47,'For Bill Impact(HideBeforeFile)'!$D$57:$P$57,0)) -> 23.5 | C47: =INDEX('For Bill Impact(HideBeforeFile)'!$D$19:$P$27,MATCH(A44,'For Bill Impact(HideBeforeFile)'!$C$58:$C$66,0),MATCH($H47,'For Bill Impact(HideBeforeFile)'!$D$57:$P$57,0)) -> 27.76531609 | D47: =INDEX('For Bill Impact(HideBeforeFile)'!$D$32:$P$40,MATCH(A44,'For Bill Impact(HideBeforeFile)'!$C$58:$C$66,0),MATCH($H47,'For Bill Impact(HideBeforeFile)'!$D$57:$P$57,0)) -> 12 | E47: =INDEX('For Bill Impact(HideBeforeFile)'!$D$58:$P$66,MATCH(A44,'For Bill Impact(HideBeforeFile)'!$C$58:$C$66,0),MATCH($H47,'For Bill Impact(HideBeforeFile)'!$D$57:$P$57,0)) -> $ / month | H47: ='For Bill Impact(HideBeforeFile)'!$L$5 -> Dist. Customer Rate
A48: =INDEX('For Bill Impact(HideBeforeFile)'!$D$45:$P$53,MATCH(A44,'For Bill Impact(HideBeforeFile)'!$C$58:$C$66,0),MATCH($H48,'For Bill Impact(HideBeforeFile)'!$D$57:$P$57,0)) -> Block 1 (First 1,000 m3 per month) | B48: =INDEX('For Bill Impact(HideBeforeFile)'!$D$6:$P$14,MATCH(A44,'For Bill Impact(HideBeforeFile)'!$C$58:$C$66,0),MATCH($H48,'For Bill Impact(HideBeforeFile)'!$D$57:$P$57,0)) -> 12.0582 | C48: =INDEX('For Bill Impact(HideBeforeFile)'!$D$19:$P$27,MATCH(A44,'For Bill Impact(HideBeforeFile)'!$C$58:$C$66,0),MATCH($H48,'For Bill Impact(HideBeforeFile)'!$D$57:$P$57,0)) -> 12.02636997 | D48: =D46 -> 1594 | E48: =INDEX('For Bill Impact(HideBeforeFile)'!$D$58:$P$66,MATCH(A44,'For Bill Impact(HideBeforeFile)'!$C$58:$C$66,0),MATCH($H48,'For Bill Impact(HideBeforeFile)'!$D$57:$P$57,0)) -> cents / m3 | H48: ='For Bill Impact(HideBeforeFile)'!$M$5 -> Dist. Vol. Rate Tier 1
A49: =INDEX('For Bill Impact(HideBeforeFile)'!$D$45:$P$53,MATCH(A44,'For Bill Impact(HideBeforeFile)'!$C$58:$C$66,0),MATCH($H49,'For Bill Impact(HideBeforeFile)'!$D$57:$P$57,0)) -> Block 2 (Over 1,000 m3 per month) | B49: =INDEX('For Bill Impact(HideBeforeFile)'!$D$6:$P$14,MATCH(A44,'For Bill Impact(HideBeforeFile)'!$C$58:$C$66,0),MATCH($H49,'For Bill Impact(HideBeforeFile)'!$D$57:$P$57,0)) -> 9.6276 | C49: =INDEX('For Bill Impact(HideBeforeFile)'!$D$19:$P$27,MATCH(A44,'For Bill Impact(HideBeforeFile)'!$C$58:$C$66,0),MATCH($H49,'For Bill Impact(HideBeforeFile)'!$D$57:$P$57,0)) -> 9.602186024 | D49: 0 | E49: =INDEX('For Bill Impact(HideBeforeFile)'!$D$58:$P$66,MATCH(A44,'For Bill Impact(HideBeforeFile)'!$C$58:$C$66,0),MATCH($H49,'For Bill Impact(HideBeforeFile)'!$D$57:$P$57,0)) -> cents / m3 | H49: ='For Bill Impact(HideBeforeFile)'!$N$5 -> Dist. Vol. Rate Tier 2
A50: =INDEX('For Bill Impact(HideBeforeFile)'!$D$45:$P$53,MATCH(A44,'For Bill Impact(HideBeforeFile)'!$C$58:$C$66,0),MATCH($H50,'For Bill Impact(HideBeforeFile)'!$D$57:$P$57,0)) -> Transportation | B50: =INDEX('For Bill Impact(HideBeforeFile)'!$D$6:$P$14,MATCH(A44,'For Bill Impact(HideBeforeFile)'!$C$58:$C$66,0),MATCH($H50,'For Bill Impact(HideBeforeFile)'!$D$57:$P$57,0)) -> 2.916080527 | C50: =INDEX('For Bill Impact(HideBeforeFile)'!$D$19:$P$27,MATCH(A44,'For Bill Impact(HideBeforeFile)'!$C$58:$C$66,0),MATCH($H50,'For Bill Impact(HideBeforeFile)'!$D$57:$P$57,0)) -> 2.916080527 | D50: =D46 -> 1594 | E50: =INDEX('For Bill Impact(HideBeforeFile)'!$D$58:$P$66,MATCH(A44,'For Bill Impact(HideBeforeFile)'!$C$58:$C$66,0),MATCH($H50,'For Bill Impact(HideBeforeFile)'!$D$57:$P$57,0)) -> cents / m3 | H50: ='For Bill Impact(HideBeforeFile)'!$E$5 -> Transportation
A51: =INDEX('For Bill Impact(HideBeforeFile)'!$D$45:$P$53,MATCH(A44,'For Bill Impact(HideBeforeFile)'!$C$58:$C$66,0),MATCH($H51,'For Bill Impact(HideBeforeFile)'!$D$57:$P$57,0)) -> REDA | B51: =INDEX('For Bill Impact(HideBeforeFile)'!$D$6:$P$14,MATCH(A44,'For Bill Impact(HideBeforeFile)'!$C$58:$C$66,0),MATCH($H51,'For Bill Impact(HideBeforeFile)'!$D$57:$P$57,0)) -> 0 | C51: =INDEX('For Bill Impact(HideBeforeFile)'!$D$19:$P$27,MATCH(A44,'For Bill Impact(HideBeforeFile)'!$C$58:$C$66,0),MATCH($H51,'For Bill Impact(HideBeforeFile)'!$D$57:$P$57,0)) -> 0.06 | D51: =INDEX('For Bill Impact(HideBeforeFile)'!$D$32:$P$40,MATCH(A44,'For Bill Impact(HideBeforeFile)'!$C$58:$C$66,0),MATCH($H51,'For Bill Impact(HideBeforeFile)'!$D$57:$P$57,0)) -> 12 | E51: =INDEX('For Bill Impact(HideBeforeFile)'!$D$58:$P$66,MATCH(A44,'For Bill Impact(HideBeforeFile)'!$C$58:$C$66,0),MATCH($H51,'For Bill Impact(HideBeforeFile)'!$D$57:$P$57,0)) -> $ / month | H51: ='For Bill Impact(HideBeforeFile)'!$F$5 -> REDA
A52: =INDEX('For Bill Impact(HideBeforeFile)'!$D$45:$P$53,MATCH(A44,'For Bill Impact(HideBeforeFile)'!$C$58:$C$66,0),MATCH($H52,'For Bill Impact(HideBeforeFile)'!$D$57:$P$57,0)) -> PGTVA | B52: =INDEX('For Bill Impact(HideBeforeFile)'!$D$6:$P$14,MATCH(A44,'For Bill Impact(HideBeforeFile)'!$C$58:$C$66,0),MATCH($H52,'For Bill Impact(HideBeforeFile)'!$D$57:$P$57,0)) -> 0.6290804449 | C52: =INDEX('For Bill Impact(HideBeforeFile)'!$D$19:$P$27,MATCH(A44,'For Bill Impact(HideBeforeFile)'!$C$58:$C$66,0),MATCH($H52,'For Bill Impact(HideBeforeFile)'!$D$57:$P$57,0)) -> 0.3240942935 | D52: =D46 -> 1594 | E52: =INDEX('For Bill Impact(HideBeforeFile)'!$D$58:$P$66,MATCH(A44,'For Bill Impact(HideBeforeFile)'!$C$58:$C$66,0),MATCH($H52,'For Bill Impact(HideBeforeFile)'!$D$57:$P$57,0)) -> cents / m3 | H52: ='For Bill Impact(HideBeforeFile)'!$G$5 -> PGTVA
A53: =INDEX('For Bill Impact(HideBeforeFile)'!$D$45:$P$53,MATCH(A44,'For Bill Impact(HideBeforeFile)'!$C$58:$C$66,0),MATCH($H53,'For Bill Impact(HideBeforeFile)'!$D$57:$P$57,0)) -> UFGVA | B53: =INDEX('For Bill Impact(HideBeforeFile)'!$D$6:$P$14,MATCH(A44,'For Bill Impact(HideBeforeFile)'!$C$58:$C$66,0),MATCH($H53,'For Bill Impact(HideBeforeFile)'!$D$57:$P$57,0)) -> 1.316518199 | C53: =INDEX('For Bill Impact(HideBeforeFile)'!$D$19:$P$27,MATCH(A44,'For Bill Impact(HideBeforeFile)'!$C$58:$C$66,0),MATCH($H53,'For Bill Impact(HideBeforeFile)'!$D$57:$P$57,0)) -> 0.4269804258 | D53: =D46 -> 1594 | E53: =INDEX('For Bill Impact(HideBeforeFile)'!$D$58:$P$66,MATCH(A44,'For Bill Impact(HideBeforeFile)'!$C$58:$C$66,0),MATCH($H53,'For Bill Impact(HideBeforeFile)'!$D$57:$P$57,0)) -> cents / m3 | H53: ='For Bill Impact(HideBeforeFile)'!$H$5 -> UFGVA
A54: =INDEX('For Bill Impact(HideBeforeFile)'!$D$45:$P$53,MATCH(A44,'For Bill Impact(HideBeforeFile)'!$C$58:$C$66,0),MATCH($H54,'For Bill Impact(HideBeforeFile)'!$D$57:$P$57,0)) -> 0 | B54: =INDEX('For Bill Impact(HideBeforeFile)'!$D$6:$P$14,MATCH(A44,'For Bill Impact(HideBeforeFile)'!$C$58:$C$66,0),MATCH($H54,'For Bill Impact(HideBeforeFile)'!$D$57:$P$57,0)) -> 0 | C54: =INDEX('For Bill Impact(HideBeforeFile)'!$D$19:$P$27,MATCH(A44,'For Bill Impact(HideBeforeFile)'!$C$58:$C$66,0),MATCH($H54,'For Bill Impact(HideBeforeFile)'!$D$57:$P$57,0)) -> 0 | D54: =INDEX('For Bill Impact(HideBeforeFile)'!$D$32:$P$40,MATCH(A44,'For Bill Impact(HideBeforeFile)'!$C$58:$C$66,0),MATCH($H54,'For Bill Impact(HideBeforeFile)'!$D$57:$P$57,0)) -> 12 | E54: =INDEX('For Bill Impact(HideBeforeFile)'!$D$58:$P$66,MATCH(A44,'For Bill Impact(HideBeforeFile)'!$C$58:$C$66,0),MATCH($H54,'For Bill Impact(HideBeforeFile)'!$D$57:$P$57,0)) -> $ / month | H54: ='For Bill Impact(HideBeforeFile)'!$I$5 -> 0
A55: =INDEX('For Bill Impact(HideBeforeFile)'!$D$45:$P$53,MATCH(A44,'For Bill Impact(HideBeforeFile)'!$C$58:$C$66,0),MATCH($H55,'For Bill Impact(HideBeforeFile)'!$D$57:$P$57,0)) -> 0 | B55: =INDEX('For Bill Impact(HideBeforeFile)'!$D$6:$P$14,MATCH(A44,'For Bill Impact(HideBeforeFile)'!$C$58:$C$66,0),MATCH($H55,'For Bill Impact(HideBeforeFile)'!$D$57:$P$57,0)) -> 0 | C55: =INDEX('For Bill Impact(HideBeforeFile)'!$D$19:$P$27,MATCH(A44,'For Bill Impact(HideBeforeFile)'!$C$58:$C$66,0),MATCH($H55,'For Bill Impact(HideBeforeFile)'!$D$57:$P$57,0)) -> 0 | D55: =D46 -> 1594 | E55: =INDEX('For Bill Impact(HideBeforeFile)'!$D$58:$P$66,MATCH(A44,'For Bill Impact(HideBeforeFile)'!$C$58:$C$66,0),MATCH($H55,'For Bill Impact(HideBeforeFile)'!$D$57:$P$57,0)) -> $ / month | H55: ='For Bill Impact(HideBeforeFile)'!$J$5 -> 0
A56: =INDEX('For Bill Impact(HideBeforeFile)'!$D$45:$P$53,MATCH(A44,'For Bill Impact(HideBeforeFile)'!$C$58:$C$66,0),MATCH($H56,'For Bill Impact(HideBeforeFile)'!$D$57:$P$57,0)) -> 0 | B56: =INDEX('For Bill Impact(HideBeforeFile)'!$D$6:$P$14,MATCH(A44,'For Bill Impact(HideBeforeFile)'!$C$58:$C$66,0),MATCH($H56,'For Bill Impact(HideBeforeFile)'!$D$57:$P$57,0)) -> 0 | C56: =INDEX('For Bill Impact(HideBeforeFile)'!$D$19:$P$27,MATCH(A44,'For Bill Impact(HideBeforeFile)'!$C$58:$C$66,0),MATCH($H56,'For Bill Impact(HideBeforeFile)'!$D$57:$P$57,0)) -> 0 | D56: =INDEX('For Bill Impact(HideBeforeFile)'!$D$32:$P$40,MATCH(A44,'For Bill Impact(HideBeforeFile)'!$C$58:$C$66,0),MATCH($H56,'For Bill Impact(HideBeforeFile)'!$D$57:$P$57,0)) -> 12 | E56: =INDEX('For Bill Impact(HideBeforeFile)'!$D$58:$P$66,MATCH(A44,'For Bill Impact(HideBeforeFile)'!$C$58:$C$66,0),MATCH($H56,'For Bill Impact(HideBeforeFile)'!$D$57:$P$57,0)) -> $ / month | H56: ='For Bill Impact(HideBeforeFile)'!$K$5 -> 0
A58: Annual Billings | B58: Current | C58: Proposed | D58: Variance $ | E58: Variance %
A59: Commodity | B59: =B46*$D46/100 -> 288.14738 | C59: =C46*$D46/100 -> 288.14738 | D59: =C59-B59 -> 0 | E59: =IFERROR(D59/B59,"") -> 0 | H59: ='For Bill Impact(HideBeforeFile)'!$D$5 -> Commodity
A61: Distribution
A62: =IF(A47<>"",A47,"") -> Monthly Service Charge | B62: =B47*$D47 -> 282 | C62: =C47*$D47 -> 333.1837931 | D62: =IFERROR(C62-B62,"") -> 51.18379313 | E62: =IFERROR(D62/B62,"") -> 0.1815028125 | H62: ='For Bill Impact(HideBeforeFile)'!$L$5 -> Dist. Customer Rate
A64: =IF(A48<>"",A48,"") -> Block 1 (First 1,000 m3 per month) | B64: =IFERROR(B48*$D48/100,"") -> 192.207708 | C64: =IFERROR(C48*$D48/100,"") -> 191.7003373 | D64: =IFERROR(C64-B64,"") -> -0.5073706852 | E64: =IFERROR(D64/B64,"") -> -0.002639699992 | H64: ='For Bill Impact(HideBeforeFile)'!$M$5 -> Dist. Vol. Rate Tier 1
A65: =IF(A49<>"",A49,"") -> Block 2 (Over 1,000 m3 per month) | B65: =IFERROR(B49*$D49/100,"") -> 0 | C65: =IFERROR(C49*$D49/100,"") -> 0 | D65: =IFERROR(C65-B65,"") -> 0 | E65: =IFERROR(D65/B65,"") ->  | H65: ='For Bill Impact(HideBeforeFile)'!$N$5 -> Dist. Vol. Rate Tier 2
A66: Total Distribution | B66: =SUM(B62:B65) -> 474.207708 | C66: =SUM(C62:C65) -> 524.8841304 | D66: =SUM(D62:D65) -> 50.67642245 | E66: =IF(ISERROR(D66/B66),0,D66/B66) -> 0.1068654549
A68: Bill 32 | B68: 12 | C68: 12 | D68: =IFERROR(C68-B68,"") -> 0 | E68: =IFERROR(D68/B68,"") -> 0
A69: =IF(A50<>"",A50,"") -> Transportation | B69: =IFERROR(B50*$D50/100,"") -> 46.4823236 | C69: =IFERROR(C50*$D50/100,"") -> 46.4823236 | D69: =IFERROR(C69-B69,"") -> 0 | E69: =IFERROR(D69/B69,"") -> 0 | H69: ='For Bill Impact(HideBeforeFile)'!$E$5 -> Transportation
A71: Rate Riders
A72: =A51 -> REDA | B72: =B51*$D51 -> 0 | C72: =C51*$D51 -> 0.72 | D72: =IFERROR(C72-B72,"") -> 0.72 | E72: =IFERROR(D72/B72,"") ->  | H72: =H51 -> REDA
A73: PGTVA | B73: =IFERROR(B52*$D52/100,"") -> 10.02754229 | C73: =IFERROR(C52*$D52/100,"") -> 5.166063039 | D73: -4.861479254 | E73: -0.4848126402 | H73: PGTVA
A74: UFGVA | B74: =IFERROR(B53*$D53/100,"") -> 20.98530009 | C74: =IFERROR(C53*$D53/100,"") -> 6.806067987 | D74: -14.1792321 | E74: -0.6756744979 | H74: UFGVA
A75: 0 | B75: =B54*$D54 -> 0 | C75: =C54*$D54 -> 0 | D75: 0 | H75: 0
A76: 0 | B76: =IFERROR(B55*$D55/100,"") -> 0 | C76: =IFERROR(C55*$D55/100,"") -> 0 | D76: 0 | H76: 0
A77: 0 | B77: =B56*$D56 -> 0 | C77: =C56*$D56 -> 0 | D77: 0 | H77: 0
A78: Total Rate Riders | B78: =SUM(B72:B77) -> 31.01284238 | C78: =SUM(C72:C77) -> 12.69213103 | D78: =SUM(D72:D77) -> -18.32071135 | E78: =IF(ISERROR(D78/B78),0,D78/B78) -> -0.5907459603
A80: Total Bill | B80: =B59+B66+B68+B69+B78 -> 851.850254 | C80: =C59+C66+C68+C69+C78 -> 884.2059651 | D80: =D59+D66+D68+D69+D78 -> 32.35571109 | E80: =IFERROR(D80/B80,"") -> 0.03798286253

Sheet G2. R2 Bill Impact
A1: ='D1a. Rate 1-Res Adjustment'!A1 -> EPCOR Natural Gas Limited Partnership
A2: ='D1a. Rate 1-Res Adjustment'!A2 -> EB-2025-0177
A3: =MID(CELL("filename",A3),FIND("]",CELL("filename",A3))+1,255) -> G2. R2 Bill Impact
A5: ='For Bill Impact(HideBeforeFile)'!C8 -> R2 - Seasonal - Apr to Oct | H5: Look-up
A6: Rates | B6: Current | C6: Proposed | D6: Bill Determinant | E6: Calculation
A7: =INDEX('For Bill Impact(HideBeforeFile)'!$D$45:$P$53,MATCH(A5,'For Bill Impact(HideBeforeFile)'!$C$58:$C$66,0),MATCH($H7,'For Bill Impact(HideBeforeFile)'!$D$57:$P$57,0)) -> Commodity | B7: =INDEX('For Bill Impact(HideBeforeFile)'!$D$6:$P$14,MATCH(A5,'For Bill Impact(HideBeforeFile)'!$C$58:$C$66,0),MATCH($H7,'For Bill Impact(HideBeforeFile)'!$D$57:$P$57,0)) -> 18.077 | C7: =INDEX('For Bill Impact(HideBeforeFile)'!$D$19:$P$27,MATCH(A5,'For Bill Impact(HideBeforeFile)'!$C$58:$C$66,0),MATCH($H7,'For Bill Impact(HideBeforeFile)'!$D$57:$P$57,0)) -> 18.077 | D7: =INDEX('For Bill Impact(HideBeforeFile)'!$D$32:$P$40,MATCH(A5,'For Bill Impact(HideBeforeFile)'!$C$58:$C$66,0),MATCH($H7,'For Bill Impact(HideBeforeFile)'!$D$57:$P$57,0)) -> 15645.93443 | E7: =INDEX('For Bill Impact(HideBeforeFile)'!$D$58:$P$66,MATCH(A5,'For Bill Impact(HideBeforeFile)'!$C$58:$C$66,0),MATCH($H7,'For Bill Impact(HideBeforeFile)'!$D$57:$P$57,0)) -> cents / m3 | H7: ='For Bill Impact(HideBeforeFile)'!$D$5 -> Commodity
A8: =INDEX('For Bill Impact(HideBeforeFile)'!$D$45:$P$53,MATCH(A5,'For Bill Impact(HideBeforeFile)'!$C$58:$C$66,0),MATCH($H8,'For Bill Impact(HideBeforeFile)'!$D$57:$P$57,0)) -> Monthly Service Charge | B8: =INDEX('For Bill Impact(HideBeforeFile)'!$D$6:$P$14,MATCH(A5,'For Bill Impact(HideBeforeFile)'!$C$58:$C$66,0),MATCH($H8,'For Bill Impact(HideBeforeFile)'!$D$57:$P$57,0)) -> 23.48 | C8: =INDEX('For Bill Impact(HideBeforeFile)'!$D$19:$P$27,MATCH(A5,'For Bill Impact(HideBeforeFile)'!$C$58:$C$66,0),MATCH($H8,'For Bill Impact(HideBeforeFile)'!$D$57:$P$57,0)) -> 24.12320525 | D8: =INDEX('For Bill Impact(HideBeforeFile)'!$D$32:$P$40,MATCH(A5,'For Bill Impact(HideBeforeFile)'!$C$58:$C$66,0),MATCH($H8,'For Bill Impact(HideBeforeFile)'!$D$57:$P$57,0)) -> 7 | E8: =INDEX('For Bill Impact(HideBeforeFile)'!$D$58:$P$66,MATCH(A5,'For Bill Impact(HideBeforeFile)'!$C$58:$C$66,0),MATCH($H8,'For Bill Impact(HideBeforeFile)'!$D$57:$P$57,0)) -> $ / month | H8: ='For Bill Impact(HideBeforeFile)'!$L$5 -> Dist. Customer Rate
A9: =INDEX('For Bill Impact(HideBeforeFile)'!$D$45:$P$53,MATCH(A5,'For Bill Impact(HideBeforeFile)'!$C$58:$C$66,0),MATCH($H9,'For Bill Impact(HideBeforeFile)'!$D$57:$P$57,0)) -> Block 1 (First 1,000 m3 per month) | B9: =INDEX('For Bill Impact(HideBeforeFile)'!$D$6:$P$14,MATCH(A5,'For Bill Impact(HideBeforeFile)'!$C$58:$C$66,0),MATCH($H9,'For Bill Impact(HideBeforeFile)'!$D$57:$P$57,0)) -> 17.0039 | C9: =INDEX('For Bill Impact(HideBeforeFile)'!$D$19:$P$27,MATCH(A5,'For Bill Impact(HideBeforeFile)'!$C$58:$C$66,0),MATCH($H9,'For Bill Impact(HideBeforeFile)'!$D$57:$P$57,0)) -> 17.46970059 | D9: =INDEX('For Bill Impact(HideBeforeFile)'!$D$32:$P$40,MATCH(A5,'For Bill Impact(HideBeforeFile)'!$C$58:$C$66,0),MATCH($H9,'For Bill Impact(HideBeforeFile)'!$D$57:$P$57,0)) -> 1429.038226 | E9: =INDEX('For Bill Impact(HideBeforeFile)'!$D$58:$P$66,MATCH(A5,'For Bill Impact(HideBeforeFile)'!$C$58:$C$66,0),MATCH($H9,'For Bill Impact(HideBeforeFile)'!$D$57:$P$57,0)) -> cents / m3 | H9: ='For Bill Impact(HideBeforeFile)'!$M$5 -> Dist. Vol. Rate Tier 1
A10: =INDEX('For Bill Impact(HideBeforeFile)'!$D$45:$P$53,MATCH(A5,'For Bill Impact(HideBeforeFile)'!$C$58:$C$66,0),MATCH($H10,'For Bill Impact(HideBeforeFile)'!$D$57:$P$57,0)) -> Block 2 (Next 24,000 m3 per month) | B10: =INDEX('For Bill Impact(HideBeforeFile)'!$D$6:$P$14,MATCH(A5,'For Bill Impact(HideBeforeFile)'!$C$58:$C$66,0),MATCH($H10,'For Bill Impact(HideBeforeFile)'!$D$57:$P$57,0)) -> 7.6087 | C10: =INDEX('For Bill Impact(HideBeforeFile)'!$D$19:$P$27,MATCH(A5,'For Bill Impact(HideBeforeFile)'!$C$58:$C$66,0),MATCH($H10,'For Bill Impact(HideBeforeFile)'!$D$57:$P$57,0)) -> 7.817130826 | D10: =INDEX('For Bill Impact(HideBeforeFile)'!$D$32:$P$40,MATCH(A5,'For Bill Impact(HideBeforeFile)'!$C$58:$C$66,0),MATCH($H10,'For Bill Impact(HideBeforeFile)'!$D$57:$P$57,0)) -> 11936.53055 | E10: =INDEX('For Bill Impact(HideBeforeFile)'!$D$58:$P$66,MATCH(A5,'For Bill Impact(HideBeforeFile)'!$C$58:$C$66,0),MATCH($H10,'For Bill Impact(HideBeforeFile)'!$D$57:$P$57,0)) -> cents / m3 | H10: ='For Bill Impact(HideBeforeFile)'!$N$5 -> Dist. Vol. Rate Tier 2
A11: =INDEX('For Bill Impact(HideBeforeFile)'!$D$45:$P$53,MATCH(A5,'For Bill Impact(HideBeforeFile)'!$C$58:$C$66,0),MATCH($H11,'For Bill Impact(HideBeforeFile)'!$D$57:$P$57,0)) -> Block 3 (Over 25,000 m3 per month) | B11: =INDEX('For Bill Impact(HideBeforeFile)'!$D$6:$P$14,MATCH(A5,'For Bill Impact(HideBeforeFile)'!$C$58:$C$66,0),MATCH($H11,'For Bill Impact(HideBeforeFile)'!$D$57:$P$57,0)) -> 5.5016 | C11: =INDEX('For Bill Impact(HideBeforeFile)'!$D$19:$P$27,MATCH(A5,'For Bill Impact(HideBeforeFile)'!$C$58:$C$66,0),MATCH($H11,'For Bill Impact(HideBeforeFile)'!$D$57:$P$57,0)) -> 5.652309455 | D11: =INDEX('For Bill Impact(HideBeforeFile)'!$D$32:$P$40,MATCH(A5,'For Bill Impact(HideBeforeFile)'!$C$58:$C$66,0),MATCH($H11,'For Bill Impact(HideBeforeFile)'!$D$57:$P$57,0)) -> 2280.365652 | E11: =INDEX('For Bill Impact(HideBeforeFile)'!$D$58:$P$66,MATCH(A5,'For Bill Impact(HideBeforeFile)'!$C$58:$C$66,0),MATCH($H11,'For Bill Impact(HideBeforeFile)'!$D$57:$P$57,0)) -> cents / m3 | H11: ='For Bill Impact(HideBeforeFile)'!$O$5 -> Dist. Vol. Rate Tier 3
A12: =INDEX('For Bill Impact(HideBeforeFile)'!$D$45:$P$53,MATCH(A5,'For Bill Impact(HideBeforeFile)'!$C$58:$C$66,0),MATCH($H12,'For Bill Impact(HideBeforeFile)'!$D$57:$P$57,0)) -> Transportation | B12: =INDEX('For Bill Impact(HideBeforeFile)'!$D$6:$P$14,MATCH(A5,'For Bill Impact(HideBeforeFile)'!$C$58:$C$66,0),MATCH($H12,'For Bill Impact(HideBeforeFile)'!$D$57:$P$57,0)) -> 2.916080527 | C12: =INDEX('For Bill Impact(HideBeforeFile)'!$D$19:$P$27,MATCH(A5,'For Bill Impact(HideBeforeFile)'!$C$58:$C$66,0),MATCH($H12,'For Bill Impact(HideBeforeFile)'!$D$57:$P$57,0)) -> 2.916080527 | D12: =INDEX('For Bill Impact(HideBeforeFile)'!$D$32:$P$40,MATCH(A5,'For Bill Impact(HideBeforeFile)'!$C$58:$C$66,0),MATCH($H12,'For Bill Impact(HideBeforeFile)'!$D$57:$P$57,0)) -> 15645.93443 | E12: =INDEX('For Bill Impact(HideBeforeFile)'!$D$58:$P$66,MATCH(A5,'For Bill Impact(HideBeforeFile)'!$C$58:$C$66,0),MATCH($H12,'For Bill Impact(HideBeforeFile)'!$D$57:$P$57,0)) -> cents / m3 | H12: ='For Bill Impact(HideBeforeFile)'!$E$5 -> Transportation
A13: =INDEX('For Bill Impact(HideBeforeFile)'!$D$45:$P$53,MATCH(A5,'For Bill Impact(HideBeforeFile)'!$C$58:$C$66,0),MATCH($H13,'For Bill Impact(HideBeforeFile)'!$D$57:$P$57,0)) -> REDA | B13: =INDEX('For Bill Impact(HideBeforeFile)'!$D$6:$P$14,MATCH(A5,'For Bill Impact(HideBeforeFile)'!$C$58:$C$66,0),MATCH($H13,'For Bill Impact(HideBeforeFile)'!$D$57:$P$57,0)) -> 0 | C13: =INDEX('For Bill Impact(HideBeforeFile)'!$D$19:$P$27,MATCH(A5,'For Bill Impact(HideBeforeFile)'!$C$58:$C$66,0),MATCH($H13,'For Bill Impact(HideBeforeFile)'!$D$57:$P$57,0)) -> 0.06 | D13: =INDEX('For Bill Impact(HideBeforeFile)'!$D$32:$P$40,MATCH(A5,'For Bill Impact(HideBeforeFile)'!$C$58:$C$66,0),MATCH($H13,'For Bill Impact(HideBeforeFile)'!$D$57:$P$57,0)) -> 7 | E13: =INDEX('For Bill Impact(HideBeforeFile)'!$D$58:$P$66,MATCH(A5,'For Bill Impact(HideBeforeFile)'!$C$58:$C$66,0),MATCH($H13,'For Bill Impact(HideBeforeFile)'!$D$57:$P$57,0)) -> $ / month | H13: ='For Bill Impact(HideBeforeFile)'!$F$5 -> REDA
A14: =INDEX('For Bill Impact(HideBeforeFile)'!$D$45:$P$53,MATCH(A5,'For Bill Impact(HideBeforeFile)'!$C$58:$C$66,0),MATCH($H14,'For Bill Impact(HideBeforeFile)'!$D$57:$P$57,0)) -> PGTVA | B14: =INDEX('For Bill Impact(HideBeforeFile)'!$D$6:$P$14,MATCH(A5,'For Bill Impact(HideBeforeFile)'!$C$58:$C$66,0),MATCH($H14,'For Bill Impact(HideBeforeFile)'!$D$57:$P$57,0)) -> 0.7157536893 | C14: =INDEX('For Bill Impact(HideBeforeFile)'!$D$19:$P$27,MATCH(A5,'For Bill Impact(HideBeforeFile)'!$C$58:$C$66,0),MATCH($H14,'For Bill Impact(HideBeforeFile)'!$D$57:$P$57,0)) -> 0.3240942935 | D14: =INDEX('For Bill Impact(HideBeforeFile)'!$D$32:$P$40,MATCH(A5,'For Bill Impact(HideBeforeFile)'!$C$58:$C$66,0),MATCH($H14,'For Bill Impact(HideBeforeFile)'!$D$57:$P$57,0)) -> 15645.93443 | E14: =INDEX('For Bill Impact(HideBeforeFile)'!$D$58:$P$66,MATCH(A5,'For Bill Impact(HideBeforeFile)'!$C$58:$C$66,0),MATCH($H14,'For Bill Impact(HideBeforeFile)'!$D$57:$P$57,0)) -> cents / m3 | H14: ='For Bill Impact(HideBeforeFile)'!$G$5 -> PGTVA
A15: =INDEX('For Bill Impact(HideBeforeFile)'!$D$45:$P$53,MATCH(A5,'For Bill Impact(HideBeforeFile)'!$C$58:$C$66,0),MATCH($H15,'For Bill Impact(HideBeforeFile)'!$D$57:$P$57,0)) -> UFGVA | B15: =INDEX('For Bill Impact(HideBeforeFile)'!$D$6:$P$14,MATCH(A5,'For Bill Impact(HideBeforeFile)'!$C$58:$C$66,0),MATCH($H15,'For Bill Impact(HideBeforeFile)'!$D$57:$P$57,0)) -> 1.457478891 | C15: =INDEX('For Bill Impact(HideBeforeFile)'!$D$19:$P$27,MATCH(A5,'For Bill Impact(HideBeforeFile)'!$C$58:$C$66,0),MATCH($H15,'For Bill Impact(HideBeforeFile)'!$D$57:$P$57,0)) -> 0.4269804258 | D15: =INDEX('For Bill Impact(HideBeforeFile)'!$D$32:$P$40,MATCH(A5,'For Bill Impact(HideBeforeFile)'!$C$58:$C$66,0),MATCH($H15,'For Bill Impact(HideBeforeFile)'!$D$57:$P$57,0)) -> 15645.93443 | E15: =INDEX('For Bill Impact(HideBeforeFile)'!$D$58:$P$66,MATCH(A5,'For Bill Impact(HideBeforeFile)'!$C$58:$C$66,0),MATCH($H15,'For Bill Impact(HideBeforeFile)'!$D$57:$P$57,0)) -> cents / m3 | H15: ='For Bill Impact(HideBeforeFile)'!$H$5 -> UFGVA
A16: =INDEX('For Bill Impact(HideBeforeFile)'!$D$45:$P$53,MATCH(A5,'For Bill Impact(HideBeforeFile)'!$C$58:$C$66,0),MATCH($H16,'For Bill Impact(HideBeforeFile)'!$D$57:$P$57,0)) -> 0 | B16: =INDEX('For Bill Impact(HideBeforeFile)'!$D$6:$P$14,MATCH(A5,'For Bill Impact(HideBeforeFile)'!$C$58:$C$66,0),MATCH($H16,'For Bill Impact(HideBeforeFile)'!$D$57:$P$57,0)) -> 0 | C16: =INDEX('For Bill Impact(HideBeforeFile)'!$D$19:$P$27,MATCH(A5,'For Bill Impact(HideBeforeFile)'!$C$58:$C$66,0),MATCH($H16,'For Bill Impact(HideBeforeFile)'!$D$57:$P$57,0)) -> 0 | D16: =INDEX('For Bill Impact(HideBeforeFile)'!$D$32:$P$40,MATCH(A5,'For Bill Impact(HideBeforeFile)'!$C$58:$C$66,0),MATCH($H16,'For Bill Impact(HideBeforeFile)'!$D$57:$P$57,0)) -> 7 | E16: =INDEX('For Bill Impact(HideBeforeFile)'!$D$58:$P$66,MATCH(A5,'For Bill Impact(HideBeforeFile)'!$C$58:$C$66,0),MATCH($H16,'For Bill Impact(HideBeforeFile)'!$D$57:$P$57,0)) -> $ / month | H16: ='For Bill Impact(HideBeforeFile)'!$I$5 -> 0
A17: =INDEX('For Bill Impact(HideBeforeFile)'!$D$45:$P$53,MATCH(A5,'For Bill Impact(HideBeforeFile)'!$C$58:$C$66,0),MATCH($H17,'For Bill Impact(HideBeforeFile)'!$D$57:$P$57,0)) -> 0 | B17: =INDEX('For Bill Impact(HideBeforeFile)'!$D$6:$P$14,MATCH(A5,'For Bill Impact(HideBeforeFile)'!$C$58:$C$66,0),MATCH($H17,'For Bill Impact(HideBeforeFile)'!$D$57:$P$57,0)) -> 0 | C17: =INDEX('For Bill Impact(HideBeforeFile)'!$D$19:$P$27,MATCH(A5,'For Bill Impact(HideBeforeFile)'!$C$58:$C$66,0),MATCH($H17,'For Bill Impact(HideBeforeFile)'!$D$57:$P$57,0)) -> 0 | D17: =INDEX('For Bill Impact(HideBeforeFile)'!$D$32:$P$40,MATCH(A5,'For Bill Impact(HideBeforeFile)'!$C$58:$C$66,0),MATCH($H17,'For Bill Impact(HideBeforeFile)'!$D$57:$P$57,0)) -> 7 | E17: =INDEX('For Bill Impact(HideBeforeFile)'!$D$58:$P$66,MATCH(A5,'For Bill Impact(HideBeforeFile)'!$C$58:$C$66,0),MATCH($H17,'For Bill Impact(HideBeforeFile)'!$D$57:$P$57,0)) -> $ / month | H17: ='For Bill Impact(HideBeforeFile)'!$J$5 -> 0
A18: =INDEX('For Bill Impact(HideBeforeFile)'!$D$45:$P$53,MATCH(A5,'For Bill Impact(HideBeforeFile)'!$C$58:$C$66,0),MATCH($H18,'For Bill Impact(HideBeforeFile)'!$D$57:$P$57,0)) -> 0 | B18: =INDEX('For Bill Impact(HideBeforeFile)'!$D$6:$P$14,MATCH(A5,'For Bill Impact(HideBeforeFile)'!$C$58:$C$66,0),MATCH($H18,'For Bill Impact(HideBeforeFile)'!$D$57:$P$57,0)) -> 0 | C18: =INDEX('For Bill Impact(HideBeforeFile)'!$D$19:$P$27,MATCH(A5,'For Bill Impact(HideBeforeFile)'!$C$58:$C$66,0),MATCH($H18,'For Bill Impact(HideBeforeFile)'!$D$57:$P$57,0)) -> 0 | D18: =INDEX('For Bill Impact(HideBeforeFile)'!$D$32:$P$40,MATCH(A5,'For Bill Impact(HideBeforeFile)'!$C$58:$C$66,0),MATCH($H18,'For Bill Impact(HideBeforeFile)'!$D$57:$P$57,0)) -> 7 | E18: =INDEX('For Bill Impact(HideBeforeFile)'!$D$58:$P$66,MATCH(A5,'For Bill Impact(HideBeforeFile)'!$C$58:$C$66,0),MATCH($H18,'For Bill Impact(HideBeforeFile)'!$D$57:$P$57,0)) -> $ / month | H18: ='For Bill Impact(HideBeforeFile)'!$K$5 -> 0
A20: Annual Billings | B20: Current | C20: Proposed | D20: Variance $ | E20: Variance %
A21: Commodity | B21: =B7*$D7/100 -> 2828.315566 | C21: =C7*$D7/100 -> 2828.315566 | D21: =C21-B21 -> 0 | E21: =IFERROR(D21/B21,"") -> 0 | H21: ='For Bill Impact(HideBeforeFile)'!$D$5 -> Commodity
A23: Distribution
A24: =IF(A8<>"",A8,"") -> Monthly Service Charge | B24: =B8*$D8 -> 164.36 | C24: =C8*$D8 -> 168.8624368 | D24: =IFERROR(C24-B24,"") -> 4.502436753 | E24: =IFERROR(D24/B24,"") -> 0.02739375002 | H24: ='For Bill Impact(HideBeforeFile)'!$L$5 -> Dist. Customer Rate
A26: =IF(A9<>"",A9,"") -> Block 1 (First 1,000 m3 per month) | B26: =IFERROR(B9*$D9/100,"") -> 242.9922309 | C26: 249.6486993 | D26: =IFERROR(C26-B26,"") -> 6.656468429 | E26: =IFERROR(D26/B26,"") -> 0.02739375002 | H26: ='For Bill Impact(HideBeforeFile)'!$M$5 -> Dist. Vol. Rate Tier 1
A27: =IF(A10<>"",A10,"") -> Block 2 (Next 24,000 m3 per month) | B27: 908.2147998 | C27: 933.094209 | D27: =IFERROR(C27-B27,"") -> 24.87940919 | E27: =IFERROR(D27/B27,"") -> 0.02739375002 | H27: ='For Bill Impact(HideBeforeFile)'!$N$5 -> Dist. Vol. Rate Tier 2
A28: =IF(A11<>"",A11,"") -> Block 3 (Over 25,000 m3 per month) | B28: 125.4565967 | C28: 128.8933234 | D28: =IFERROR(C28-B28,"") -> 3.436726648 | E28: =IFERROR(D28/B28,"") -> 0.02739375002 | H28: =H11 -> Dist. Vol. Rate Tier 3
A29: Total Distribution | B29: =SUM(B24:B28) -> 1441.023627 | C29: =SUM(C24:C28) -> 1480.498668 | D29: =SUM(D24:D28) -> 39.47504102 | E29: =IF(ISERROR(D29/B29),0,D29/B29) -> 0.02739375002
A31: Bill 32 | B31: =1*D8 -> 7 | C31: =1*D8 -> 7 | D31: =IFERROR(C31-B31,"") -> 0 | E31: =IFERROR(D31/B31,"") -> 0
A32: =IF(A12<>"",A12,"") -> Transportation | B32: =IFERROR(B12*$D12/100,"") -> 456.2480471 | C32: =IFERROR(C12*$D12/100,"") -> 456.2480471 | D32: =IFERROR(C32-B32,"") -> 0 | E32: =IFERROR(D32/B32,"") -> 0 | H32: ='For Bill Impact(HideBeforeFile)'!$E$5 -> Transportation
A34: Rate Riders
A35: =A13 -> REDA | B35: =B13*$D13 -> 0 | C35: =C13*$D13 -> 0.42 | D35: =IFERROR(C35-B35,"") -> 0.42 | E35: =IFERROR(D35/B35,"") ->  | H35: =H13 -> REDA
A36: PGTVA | B36: =IFERROR(B14*$D14/100,"") -> 111.9863529 | C36: =IFERROR(C14*$D14/100,"") -> 50.70758064 | D36: -61.27877224 | E36: -0.5471985707 | H36: PGTVA
A37: UFGVA | B37: =IFERROR(B15*$D15/100,"") -> 228.0361916 | C37: =IFERROR(C15*$D15/100,"") -> 66.80507743 | D37: -161.2311142 | E37: -0.7070417772 | H37: UFGVA
A38: 0 | B38: =B16*$D16 -> 0 | C38: =C16*$D16 -> 0 | D38: 0 | H38: 0
A39: 0 | B39: =IFERROR(B17*$D17/100,"") -> 0 | C39: =IFERROR(C17*$D17/100,"") -> 0 | D39: 0 | H39: 0
A40: 0 | B40: =B18*$D18 -> 0 | C40: =C18*$D18 -> 0 | D40: 0 | H40: 0
A41: Total Rate Riders | B41: =SUM(B35:B40) -> 340.0225445 | C41: =SUM(C35:C40) -> 117.9326581 | D41: =SUM(D35:D40) -> -222.0898864 | E41: =IF(ISERROR(D41/B41),0,D41/B41) -> -0.6531622389
A43: Total Bill | B43: =B21+B29+B31+B32+B41 -> 5072.609785 | C43: =C21+C29+C31+C32+C41 -> 4889.99494 | D43: =D21+D29+D31+D32+D41 -> -182.6148454 | E43: =IFERROR(D43/B43,"") -> -0.03600017607
A45: ='For Bill Impact(HideBeforeFile)'!C9 -> R2 - Seasonal - Nov to Mar | H45: Look-up
A46: Rates | B46: Current | C46: Proposed | D46: Bill Determinant | E46: Calculation
A47: =INDEX('For Bill Impact(HideBeforeFile)'!$D$45:$P$53,MATCH(A45,'For Bill Impact(HideBeforeFile)'!$C$58:$C$66,0),MATCH($H47,'For Bill Impact(HideBeforeFile)'!$D$57:$P$57,0)) -> Commodity | B47: =INDEX('For Bill Impact(HideBeforeFile)'!$D$6:$P$14,MATCH(A45,'For Bill Impact(HideBeforeFile)'!$C$58:$C$66,0),MATCH($H47,'For Bill Impact(HideBeforeFile)'!$D$57:$P$57,0)) -> 18.077 | C47: =INDEX('For Bill Impact(HideBeforeFile)'!$D$19:$P$27,MATCH(A45,'For Bill Impact(HideBeforeFile)'!$C$58:$C$66,0),MATCH($H47,'For Bill Impact(HideBeforeFile)'!$D$57:$P$57,0)) -> 18.077 | D47: =INDEX('For Bill Impact(HideBeforeFile)'!$D$32:$P$40,MATCH(A45,'For Bill Impact(HideBeforeFile)'!$C$58:$C$66,0),MATCH($H47,'For Bill Impact(HideBeforeFile)'!$D$57:$P$57,0)) -> 5816.998915 | E47: =INDEX('For Bill Impact(HideBeforeFile)'!$D$58:$P$66,MATCH(A45,'For Bill Impact(HideBeforeFile)'!$C$58:$C$66,0),MATCH($H47,'For Bill Impact(HideBeforeFile)'!$D$57:$P$57,0)) -> cents / m3 | H47: ='For Bill Impact(HideBeforeFile)'!$D$5 -> Commodity
A48: =INDEX('For Bill Impact(HideBeforeFile)'!$D$45:$P$53,MATCH(A45,'For Bill Impact(HideBeforeFile)'!$C$58:$C$66,0),MATCH($H48,'For Bill Impact(HideBeforeFile)'!$D$57:$P$57,0)) -> Monthly Service Charge | B48: =INDEX('For Bill Impact(HideBeforeFile)'!$D$6:$P$14,MATCH(A45,'For Bill Impact(HideBeforeFile)'!$C$58:$C$66,0),MATCH($H48,'For Bill Impact(HideBeforeFile)'!$D$57:$P$57,0)) -> 23.48 | C48: =INDEX('For Bill Impact(HideBeforeFile)'!$D$19:$P$27,MATCH(A45,'For Bill Impact(HideBeforeFile)'!$C$58:$C$66,0),MATCH($H48,'For Bill Impact(HideBeforeFile)'!$D$57:$P$57,0)) -> 24.12320525 | D48: =INDEX('For Bill Impact(HideBeforeFile)'!$D$32:$P$40,MATCH(A45,'For Bill Impact(HideBeforeFile)'!$C$58:$C$66,0),MATCH($H48,'For Bill Impact(HideBeforeFile)'!$D$57:$P$57,0)) -> 5 | E48: =INDEX('For Bill Impact(HideBeforeFile)'!$D$58:$P$66,MATCH(A45,'For Bill Impact(HideBeforeFile)'!$C$58:$C$66,0),MATCH($H48,'For Bill Impact(HideBeforeFile)'!$D$57:$P$57,0)) -> $ / month | H48: ='For Bill Impact(HideBeforeFile)'!$L$5 -> Dist. Customer Rate
A49: =INDEX('For Bill Impact(HideBeforeFile)'!$D$45:$P$53,MATCH(A45,'For Bill Impact(HideBeforeFile)'!$C$58:$C$66,0),MATCH($H49,'For Bill Impact(HideBeforeFile)'!$D$57:$P$57,0)) -> Block 1 (First 1,000 m3 per month) | B49: =INDEX('For Bill Impact(HideBeforeFile)'!$D$6:$P$14,MATCH(A45,'For Bill Impact(HideBeforeFile)'!$C$58:$C$66,0),MATCH($H49,'For Bill Impact(HideBeforeFile)'!$D$57:$P$57,0)) -> 22.0752 | C49: =INDEX('For Bill Impact(HideBeforeFile)'!$D$19:$P$27,MATCH(A45,'For Bill Impact(HideBeforeFile)'!$C$58:$C$66,0),MATCH($H49,'For Bill Impact(HideBeforeFile)'!$D$57:$P$57,0)) -> 22.67992251 | D49: =INDEX('For Bill Impact(HideBeforeFile)'!$D$32:$P$40,MATCH(A45,'For Bill Impact(HideBeforeFile)'!$C$58:$C$66,0),MATCH($H49,'For Bill Impact(HideBeforeFile)'!$D$57:$P$57,0)) -> 1109.005697 | E49: =INDEX('For Bill Impact(HideBeforeFile)'!$D$58:$P$66,MATCH(A45,'For Bill Impact(HideBeforeFile)'!$C$58:$C$66,0),MATCH($H49,'For Bill Impact(HideBeforeFile)'!$D$57:$P$57,0)) -> cents / m3 | H49: ='For Bill Impact(HideBeforeFile)'!$M$5 -> Dist. Vol. Rate Tier 1
A50: =INDEX('For Bill Impact(HideBeforeFile)'!$D$45:$P$53,MATCH($A$45,'For Bill Impact(HideBeforeFile)'!$C$58:$C$66,0),MATCH($H50,'For Bill Impact(HideBeforeFile)'!$D$57:$P$57,0)) -> Block 2 (Next 24,000 m3 per month) | B50: =INDEX('For Bill Impact(HideBeforeFile)'!$D$6:$P$14,MATCH(A45,'For Bill Impact(HideBeforeFile)'!$C$58:$C$66,0),MATCH($H50,'For Bill Impact(HideBeforeFile)'!$D$57:$P$57,0)) -> 14.2095 | C50: =INDEX('For Bill Impact(HideBeforeFile)'!$D$19:$P$27,MATCH(A45,'For Bill Impact(HideBeforeFile)'!$C$58:$C$66,0),MATCH($H50,'For Bill Impact(HideBeforeFile)'!$D$57:$P$57,0)) -> 14.59875149 | D50: =INDEX('For Bill Impact(HideBeforeFile)'!$D$32:$P$40,MATCH(A45,'For Bill Impact(HideBeforeFile)'!$C$58:$C$66,0),MATCH($H50,'For Bill Impact(HideBeforeFile)'!$D$57:$P$57,0)) -> 4416.099158 | E50: =INDEX('For Bill Impact(HideBeforeFile)'!$D$58:$P$66,MATCH(A45,'For Bill Impact(HideBeforeFile)'!$C$58:$C$66,0),MATCH($H50,'For Bill Impact(HideBeforeFile)'!$D$57:$P$57,0)) -> cents / m3 | H50: ='For Bill Impact(HideBeforeFile)'!$N$5 -> Dist. Vol. Rate Tier 2
A51: =INDEX('For Bill Impact(HideBeforeFile)'!$D$45:$P$53,MATCH($A$45,'For Bill Impact(HideBeforeFile)'!$C$58:$C$66,0),MATCH($H51,'For Bill Impact(HideBeforeFile)'!$D$57:$P$57,0)) -> Block 3 (Over 25,000 m3 per month) | B51: =INDEX('For Bill Impact(HideBeforeFile)'!$D$6:$P$14,MATCH(A45,'For Bill Impact(HideBeforeFile)'!$C$58:$C$66,0),MATCH($H51,'For Bill Impact(HideBeforeFile)'!$D$57:$P$57,0)) -> 15.4831 | C51: =INDEX('For Bill Impact(HideBeforeFile)'!$D$19:$P$27,MATCH(A45,'For Bill Impact(HideBeforeFile)'!$C$58:$C$66,0),MATCH($H51,'For Bill Impact(HideBeforeFile)'!$D$57:$P$57,0)) -> 15.90724017 | D51: =INDEX('For Bill Impact(HideBeforeFile)'!$D$32:$P$40,MATCH(A45,'For Bill Impact(HideBeforeFile)'!$C$58:$C$66,0),MATCH($H51,'For Bill Impact(HideBeforeFile)'!$D$57:$P$57,0)) -> 291.89406 | E51: =INDEX('For Bill Impact(HideBeforeFile)'!$D$58:$P$66,MATCH(A45,'For Bill Impact(HideBeforeFile)'!$C$58:$C$66,0),MATCH($H51,'For Bill Impact(HideBeforeFile)'!$D$57:$P$57,0)) -> cents / m3 | H51: =H28 -> Dist. Vol. Rate Tier 3
A52: =INDEX('For Bill Impact(HideBeforeFile)'!$D$45:$P$53,MATCH(A45,'For Bill Impact(HideBeforeFile)'!$C$58:$C$66,0),MATCH($H52,'For Bill Impact(HideBeforeFile)'!$D$57:$P$57,0)) -> Transportation | B52: =INDEX('For Bill Impact(HideBeforeFile)'!$D$6:$P$14,MATCH(A45,'For Bill Impact(HideBeforeFile)'!$C$58:$C$66,0),MATCH($H52,'For Bill Impact(HideBeforeFile)'!$D$57:$P$57,0)) -> 2.916080527 | C52: =INDEX('For Bill Impact(HideBeforeFile)'!$D$19:$P$27,MATCH(A45,'For Bill Impact(HideBeforeFile)'!$C$58:$C$66,0),MATCH($H52,'For Bill Impact(HideBeforeFile)'!$D$57:$P$57,0)) -> 2.916080527 | D52: =D47 -> 5816.998915 | E52: =INDEX('For Bill Impact(HideBeforeFile)'!$D$58:$P$66,MATCH(A45,'For Bill Impact(HideBeforeFile)'!$C$58:$C$66,0),MATCH($H52,'For Bill Impact(HideBeforeFile)'!$D$57:$P$57,0)) -> cents / m3 | H52: ='For Bill Impact(HideBeforeFile)'!$E$5 -> Transportation
A53: =INDEX('For Bill Impact(HideBeforeFile)'!$D$45:$P$53,MATCH(A45,'For Bill Impact(HideBeforeFile)'!$C$58:$C$66,0),MATCH($H53,'For Bill Impact(HideBeforeFile)'!$D$57:$P$57,0)) -> REDA | B53: =INDEX('For Bill Impact(HideBeforeFile)'!$D$6:$P$14,MATCH(A45,'For Bill Impact(HideBeforeFile)'!$C$58:$C$66,0),MATCH($H53,'For Bill Impact(HideBeforeFile)'!$D$57:$P$57,0)) -> 0 | C53: =INDEX('For Bill Impact(HideBeforeFile)'!$D$19:$P$27,MATCH(A45,'For Bill Impact(HideBeforeFile)'!$C$58:$C$66,0),MATCH($H53,'For Bill Impact(HideBeforeFile)'!$D$57:$P$57,0)) -> 0.06 | D53: =INDEX('For Bill Impact(HideBeforeFile)'!$D$32:$P$40,MATCH(A45,'For Bill Impact(HideBeforeFile)'!$C$58:$C$66,0),MATCH($H53,'For Bill Impact(HideBeforeFile)'!$D$57:$P$57,0)) -> 5 | E53: =INDEX('For Bill Impact(HideBeforeFile)'!$D$58:$P$66,MATCH(A45,'For Bill Impact(HideBeforeFile)'!$C$58:$C$66,0),MATCH($H53,'For Bill Impact(HideBeforeFile)'!$D$57:$P$57,0)) -> $ / month | H53: ='For Bill Impact(HideBeforeFile)'!$F$5 -> REDA
A54: =INDEX('For Bill Impact(HideBeforeFile)'!$D$45:$P$53,MATCH(A45,'For Bill Impact(HideBeforeFile)'!$C$58:$C$66,0),MATCH($H54,'For Bill Impact(HideBeforeFile)'!$D$57:$P$57,0)) -> PGTVA | B54: =INDEX('For Bill Impact(HideBeforeFile)'!$D$6:$P$14,MATCH(A45,'For Bill Impact(HideBeforeFile)'!$C$58:$C$66,0),MATCH($H54,'For Bill Impact(HideBeforeFile)'!$D$57:$P$57,0)) -> 0.7157536893 | C54: =INDEX('For Bill Impact(HideBeforeFile)'!$D$19:$P$27,MATCH(A45,'For Bill Impact(HideBeforeFile)'!$C$58:$C$66,0),MATCH($H54,'For Bill Impact(HideBeforeFile)'!$D$57:$P$57,0)) -> 0.3240942935 | D54: =D47 -> 5816.998915 | E54: =INDEX('For Bill Impact(HideBeforeFile)'!$D$58:$P$66,MATCH(A45,'For Bill Impact(HideBeforeFile)'!$C$58:$C$66,0),MATCH($H54,'For Bill Impact(HideBeforeFile)'!$D$57:$P$57,0)) -> cents / m3 | H54: ='For Bill Impact(HideBeforeFile)'!$G$5 -> PGTVA
A55: =INDEX('For Bill Impact(HideBeforeFile)'!$D$45:$P$53,MATCH(A45,'For Bill Impact(HideBeforeFile)'!$C$58:$C$66,0),MATCH($H55,'For Bill Impact(HideBeforeFile)'!$D$57:$P$57,0)) -> UFGVA | B55: =INDEX('For Bill Impact(HideBeforeFile)'!$D$6:$P$14,MATCH(A45,'For Bill Impact(HideBeforeFile)'!$C$58:$C$66,0),MATCH($H55,'For Bill Impact(HideBeforeFile)'!$D$57:$P$57,0)) -> 1.457478891 | C55: =INDEX('For Bill Impact(HideBeforeFile)'!$D$19:$P$27,MATCH(A45,'For Bill Impact(HideBeforeFile)'!$C$58:$C$66,0),MATCH($H55,'For Bill Impact(HideBeforeFile)'!$D$57:$P$57,0)) -> 0.4269804258 | D55: =D47 -> 5816.998915 | E55: =INDEX('For Bill Impact(HideBeforeFile)'!$D$58:$P$66,MATCH(A45,'For Bill Impact(HideBeforeFile)'!$C$58:$C$66,0),MATCH($H55,'For Bill Impact(HideBeforeFile)'!$D$57:$P$57,0)) -> cents / m3 | H55: ='For Bill Impact(HideBeforeFile)'!$H$5 -> UFGVA
A56: =INDEX('For Bill Impact(HideBeforeFile)'!$D$45:$P$53,MATCH(A45,'For Bill Impact(HideBeforeFile)'!$C$58:$C$66,0),MATCH($H56,'For Bill Impact(HideBeforeFile)'!$D$57:$P$57,0)) -> 0 | B56: =INDEX('For Bill Impact(HideBeforeFile)'!$D$6:$P$14,MATCH(A45,'For Bill Impact(HideBeforeFile)'!$C$58:$C$66,0),MATCH($H56,'For Bill Impact(HideBeforeFile)'!$D$57:$P$57,0)) -> 0 | C56: =INDEX('For Bill Impact(HideBeforeFile)'!$D$19:$P$27,MATCH(A45,'For Bill Impact(HideBeforeFile)'!$C$58:$C$66,0),MATCH($H56,'For Bill Impact(HideBeforeFile)'!$D$57:$P$57,0)) -> 0 | D56: =INDEX('For Bill Impact(HideBeforeFile)'!$D$32:$P$40,MATCH(A45,'For Bill Impact(HideBeforeFile)'!$C$58:$C$66,0),MATCH($H56,'For Bill Impact(HideBeforeFile)'!$D$57:$P$57,0)) -> 5 | E56: =INDEX('For Bill Impact(HideBeforeFile)'!$D$58:$P$66,MATCH(A45,'For Bill Impact(HideBeforeFile)'!$C$58:$C$66,0),MATCH($H56,'For Bill Impact(HideBeforeFile)'!$D$57:$P$57,0)) -> $ / month | H56: ='For Bill Impact(HideBeforeFile)'!$I$5 -> 0
A57: =INDEX('For Bill Impact(HideBeforeFile)'!$D$45:$P$53,MATCH(A45,'For Bill Impact(HideBeforeFile)'!$C$58:$C$66,0),MATCH($H57,'For Bill Impact(HideBeforeFile)'!$D$57:$P$57,0)) -> 0 | B57: =INDEX('For Bill Impact(HideBeforeFile)'!$D$6:$P$14,MATCH(A45,'For Bill Impact(HideBeforeFile)'!$C$58:$C$66,0),MATCH($H57,'For Bill Impact(HideBeforeFile)'!$D$57:$P$57,0)) -> 0 | C57: =INDEX('For Bill Impact(HideBeforeFile)'!$D$19:$P$27,MATCH(A45,'For Bill Impact(HideBeforeFile)'!$C$58:$C$66,0),MATCH($H57,'For Bill Impact(HideBeforeFile)'!$D$57:$P$57,0)) -> 0 | D57: =D47 -> 5816.998915 | E57: =INDEX('For Bill Impact(HideBeforeFile)'!$D$58:$P$66,MATCH(A45,'For Bill Impact(HideBeforeFile)'!$C$58:$C$66,0),MATCH($H57,'For Bill Impact(HideBeforeFile)'!$D$57:$P$57,0)) -> $ / month | H57: ='For Bill Impact(HideBeforeFile)'!$J$5 -> 0
A58: =INDEX('For Bill Impact(HideBeforeFile)'!$D$45:$P$53,MATCH(A45,'For Bill Impact(HideBeforeFile)'!$C$58:$C$66,0),MATCH($H58,'For Bill Impact(HideBeforeFile)'!$D$57:$P$57,0)) -> 0 | B58: =INDEX('For Bill Impact(HideBeforeFile)'!$D$6:$P$14,MATCH(A45,'For Bill Impact(HideBeforeFile)'!$C$58:$C$66,0),MATCH($H58,'For Bill Impact(HideBeforeFile)'!$D$57:$P$57,0)) -> 0 | C58: =INDEX('For Bill Impact(HideBeforeFile)'!$D$19:$P$27,MATCH(A45,'For Bill Impact(HideBeforeFile)'!$C$58:$C$66,0),MATCH($H58,'For Bill Impact(HideBeforeFile)'!$D$57:$P$57,0)) -> 0 | D58: =INDEX('For Bill Impact(HideBeforeFile)'!$D$32:$P$40,MATCH(A45,'For Bill Impact(HideBeforeFile)'!$C$58:$C$66,0),MATCH($H58,'For Bill Impact(HideBeforeFile)'!$D$57:$P$57,0)) -> 5 | E58: =INDEX('For Bill Impact(HideBeforeFile)'!$D$58:$P$66,MATCH(A45,'For Bill Impact(HideBeforeFile)'!$C$58:$C$66,0),MATCH($H58,'For Bill Impact(HideBeforeFile)'!$D$57:$P$57,0)) -> $ / month | H58: ='For Bill Impact(HideBeforeFile)'!$K$5 -> 0
A60: Annual Billings | B60: Current | C60: Proposed | D60: Variance $ | E60: Variance %
A61: Commodity | B61: =B47*$D47/100 -> 1051.538894 | C61: =C47*$D47/100 -> 1051.538894 | D61: =C61-B61 -> 0 | E61: =IFERROR(D61/B61,"") -> 0 | H61: ='For Bill Impact(HideBeforeFile)'!$D$5 -> Commodity
A63: Distribution
A64: =IF(A48<>"",A48,"") -> Monthly Service Charge | B64: =B48*$D48 -> 117.4 | C64: =C48*$D48 -> 120.6160263 | D64: =IFERROR(C64-B64,"") -> 3.216026252 | E64: =IFERROR(D64/B64,"") -> 0.02739375002 | H64: ='For Bill Impact(HideBeforeFile)'!$L$5 -> Dist. Customer Rate
A66: =IF(A49<>"",A49,"") -> Block 1 (First 1,000 m3 per month) | B66: =IFERROR(B49*$D49/100,"") -> 244.8152256 | C66: 251.5216327 | D66: =IFERROR(C66-B66,"") -> 6.706407091 | E66: =IFERROR(D66/B66,"") -> 0.02739375002 | H66: ='For Bill Impact(HideBeforeFile)'!$M$5 -> Dist. Vol. Rate Tier 1
A67: =IF(A50<>"",A50,"") -> Block 2 (Next 24,000 m3 per month) | B67: 627.5056098 | C67: 644.6953416 | D67: =IFERROR(C67-B67,"") -> 17.18973181 | E67: =IFERROR(D67/B67,"") -> 0.02739375002 | H67: ='For Bill Impact(HideBeforeFile)'!$N$5 -> Dist. Vol. Rate Tier 2
A68: =IF(A51<>"",A51,"") -> Block 3 (Over 25,000 m3 per month) | B68: 45.19424921 | C68: 46.43228917 | D68: =IFERROR(C68-B68,"") -> 1.238039965 | E68: =IFERROR(D68/B68,"") -> 0.02739375002 | H68: ='For Bill Impact(HideBeforeFile)'!$O$5 -> Dist. Vol. Rate Tier 3
A69: Total Distribution | B69: =SUM(B64:B67) -> 989.7208354 | C69: =SUM(C64:C67) -> 1016.833001 | D69: =SUM(D64:D67) -> 27.11216515 | E69: =IF(ISERROR(D69/B69),0,D69/B69) -> 0.02739375002
A71: Bill 32 | B71: =1*D48 -> 5 | C71: =1*D48 -> 5 | D71: =IFERROR(C71-B71,"") -> 0 | E71: =IFERROR(D71/B71,"") -> 0
A72: =IF(A52<>"",A52,"") -> Transportation | B72: =IFERROR(B52*$D52/100,"") -> 169.6283726 | C72: =IFERROR(C52*$D52/100,"") -> 169.6283726 | D72: =IFERROR(C72-B72,"") -> 0 | E72: =IFERROR(D72/B72,"") -> 0 | H72: ='For Bill Impact(HideBeforeFile)'!$E$5 -> Transportation
A74: Rate Riders
A75: =A53 -> REDA | B75: =B53*$D53 -> 0 | C75: =C53*$D53 -> 0.3 | D75: =IFERROR(C75-B75,"") -> 0.3 | E75: =IFERROR(D75/B75,"") ->  | H75: =H53 -> REDA
A76: PGTVA | B76: =IFERROR(B54*$D54/100,"") -> 41.63538434 | C76: =IFERROR(C54*$D54/100,"") -> 18.85256154 | D76: -22.7828228 | E76: -0.5471985707 | H76: PGTVA
A77: UFGVA | B77: =IFERROR(B55*$D55/100,"") -> 84.7815313 | C77: =IFERROR(C55*$D55/100,"") -> 24.83744673 | D77: -59.94408456 | E77: -0.7070417772 | H77: UFGVA
A78: 0 | B78: =B56*$D56 -> 0 | C78: =C56*$D56 -> 0 | D78: 0 | H78: 0
A79: 0 | B79: =IFERROR(B57*$D57/100,"") -> 0 | C79: =IFERROR(C57*$D57/100,"") -> 0 | D79: 0 | H79: 0
A80: 0 | B80: =B58*$D58 -> 0 | C80: =C58*$D58 -> 0 | D80: 0 | H80: 0
A81: Total Rate Riders | B81: =SUM(B75:B80) -> 126.4169156 | C81: =SUM(C75:C80) -> 43.99000827 | D81: =SUM(D75:D80) -> -82.42690736 | E81: =IF(ISERROR(D81/B81),0,D81/B81) -> -0.6520243509
A83: Total Bill | B83: =B61+B69+B71+B72+B81 -> 2342.305017 | C83: =C61+C69+C71+C72+C81 -> 2286.990275 | D83: =D61+D69+D71+D72+D81 -> -55.31474221 | E83: =IFERROR(D83/B83,"") -> -0.02361551625
A85: R2 - Seasonal - Full Year
A86: Annual Billings | B86: Current | C86: Proposed | D86: Variance $ | E86: Variance %
A87: Commodity | B87: =B21+B61 -> 3879.85446 | C87: =C21+C61 -> 3879.85446 | D87: 0 | E87: =IFERROR(D87/B87,"") -> 0 | H87: ='For Bill Impact(HideBeforeFile)'!$D$5 -> Commodity
A89: =A63 -> Distribution
A90: =A64 -> Monthly Service Charge | B90: =B24+B64 -> 281.76 | C90: 289.478463 | D90: 7.718463005 | E90: =IFERROR(D90/B90,"") -> 0.02739375002 | H90: ='For Bill Impact(HideBeforeFile)'!$L$5 -> Dist. Customer Rate
E91: =IFERROR(D91/B91,"") -> 
A92: Block 1 (First 1,000 m3 per month) | B92: =B26+B66 -> 487.8074565 | C92: 501.170332 | D92: 13.36287552 | E92: 0.02739375002 | H92: ='For Bill Impact(HideBeforeFile)'!$M$5 -> Dist. Vol. Rate Tier 1
A93: Block 2 (Next 24,000 m3 per month) | B93: =B27+B67 -> 1535.72041 | C93: 1577.789551 | D93: 42.069141 | E93: 0.02739375002 | H93: ='For Bill Impact(HideBeforeFile)'!$N$5 -> Dist. Vol. Rate Tier 2
A94: Block 3 (Over 25,000 m3 per month) | B94: =B28+B68 -> 170.6508459 | C94: 175.3256125 | D94: 4.674766613 | E94: 0.02739375002
A95: Total Distribution | B95: =SUM(B90:B94) -> 2475.938712 | C95: =SUM(C90:C94) -> 2543.763958 | D95: 67.82524614 | E95: =IF(ISERROR(D95/B95),0,D95/B95) -> 0.02739375002
A97: Bill 32 | B97: =B31+B71 -> 12 | C97: =C31+C71 -> 12 | D97: 0 | E97: =IFERROR(D97/B97,"") -> 0
A98: =A72 -> Transportation | B98: =B32+B72 -> 625.8764197 | C98: 625.8764197 | D98: 0 | E98: =IFERROR(D98/B98,"") -> 0 | H98: ='For Bill Impact(HideBeforeFile)'!$E$5 -> Transportation
A100: Rate Riders
A101: =A75 -> REDA | B101: =B35+B75 -> 0 | C101: 0.72 | D101: 0.72 | E101: =IFERROR(D101/B101,"") -> 
A102: =A76 -> PGTVA | B102: =B36+B76 -> 153.6217372 | C102: 69.56014218 | D102: -84.06159504 | E102: -0.5471985707
A103: UFGVA | B103: =B37+B77 -> 312.8177229 | C103: 91.64252416 | D103: -221.1751988 | E103: -0.7070417772
A104: 0 | B104: =B38+B78 -> 0 | C104: 0 | D104: 0
A105: 0 | B105: =B39+B79 -> 0 | C105: 0 | D105: 0
A106: 0 | B106: =B40+B80 -> 0 | C106: 0 | D106: 0
A107: Total Rate Riders | B107: =SUM(B101:B106) -> 466.4394601 | C107: =SUM(C101:C106) -> 161.9226663 | D107: =SUM(D101:D106) -> -304.5167938 | E107: =IF(ISERROR(D107/B107),0,D107/B107) -> -0.6528538424
A109: Total Bill | B109: =B87+B95+B97+B98+B107 -> 7460.109052 | C109: =C87+C95+C97+C98+C107 -> 7223.417504 | D109: =D87+D95+D97+D98+D107 -> -236.6915477 | E109: =IFERROR(D109/B109,"") -> -0.0317276257

Sheet G3. R3 Bill Impact
A1: ='D1a. Rate 1-Res Adjustment'!A1 -> EPCOR Natural Gas Limited Partnership
A2: ='D1a. Rate 1-Res Adjustment'!A2 -> EB-2025-0177
A3: =MID(CELL("filename",A3),FIND("]",CELL("filename",A3))+1,255) -> G3. R3 Bill Impact
A5: ='For Bill Impact(HideBeforeFile)'!C10 -> R3 - Large Volume Contract | H5: Look-up
A6: Rates | B6: Current | C6: Proposed | D6: Bill Determinant | E6: Calculation
A7: =INDEX('For Bill Impact(HideBeforeFile)'!$D$45:$P$53,MATCH(A5,'For Bill Impact(HideBeforeFile)'!$C$58:$C$66,0),MATCH($H7,'For Bill Impact(HideBeforeFile)'!$D$57:$P$57,0)) -> Commodity | B7: =INDEX('For Bill Impact(HideBeforeFile)'!$D$6:$P$14,MATCH(A5,'For Bill Impact(HideBeforeFile)'!$C$58:$C$66,0),MATCH($H7,'For Bill Impact(HideBeforeFile)'!$D$57:$P$57,0)) -> 18.077 | C7: =INDEX('For Bill Impact(HideBeforeFile)'!$D$19:$P$27,MATCH(A5,'For Bill Impact(HideBeforeFile)'!$C$58:$C$66,0),MATCH($H7,'For Bill Impact(HideBeforeFile)'!$D$57:$P$57,0)) -> 18.077 | D7: =INDEX('For Bill Impact(HideBeforeFile)'!$D$32:$P$40,MATCH(A5,'For Bill Impact(HideBeforeFile)'!$C$58:$C$66,0),MATCH($H7,'For Bill Impact(HideBeforeFile)'!$D$57:$P$57,0)) -> 575019.6129 | E7: =INDEX('For Bill Impact(HideBeforeFile)'!$D$58:$P$66,MATCH(A5,'For Bill Impact(HideBeforeFile)'!$C$58:$C$66,0),MATCH($H7,'For Bill Impact(HideBeforeFile)'!$D$57:$P$57,0)) -> cents / m3 | H7: ='For Bill Impact(HideBeforeFile)'!$D$5 -> Commodity
A8: =INDEX('For Bill Impact(HideBeforeFile)'!$D$45:$P$53,MATCH(A5,'For Bill Impact(HideBeforeFile)'!$C$58:$C$66,0),MATCH($H8,'For Bill Impact(HideBeforeFile)'!$D$57:$P$57,0)) -> Monthly Service Charge | B8: =INDEX('For Bill Impact(HideBeforeFile)'!$D$6:$P$14,MATCH(A5,'For Bill Impact(HideBeforeFile)'!$C$58:$C$66,0),MATCH($H8,'For Bill Impact(HideBeforeFile)'!$D$57:$P$57,0)) -> 233.68 | C8: =INDEX('For Bill Impact(HideBeforeFile)'!$D$19:$P$27,MATCH(A5,'For Bill Impact(HideBeforeFile)'!$C$58:$C$66,0),MATCH($H8,'For Bill Impact(HideBeforeFile)'!$D$57:$P$57,0)) -> 240.0813715 | D8: =INDEX('For Bill Impact(HideBeforeFile)'!$D$32:$P$40,MATCH(A5,'For Bill Impact(HideBeforeFile)'!$C$58:$C$66,0),MATCH($H8,'For Bill Impact(HideBeforeFile)'!$D$57:$P$57,0)) -> 12 | E8: =INDEX('For Bill Impact(HideBeforeFile)'!$D$58:$P$66,MATCH(A5,'For Bill Impact(HideBeforeFile)'!$C$58:$C$66,0),MATCH($H8,'For Bill Impact(HideBeforeFile)'!$D$57:$P$57,0)) -> $ / month | H8: ='For Bill Impact(HideBeforeFile)'!$L$5 -> Dist. Customer Rate
A9: =INDEX('For Bill Impact(HideBeforeFile)'!$D$45:$P$53,MATCH(A5,'For Bill Impact(HideBeforeFile)'!$C$58:$C$66,0),MATCH($H9,'For Bill Impact(HideBeforeFile)'!$D$57:$P$57,0)) -> Delivery - Firm | B9: =INDEX('For Bill Impact(HideBeforeFile)'!$D$6:$P$14,MATCH(A5,'For Bill Impact(HideBeforeFile)'!$C$58:$C$66,0),MATCH($H9,'For Bill Impact(HideBeforeFile)'!$D$57:$P$57,0)) -> 1.7539 | C9: =INDEX('For Bill Impact(HideBeforeFile)'!$D$19:$P$27,MATCH(A5,'For Bill Impact(HideBeforeFile)'!$C$58:$C$66,0),MATCH($H9,'For Bill Impact(HideBeforeFile)'!$D$57:$P$57,0)) -> 1.801945898 | D9: =INDEX('For Bill Impact(HideBeforeFile)'!$D$32:$P$40,MATCH(A5,'For Bill Impact(HideBeforeFile)'!$C$58:$C$66,0),MATCH($H9,'For Bill Impact(HideBeforeFile)'!$D$57:$P$57,0)) -> 575019.6129 | E9: =INDEX('For Bill Impact(HideBeforeFile)'!$D$58:$P$66,MATCH(A5,'For Bill Impact(HideBeforeFile)'!$C$58:$C$66,0),MATCH($H9,'For Bill Impact(HideBeforeFile)'!$D$57:$P$57,0)) -> cents / m3 | H9: ='For Bill Impact(HideBeforeFile)'!$M$5 -> Dist. Vol. Rate Tier 1
A10: =INDEX('For Bill Impact(HideBeforeFile)'!$D$45:$P$53,MATCH(A5,'For Bill Impact(HideBeforeFile)'!$C$58:$C$66,0),MATCH($H10,'For Bill Impact(HideBeforeFile)'!$D$57:$P$57,0)) -> Demand - Firm | B10: =INDEX('For Bill Impact(HideBeforeFile)'!$D$6:$P$14,MATCH(A5,'For Bill Impact(HideBeforeFile)'!$C$58:$C$66,0),MATCH($H10,'For Bill Impact(HideBeforeFile)'!$D$57:$P$57,0)) -> 33.9977 | C10: =INDEX('For Bill Impact(HideBeforeFile)'!$D$19:$P$27,MATCH(A5,'For Bill Impact(HideBeforeFile)'!$C$58:$C$66,0),MATCH($H10,'For Bill Impact(HideBeforeFile)'!$D$57:$P$57,0)) -> 34.92902449 | D10: =INDEX('For Bill Impact(HideBeforeFile)'!$D$32:$P$40,MATCH(A5,'For Bill Impact(HideBeforeFile)'!$C$58:$C$66,0),MATCH($H10,'For Bill Impact(HideBeforeFile)'!$D$57:$P$57,0)) -> 116293.44 | E10: =INDEX('For Bill Impact(HideBeforeFile)'!$D$58:$P$66,MATCH(A5,'For Bill Impact(HideBeforeFile)'!$C$58:$C$66,0),MATCH($H10,'For Bill Impact(HideBeforeFile)'!$D$57:$P$57,0)) -> cents / m3 | H10: ='For Bill Impact(HideBeforeFile)'!P44 -> Dist. Capacity Rate
A11: =INDEX('For Bill Impact(HideBeforeFile)'!$D$45:$P$53,MATCH(A5,'For Bill Impact(HideBeforeFile)'!$C$58:$C$66,0),MATCH($H11,'For Bill Impact(HideBeforeFile)'!$D$57:$P$57,0)) ->  | B11: =INDEX('For Bill Impact(HideBeforeFile)'!$D$6:$P$14,MATCH(A5,'For Bill Impact(HideBeforeFile)'!$C$58:$C$66,0),MATCH($H11,'For Bill Impact(HideBeforeFile)'!$D$57:$P$57,0)) ->  | C11: =INDEX('For Bill Impact(HideBeforeFile)'!$D$19:$P$27,MATCH(A5,'For Bill Impact(HideBeforeFile)'!$C$58:$C$66,0),MATCH($H11,'For Bill Impact(HideBeforeFile)'!$D$57:$P$57,0)) -> 0 | D11: =INDEX('For Bill Impact(HideBeforeFile)'!$D$32:$P$40,MATCH(A5,'For Bill Impact(HideBeforeFile)'!$C$58:$C$66,0),MATCH($H11,'For Bill Impact(HideBeforeFile)'!$D$57:$P$57,0)) ->  | E11: =INDEX('For Bill Impact(HideBeforeFile)'!$D$58:$P$66,MATCH(A5,'For Bill Impact(HideBeforeFile)'!$C$58:$C$66,0),MATCH($H11,'For Bill Impact(HideBeforeFile)'!$D$57:$P$57,0)) ->  | H11: ='For Bill Impact(HideBeforeFile)'!$N$5 -> Dist. Vol. Rate Tier 2
A12: =INDEX('For Bill Impact(HideBeforeFile)'!$D$45:$P$53,MATCH(A5,'For Bill Impact(HideBeforeFile)'!$C$58:$C$66,0),MATCH($H12,'For Bill Impact(HideBeforeFile)'!$D$57:$P$57,0)) -> Transportation | B12: =INDEX('For Bill Impact(HideBeforeFile)'!$D$6:$P$14,MATCH(A5,'For Bill Impact(HideBeforeFile)'!$C$58:$C$66,0),MATCH($H12,'For Bill Impact(HideBeforeFile)'!$D$57:$P$57,0)) -> 2.916080527 | C12: =INDEX('For Bill Impact(HideBeforeFile)'!$D$19:$P$27,MATCH(A5,'For Bill Impact(HideBeforeFile)'!$C$58:$C$66,0),MATCH($H12,'For Bill Impact(HideBeforeFile)'!$D$57:$P$57,0)) -> 2.916080527 | D12: =INDEX('For Bill Impact(HideBeforeFile)'!$D$32:$P$40,MATCH(A5,'For Bill Impact(HideBeforeFile)'!$C$58:$C$66,0),MATCH($H12,'For Bill Impact(HideBeforeFile)'!$D$57:$P$57,0)) -> 575019.6129 | E12: =INDEX('For Bill Impact(HideBeforeFile)'!$D$58:$P$66,MATCH(A5,'For Bill Impact(HideBeforeFile)'!$C$58:$C$66,0),MATCH($H12,'For Bill Impact(HideBeforeFile)'!$D$57:$P$57,0)) -> cents / m3 | H12: ='For Bill Impact(HideBeforeFile)'!$E$5 -> Transportation
A13: =INDEX('For Bill Impact(HideBeforeFile)'!$D$45:$P$53,MATCH(A5,'For Bill Impact(HideBeforeFile)'!$C$58:$C$66,0),MATCH($H13,'For Bill Impact(HideBeforeFile)'!$D$57:$P$57,0)) -> REDA | B13: =INDEX('For Bill Impact(HideBeforeFile)'!$D$6:$P$14,MATCH(A5,'For Bill Impact(HideBeforeFile)'!$C$58:$C$66,0),MATCH($H13,'For Bill Impact(HideBeforeFile)'!$D$57:$P$57,0)) -> 0 | C13: =INDEX('For Bill Impact(HideBeforeFile)'!$D$19:$P$27,MATCH(A5,'For Bill Impact(HideBeforeFile)'!$C$58:$C$66,0),MATCH($H13,'For Bill Impact(HideBeforeFile)'!$D$57:$P$57,0)) -> 0.06 | D13: =INDEX('For Bill Impact(HideBeforeFile)'!$D$32:$P$40,MATCH(A5,'For Bill Impact(HideBeforeFile)'!$C$58:$C$66,0),MATCH($H13,'For Bill Impact(HideBeforeFile)'!$D$57:$P$57,0)) -> 12 | E13: =INDEX('For Bill Impact(HideBeforeFile)'!$D$58:$P$66,MATCH(A5,'For Bill Impact(HideBeforeFile)'!$C$58:$C$66,0),MATCH($H13,'For Bill Impact(HideBeforeFile)'!$D$57:$P$57,0)) -> $ / month | H13: ='For Bill Impact(HideBeforeFile)'!$F$5 -> REDA
A14: =INDEX('For Bill Impact(HideBeforeFile)'!$D$45:$P$53,MATCH(A5,'For Bill Impact(HideBeforeFile)'!$C$58:$C$66,0),MATCH($H14,'For Bill Impact(HideBeforeFile)'!$D$57:$P$57,0)) -> PGTVA | B14: =INDEX('For Bill Impact(HideBeforeFile)'!$D$6:$P$14,MATCH(A5,'For Bill Impact(HideBeforeFile)'!$C$58:$C$66,0),MATCH($H14,'For Bill Impact(HideBeforeFile)'!$D$57:$P$57,0)) -> 0.2336479504 | C14: =INDEX('For Bill Impact(HideBeforeFile)'!$D$19:$P$27,MATCH(A5,'For Bill Impact(HideBeforeFile)'!$C$58:$C$66,0),MATCH($H14,'For Bill Impact(HideBeforeFile)'!$D$57:$P$57,0)) -> 0.3240942935 | D14: =INDEX('For Bill Impact(HideBeforeFile)'!$D$32:$P$40,MATCH(A5,'For Bill Impact(HideBeforeFile)'!$C$58:$C$66,0),MATCH($H14,'For Bill Impact(HideBeforeFile)'!$D$57:$P$57,0)) -> 575019.6129 | E14: =INDEX('For Bill Impact(HideBeforeFile)'!$D$58:$P$66,MATCH(A5,'For Bill Impact(HideBeforeFile)'!$C$58:$C$66,0),MATCH($H14,'For Bill Impact(HideBeforeFile)'!$D$57:$P$57,0)) -> cents / m3 | H14: ='For Bill Impact(HideBeforeFile)'!$G$5 -> PGTVA
A15: =INDEX('For Bill Impact(HideBeforeFile)'!$D$45:$P$53,MATCH(A5,'For Bill Impact(HideBeforeFile)'!$C$58:$C$66,0),MATCH($H15,'For Bill Impact(HideBeforeFile)'!$D$57:$P$57,0)) -> UFGVA | B15: =INDEX('For Bill Impact(HideBeforeFile)'!$D$6:$P$14,MATCH(A5,'For Bill Impact(HideBeforeFile)'!$C$58:$C$66,0),MATCH($H15,'For Bill Impact(HideBeforeFile)'!$D$57:$P$57,0)) -> 0.527673602 | C15: =INDEX('For Bill Impact(HideBeforeFile)'!$D$19:$P$27,MATCH(A5,'For Bill Impact(HideBeforeFile)'!$C$58:$C$66,0),MATCH($H15,'For Bill Impact(HideBeforeFile)'!$D$57:$P$57,0)) -> 0.4269804258 | D15: =INDEX('For Bill Impact(HideBeforeFile)'!$D$32:$P$40,MATCH(A5,'For Bill Impact(HideBeforeFile)'!$C$58:$C$66,0),MATCH($H15,'For Bill Impact(HideBeforeFile)'!$D$57:$P$57,0)) -> 575019.6129 | E15: =INDEX('For Bill Impact(HideBeforeFile)'!$D$58:$P$66,MATCH(A5,'For Bill Impact(HideBeforeFile)'!$C$58:$C$66,0),MATCH($H15,'For Bill Impact(HideBeforeFile)'!$D$57:$P$57,0)) -> cents / m3 | H15: ='For Bill Impact(HideBeforeFile)'!$H$5 -> UFGVA
A16: =INDEX('For Bill Impact(HideBeforeFile)'!$D$45:$P$53,MATCH(A5,'For Bill Impact(HideBeforeFile)'!$C$58:$C$66,0),MATCH($H16,'For Bill Impact(HideBeforeFile)'!$D$57:$P$57,0)) -> 0 | B16: =INDEX('For Bill Impact(HideBeforeFile)'!$D$6:$P$14,MATCH(A5,'For Bill Impact(HideBeforeFile)'!$C$58:$C$66,0),MATCH($H16,'For Bill Impact(HideBeforeFile)'!$D$57:$P$57,0)) -> 0 | C16: =INDEX('For Bill Impact(HideBeforeFile)'!$D$19:$P$27,MATCH(A5,'For Bill Impact(HideBeforeFile)'!$C$58:$C$66,0),MATCH($H16,'For Bill Impact(HideBeforeFile)'!$D$57:$P$57,0)) -> 0 | D16: =INDEX('For Bill Impact(HideBeforeFile)'!$D$32:$P$40,MATCH(A5,'For Bill Impact(HideBeforeFile)'!$C$58:$C$66,0),MATCH($H16,'For Bill Impact(HideBeforeFile)'!$D$57:$P$57,0)) -> 12 | E16: =INDEX('For Bill Impact(HideBeforeFile)'!$D$58:$P$66,MATCH(A5,'For Bill Impact(HideBeforeFile)'!$C$58:$C$66,0),MATCH($H16,'For Bill Impact(HideBeforeFile)'!$D$57:$P$57,0)) -> $ / month | H16: ='For Bill Impact(HideBeforeFile)'!$I$5 -> 0
A17: =INDEX('For Bill Impact(HideBeforeFile)'!$D$45:$P$53,MATCH(A5,'For Bill Impact(HideBeforeFile)'!$C$58:$C$66,0),MATCH($H17,'For Bill Impact(HideBeforeFile)'!$D$57:$P$57,0)) -> 0 | B17: =INDEX('For Bill Impact(HideBeforeFile)'!$D$6:$P$14,MATCH(A5,'For Bill Impact(HideBeforeFile)'!$C$58:$C$66,0),MATCH($H17,'For Bill Impact(HideBeforeFile)'!$D$57:$P$57,0)) -> 0 | C17: =INDEX('For Bill Impact(HideBeforeFile)'!$D$19:$P$27,MATCH(A5,'For Bill Impact(HideBeforeFile)'!$C$58:$C$66,0),MATCH($H17,'For Bill Impact(HideBeforeFile)'!$D$57:$P$57,0)) -> 0 | D17: =INDEX('For Bill Impact(HideBeforeFile)'!$D$32:$P$40,MATCH(A5,'For Bill Impact(HideBeforeFile)'!$C$58:$C$66,0),MATCH($H17,'For Bill Impact(HideBeforeFile)'!$D$57:$P$57,0)) -> 12 | E17: =INDEX('For Bill Impact(HideBeforeFile)'!$D$58:$P$66,MATCH(A5,'For Bill Impact(HideBeforeFile)'!$C$58:$C$66,0),MATCH($H17,'For Bill Impact(HideBeforeFile)'!$D$57:$P$57,0)) -> $ / month | H17: ='For Bill Impact(HideBeforeFile)'!$J$5 -> 0
A18: =INDEX('For Bill Impact(HideBeforeFile)'!$D$45:$P$53,MATCH(A5,'For Bill Impact(HideBeforeFile)'!$C$58:$C$66,0),MATCH($H18,'For Bill Impact(HideBeforeFile)'!$D$57:$P$57,0)) -> 0 | B18: =INDEX('For Bill Impact(HideBeforeFile)'!$D$6:$P$14,MATCH(A5,'For Bill Impact(HideBeforeFile)'!$C$58:$C$66,0),MATCH($H18,'For Bill Impact(HideBeforeFile)'!$D$57:$P$57,0)) -> 0 | C18: =INDEX('For Bill Impact(HideBeforeFile)'!$D$19:$P$27,MATCH(A5,'For Bill Impact(HideBeforeFile)'!$C$58:$C$66,0),MATCH($H18,'For Bill Impact(HideBeforeFile)'!$D$57:$P$57,0)) -> 0 | D18: =INDEX('For Bill Impact(HideBeforeFile)'!$D$32:$P$40,MATCH(A5,'For Bill Impact(HideBeforeFile)'!$C$58:$C$66,0),MATCH($H18,'For Bill Impact(HideBeforeFile)'!$D$57:$P$57,0)) -> 12 | E18: =INDEX('For Bill Impact(HideBeforeFile)'!$D$58:$P$66,MATCH(A5,'For Bill Impact(HideBeforeFile)'!$C$58:$C$66,0),MATCH($H18,'For Bill Impact(HideBeforeFile)'!$D$57:$P$57,0)) -> $ / month | H18: ='For Bill Impact(HideBeforeFile)'!$K$5 -> 0
A20: Annual Billings | B20: Current | C20: Proposed | D20: Variance $ | E20: Variance %
A21: Commodity | B21: =B7*$D7/100 -> 103946.2954 | C21: =C7*$D7/100 -> 103946.2954 | D21: =C21-B21 -> 0 | E21: =IFERROR(D21/B21,"") -> 0 | H21: ='For Bill Impact(HideBeforeFile)'!$D$5 -> Commodity
A23: Distribution
A24: =IF(A8<>"",A8,"") -> Monthly Service Charge | B24: =B8*$D8 -> 2804.16 | C24: =C8*$D8 -> 2880.976458 | D24: =IFERROR(C24-B24,"") -> 76.81645805 | E24: =IFERROR(D24/B24,"") -> 0.02739375002 | H24: ='For Bill Impact(HideBeforeFile)'!$L$5 -> Dist. Customer Rate
A26: =IF(A9<>"",A9,"") -> Delivery - Firm | B26: =IFERROR(B9*$D9/100,"") -> 10085.26899 | C26: 10361.54233 | D26: =IFERROR(C26-B26,"") -> 276.2733376 | E26: =IFERROR(D26/B26,"") -> 0.02739375002 | H26: ='For Bill Impact(HideBeforeFile)'!$M$5 -> Dist. Vol. Rate Tier 1
A27: =IF(A10<>"",A10,"") -> Demand - Firm | B27: 39537.09485 | C27: 40620.16414 | D27: =IFERROR(C27-B27,"") -> 1083.069293 | E27: =IFERROR(D27/B27,"") -> 0.02739375002
A28: =IF(A11<>"",A11,"") ->  | D28: =IFERROR(C28-B28,"") ->  | E28: =IFERROR(D28/B28,"") ->  | H28: ='For Bill Impact(HideBeforeFile)'!$N$5 -> Dist. Vol. Rate Tier 2
A29: Total Distribution | B29: =SUM(B24:B28) -> 52426.52384 | C29: =SUM(C24:C28) -> 53862.68293 | D29: =SUM(D24:D28) -> 1436.159088 | E29: =IF(ISERROR(D29/B29),0,D29/B29) -> 0.02739375002
A31: Bill 32 | B31: 12 | C31: 12 | D31: =IFERROR(C31-B31,"") -> 0 | E31: =IFERROR(D31/B31,"") -> 0
A32: =IF(A12<>"",A12,"") -> Transportation | B32: =IFERROR(B12*$D12/100,"") -> 16768.03496 | C32: =IFERROR(C12*$D12/100,"") -> 16768.03496 | D32: =IFERROR(C32-B32,"") -> 0 | E32: =IFERROR(D32/B32,"") -> 0 | H32: ='For Bill Impact(HideBeforeFile)'!$E$5 -> Transportation
A34: Rate Riders
A35: =A13 -> REDA | B35: =B13*$D13 -> 0 | C35: =C13*$D13 -> 0.72 | D35: =IFERROR(C35-B35,"") -> 0.72 | E35: =IFERROR(D35/B35,"") ->  | H35: =H13 -> REDA
A36: PGTVA | B36: =IFERROR(B14*$D14/100,"") -> 1343.52154 | C36: =IFERROR(C14*$D14/100,"") -> 1863.605752 | D36: 520.0842123 | E36: 0.3871052282 | H36: =H14 -> PGTVA
A37: UFGVA | B37: =IFERROR(B15*$D15/100,"") -> 3034.226704 | C37: =IFERROR(C15*$D15/100,"") -> 2455.221192 | D37: -579.0055124 | E37: -0.1908247369 | H37: UFGVA
A38: 0 | B38: =B16*$D16 -> 0 | C38: =C16*$D16 -> 0 | D38: 0 | H38: 0
A39: 0 | B39: =IFERROR(B17*$D17/100,"") -> 0 | C39: =IFERROR(C17*$D17/100,"") -> 0 | D39: 0 | H39: 0
A40: 0 | B40: =B18*$D18 -> 0 | C40: =C18*$D18 -> 0 | D40: 0 | H40: 0
A41: Total Rate Riders | B41: =SUM(B35:B40) -> 4377.748244 | C41: =SUM(C35:C40) -> 4319.546944 | D41: =SUM(D35:D40) -> -58.20130012 | E41: =IF(ISERROR(D41/B41),0,D41/B41) -> -0.01329480292
A43: Total Bill | B43: =B21+B29+B31+B32+B41 -> 177530.6025 | C43: =C21+C29+C31+C32+C41 -> 178908.5603 | D43: =D21+D29+D31+D32+D41 -> 1377.957788 | E43: =IFERROR(D43/B43,"") -> 0.00776180427

Sheet G4. R4 Bill Impact
A1: ='D1a. Rate 1-Res Adjustment'!A1 -> EPCOR Natural Gas Limited Partnership
A2: ='D1a. Rate 1-Res Adjustment'!A2 -> EB-2025-0177
A3: =MID(CELL("filename",A3),FIND("]",CELL("filename",A3))+1,255) -> G4. R4 Bill Impact
A5: ='For Bill Impact(HideBeforeFile)'!C11 -> R4 - Peaking - Apr to Dec | H5: Look-up
A6: Rates | B6: Current | C6: Proposed | D6: Bill Determinant | E6: Calculation
A7: =INDEX('For Bill Impact(HideBeforeFile)'!$D$45:$P$53,MATCH(A5,'For Bill Impact(HideBeforeFile)'!$C$58:$C$66,0),MATCH($H7,'For Bill Impact(HideBeforeFile)'!$D$57:$P$57,0)) -> Commodity | B7: =INDEX('For Bill Impact(HideBeforeFile)'!$D$6:$P$14,MATCH(A5,'For Bill Impact(HideBeforeFile)'!$C$58:$C$66,0),MATCH($H7,'For Bill Impact(HideBeforeFile)'!$D$57:$P$57,0)) -> 18.077 | C7: =INDEX('For Bill Impact(HideBeforeFile)'!$D$19:$P$27,MATCH(A5,'For Bill Impact(HideBeforeFile)'!$C$58:$C$66,0),MATCH($H7,'For Bill Impact(HideBeforeFile)'!$D$57:$P$57,0)) -> 18.077 | D7: =INDEX('For Bill Impact(HideBeforeFile)'!$D$32:$P$40,MATCH(A5,'For Bill Impact(HideBeforeFile)'!$C$58:$C$66,0),MATCH($H7,'For Bill Impact(HideBeforeFile)'!$D$57:$P$57,0)) -> 33189.69551 | E7: =INDEX('For Bill Impact(HideBeforeFile)'!$D$58:$P$66,MATCH(A5,'For Bill Impact(HideBeforeFile)'!$C$58:$C$66,0),MATCH($H7,'For Bill Impact(HideBeforeFile)'!$D$57:$P$57,0)) -> cents / m3 | H7: ='For Bill Impact(HideBeforeFile)'!$D$5 -> Commodity
A8: =INDEX('For Bill Impact(HideBeforeFile)'!$D$45:$P$53,MATCH(A5,'For Bill Impact(HideBeforeFile)'!$C$58:$C$66,0),MATCH($H8,'For Bill Impact(HideBeforeFile)'!$D$57:$P$57,0)) -> Monthly Service Charge | B8: =INDEX('For Bill Impact(HideBeforeFile)'!$D$6:$P$14,MATCH(A5,'For Bill Impact(HideBeforeFile)'!$C$58:$C$66,0),MATCH($H8,'For Bill Impact(HideBeforeFile)'!$D$57:$P$57,0)) -> 23.83 | C8: =INDEX('For Bill Impact(HideBeforeFile)'!$D$19:$P$27,MATCH(A5,'For Bill Impact(HideBeforeFile)'!$C$58:$C$66,0),MATCH($H8,'For Bill Impact(HideBeforeFile)'!$D$57:$P$57,0)) -> 24.48279306 | D8: =INDEX('For Bill Impact(HideBeforeFile)'!$D$32:$P$40,MATCH(A5,'For Bill Impact(HideBeforeFile)'!$C$58:$C$66,0),MATCH($H8,'For Bill Impact(HideBeforeFile)'!$D$57:$P$57,0)) -> 9 | E8: =INDEX('For Bill Impact(HideBeforeFile)'!$D$58:$P$66,MATCH(A5,'For Bill Impact(HideBeforeFile)'!$C$58:$C$66,0),MATCH($H8,'For Bill Impact(HideBeforeFile)'!$D$57:$P$57,0)) -> $ / month | H8: ='For Bill Impact(HideBeforeFile)'!$L$5 -> Dist. Customer Rate
A9: =INDEX('For Bill Impact(HideBeforeFile)'!$D$45:$P$53,MATCH(A5,'For Bill Impact(HideBeforeFile)'!$C$58:$C$66,0),MATCH($H9,'For Bill Impact(HideBeforeFile)'!$D$57:$P$57,0)) -> Block 1 (First 1,000 m3 per month) | B9: =INDEX('For Bill Impact(HideBeforeFile)'!$D$6:$P$14,MATCH(A5,'For Bill Impact(HideBeforeFile)'!$C$58:$C$66,0),MATCH($H9,'For Bill Impact(HideBeforeFile)'!$D$57:$P$57,0)) -> 19.2608 | C9: =INDEX('For Bill Impact(HideBeforeFile)'!$D$19:$P$27,MATCH(A5,'For Bill Impact(HideBeforeFile)'!$C$58:$C$66,0),MATCH($H9,'For Bill Impact(HideBeforeFile)'!$D$57:$P$57,0)) -> 19.78842554 | D9: =INDEX('For Bill Impact(HideBeforeFile)'!$D$32:$P$40,MATCH(A5,'For Bill Impact(HideBeforeFile)'!$C$58:$C$66,0),MATCH($H9,'For Bill Impact(HideBeforeFile)'!$D$57:$P$57,0)) -> 2776.286787 | E9: =INDEX('For Bill Impact(HideBeforeFile)'!$D$58:$P$66,MATCH(A5,'For Bill Impact(HideBeforeFile)'!$C$58:$C$66,0),MATCH($H9,'For Bill Impact(HideBeforeFile)'!$D$57:$P$57,0)) -> cents / m3 | H9: ='For Bill Impact(HideBeforeFile)'!$M$5 -> Dist. Vol. Rate Tier 1
A10: =INDEX('For Bill Impact(HideBeforeFile)'!$D$45:$P$53,MATCH(A5,'For Bill Impact(HideBeforeFile)'!$C$58:$C$66,0),MATCH($H10,'For Bill Impact(HideBeforeFile)'!$D$57:$P$57,0)) -> Block 2 (Over 1,000 m3 per month) | B10: =INDEX('For Bill Impact(HideBeforeFile)'!$D$6:$P$14,MATCH(A5,'For Bill Impact(HideBeforeFile)'!$C$58:$C$66,0),MATCH($H10,'For Bill Impact(HideBeforeFile)'!$D$57:$P$57,0)) -> 10.8506 | C10: =INDEX('For Bill Impact(HideBeforeFile)'!$D$19:$P$27,MATCH(A5,'For Bill Impact(HideBeforeFile)'!$C$58:$C$66,0),MATCH($H10,'For Bill Impact(HideBeforeFile)'!$D$57:$P$57,0)) -> 11.14783862 | D10: =INDEX('For Bill Impact(HideBeforeFile)'!$D$32:$P$40,MATCH(A5,'For Bill Impact(HideBeforeFile)'!$C$58:$C$66,0),MATCH($H10,'For Bill Impact(HideBeforeFile)'!$D$57:$P$57,0)) -> 30413.40873 | E10: =INDEX('For Bill Impact(HideBeforeFile)'!$D$58:$P$66,MATCH(A5,'For Bill Impact(HideBeforeFile)'!$C$58:$C$66,0),MATCH($H10,'For Bill Impact(HideBeforeFile)'!$D$57:$P$57,0)) -> cents / m3 | H10: ='For Bill Impact(HideBeforeFile)'!$N$5 -> Dist. Vol. Rate Tier 2
A11: =INDEX('For Bill Impact(HideBeforeFile)'!$D$45:$P$53,MATCH(A5,'For Bill Impact(HideBeforeFile)'!$C$58:$C$66,0),MATCH($H11,'For Bill Impact(HideBeforeFile)'!$D$57:$P$57,0)) -> Transportation | B11: =INDEX('For Bill Impact(HideBeforeFile)'!$D$6:$P$14,MATCH(A5,'For Bill Impact(HideBeforeFile)'!$C$58:$C$66,0),MATCH($H11,'For Bill Impact(HideBeforeFile)'!$D$57:$P$57,0)) -> 2.916080527 | C11: =INDEX('For Bill Impact(HideBeforeFile)'!$D$19:$P$27,MATCH(A5,'For Bill Impact(HideBeforeFile)'!$C$58:$C$66,0),MATCH($H11,'For Bill Impact(HideBeforeFile)'!$D$57:$P$57,0)) -> 2.916080527 | D11: =INDEX('For Bill Impact(HideBeforeFile)'!$D$32:$P$40,MATCH(A5,'For Bill Impact(HideBeforeFile)'!$C$58:$C$66,0),MATCH($H11,'For Bill Impact(HideBeforeFile)'!$D$57:$P$57,0)) -> 33189.69551 | E11: =INDEX('For Bill Impact(HideBeforeFile)'!$D$58:$P$66,MATCH(A5,'For Bill Impact(HideBeforeFile)'!$C$58:$C$66,0),MATCH($H11,'For Bill Impact(HideBeforeFile)'!$D$57:$P$57,0)) -> cents / m3 | H11: ='For Bill Impact(HideBeforeFile)'!$E$5 -> Transportation
A12: =INDEX('For Bill Impact(HideBeforeFile)'!$D$45:$P$53,MATCH(A5,'For Bill Impact(HideBeforeFile)'!$C$58:$C$66,0),MATCH($H12,'For Bill Impact(HideBeforeFile)'!$D$57:$P$57,0)) -> REDA | B12: =INDEX('For Bill Impact(HideBeforeFile)'!$D$6:$P$14,MATCH(A5,'For Bill Impact(HideBeforeFile)'!$C$58:$C$66,0),MATCH($H12,'For Bill Impact(HideBeforeFile)'!$D$57:$P$57,0)) -> 0 | C12: =INDEX('For Bill Impact(HideBeforeFile)'!$D$19:$P$27,MATCH(A5,'For Bill Impact(HideBeforeFile)'!$C$58:$C$66,0),MATCH($H12,'For Bill Impact(HideBeforeFile)'!$D$57:$P$57,0)) -> 0.06 | D12: =INDEX('For Bill Impact(HideBeforeFile)'!$D$32:$P$40,MATCH(A5,'For Bill Impact(HideBeforeFile)'!$C$58:$C$66,0),MATCH($H12,'For Bill Impact(HideBeforeFile)'!$D$57:$P$57,0)) -> 9 | E12: =INDEX('For Bill Impact(HideBeforeFile)'!$D$58:$P$66,MATCH(A5,'For Bill Impact(HideBeforeFile)'!$C$58:$C$66,0),MATCH($H12,'For Bill Impact(HideBeforeFile)'!$D$57:$P$57,0)) -> $ / month | H12: ='For Bill Impact(HideBeforeFile)'!$F$5 -> REDA
A13: =INDEX('For Bill Impact(HideBeforeFile)'!$D$45:$P$53,MATCH(A5,'For Bill Impact(HideBeforeFile)'!$C$58:$C$66,0),MATCH($H13,'For Bill Impact(HideBeforeFile)'!$D$57:$P$57,0)) -> PGTVA | B13: =INDEX('For Bill Impact(HideBeforeFile)'!$D$6:$P$14,MATCH(A5,'For Bill Impact(HideBeforeFile)'!$C$58:$C$66,0),MATCH($H13,'For Bill Impact(HideBeforeFile)'!$D$57:$P$57,0)) -> 0.6539084146 | C13: =INDEX('For Bill Impact(HideBeforeFile)'!$D$19:$P$27,MATCH(A5,'For Bill Impact(HideBeforeFile)'!$C$58:$C$66,0),MATCH($H13,'For Bill Impact(HideBeforeFile)'!$D$57:$P$57,0)) -> 0.3240942935 | D13: =INDEX('For Bill Impact(HideBeforeFile)'!$D$32:$P$40,MATCH(A5,'For Bill Impact(HideBeforeFile)'!$C$58:$C$66,0),MATCH($H13,'For Bill Impact(HideBeforeFile)'!$D$57:$P$57,0)) -> 33189.69551 | E13: =INDEX('For Bill Impact(HideBeforeFile)'!$D$58:$P$66,MATCH(A5,'For Bill Impact(HideBeforeFile)'!$C$58:$C$66,0),MATCH($H13,'For Bill Impact(HideBeforeFile)'!$D$57:$P$57,0)) -> cents / m3 | H13: ='For Bill Impact(HideBeforeFile)'!$G$5 -> PGTVA
A14: =INDEX('For Bill Impact(HideBeforeFile)'!$D$45:$P$53,MATCH(A5,'For Bill Impact(HideBeforeFile)'!$C$58:$C$66,0),MATCH($H14,'For Bill Impact(HideBeforeFile)'!$D$57:$P$57,0)) -> UFGVA | B14: =INDEX('For Bill Impact(HideBeforeFile)'!$D$6:$P$14,MATCH(A5,'For Bill Impact(HideBeforeFile)'!$C$58:$C$66,0),MATCH($H14,'For Bill Impact(HideBeforeFile)'!$D$57:$P$57,0)) -> 1.117808199 | C14: =INDEX('For Bill Impact(HideBeforeFile)'!$D$19:$P$27,MATCH(A5,'For Bill Impact(HideBeforeFile)'!$C$58:$C$66,0),MATCH($H14,'For Bill Impact(HideBeforeFile)'!$D$57:$P$57,0)) -> 0.4269804258 | D14: =INDEX('For Bill Impact(HideBeforeFile)'!$D$32:$P$40,MATCH(A5,'For Bill Impact(HideBeforeFile)'!$C$58:$C$66,0),MATCH($H14,'For Bill Impact(HideBeforeFile)'!$D$57:$P$57,0)) -> 33189.69551 | E14: =INDEX('For Bill Impact(HideBeforeFile)'!$D$58:$P$66,MATCH(A5,'For Bill Impact(HideBeforeFile)'!$C$58:$C$66,0),MATCH($H14,'For Bill Impact(HideBeforeFile)'!$D$57:$P$57,0)) -> cents / m3 | H14: ='For Bill Impact(HideBeforeFile)'!$H$5 -> UFGVA
A15: =INDEX('For Bill Impact(HideBeforeFile)'!$D$45:$P$53,MATCH(A5,'For Bill Impact(HideBeforeFile)'!$C$58:$C$66,0),MATCH($H15,'For Bill Impact(HideBeforeFile)'!$D$57:$P$57,0)) -> 0 | B15: =INDEX('For Bill Impact(HideBeforeFile)'!$D$6:$P$14,MATCH(A5,'For Bill Impact(HideBeforeFile)'!$C$58:$C$66,0),MATCH($H15,'For Bill Impact(HideBeforeFile)'!$D$57:$P$57,0)) -> 0 | C15: =INDEX('For Bill Impact(HideBeforeFile)'!$D$19:$P$27,MATCH(A5,'For Bill Impact(HideBeforeFile)'!$C$58:$C$66,0),MATCH($H15,'For Bill Impact(HideBeforeFile)'!$D$57:$P$57,0)) -> 0 | D15: =INDEX('For Bill Impact(HideBeforeFile)'!$D$32:$P$40,MATCH(A5,'For Bill Impact(HideBeforeFile)'!$C$58:$C$66,0),MATCH($H15,'For Bill Impact(HideBeforeFile)'!$D$57:$P$57,0)) -> 9 | E15: =INDEX('For Bill Impact(HideBeforeFile)'!$D$58:$P$66,MATCH(A5,'For Bill Impact(HideBeforeFile)'!$C$58:$C$66,0),MATCH($H15,'For Bill Impact(HideBeforeFile)'!$D$57:$P$57,0)) -> $ / month | H15: ='For Bill Impact(HideBeforeFile)'!$I$5 -> 0
A16: =INDEX('For Bill Impact(HideBeforeFile)'!$D$45:$P$53,MATCH(A5,'For Bill Impact(HideBeforeFile)'!$C$58:$C$66,0),MATCH($H16,'For Bill Impact(HideBeforeFile)'!$D$57:$P$57,0)) -> 0 | B16: =INDEX('For Bill Impact(HideBeforeFile)'!$D$6:$P$14,MATCH(A5,'For Bill Impact(HideBeforeFile)'!$C$58:$C$66,0),MATCH($H16,'For Bill Impact(HideBeforeFile)'!$D$57:$P$57,0)) -> 0 | C16: =INDEX('For Bill Impact(HideBeforeFile)'!$D$19:$P$27,MATCH(A5,'For Bill Impact(HideBeforeFile)'!$C$58:$C$66,0),MATCH($H16,'For Bill Impact(HideBeforeFile)'!$D$57:$P$57,0)) -> 0 | D16: =INDEX('For Bill Impact(HideBeforeFile)'!$D$32:$P$40,MATCH(A5,'For Bill Impact(HideBeforeFile)'!$C$58:$C$66,0),MATCH($H16,'For Bill Impact(HideBeforeFile)'!$D$57:$P$57,0)) -> 9 | E16: =INDEX('For Bill Impact(HideBeforeFile)'!$D$58:$P$66,MATCH(A5,'For Bill Impact(HideBeforeFile)'!$C$58:$C$66,0),MATCH($H16,'For Bill Impact(HideBeforeFile)'!$D$57:$P$57,0)) -> $ / month | H16: ='For Bill Impact(HideBeforeFile)'!$J$5 -> 0
A17: =INDEX('For Bill Impact(HideBeforeFile)'!$D$45:$P$53,MATCH(A5,'For Bill Impact(HideBeforeFile)'!$C$58:$C$66,0),MATCH($H17,'For Bill Impact(HideBeforeFile)'!$D$57:$P$57,0)) -> 0 | B17: =INDEX('For Bill Impact(HideBeforeFile)'!$D$6:$P$14,MATCH(A5,'For Bill Impact(HideBeforeFile)'!$C$58:$C$66,0),MATCH($H17,'For Bill Impact(HideBeforeFile)'!$D$57:$P$57,0)) -> 0 | C17: =INDEX('For Bill Impact(HideBeforeFile)'!$D$19:$P$27,MATCH(A5,'For Bill Impact(HideBeforeFile)'!$C$58:$C$66,0),MATCH($H17,'For Bill Impact(HideBeforeFile)'!$D$57:$P$57,0)) -> 0 | D17: =INDEX('For Bill Impact(HideBeforeFile)'!$D$32:$P$40,MATCH(A5,'For Bill Impact(HideBeforeFile)'!$C$58:$C$66,0),MATCH($H17,'For Bill Impact(HideBeforeFile)'!$D$57:$P$57,0)) -> 9 | E17: =INDEX('For Bill Impact(HideBeforeFile)'!$D$58:$P$66,MATCH(A5,'For Bill Impact(HideBeforeFile)'!$C$58:$C$66,0),MATCH($H17,'For Bill Impact(HideBeforeFile)'!$D$57:$P$57,0)) -> $ / month | H17: ='For Bill Impact(HideBeforeFile)'!$K$5 -> 0
A19: Annual Billings | B19: Current | C19: Proposed | D19: Variance $ | E19: Variance %
A20: Commodity | B20: =B7*$D7/100 -> 5999.701258 | C20: =C7*$D7/100 -> 5999.701258 | D20: =C20-B20 -> 0 | E20: =IFERROR(D20/B20,"") -> 0 | H20: ='For Bill Impact(HideBeforeFile)'!$D$5 -> Commodity
A22: Distribution
A23: =IF(A8<>"",A8,"") -> Monthly Service Charge | B23: =B8*$D8 -> 214.47 | C23: =C8*$D8 -> 220.3451376 | D23: =IFERROR(C23-B23,"") -> 5.875137566 | E23: =IFERROR(D23/B23,"") -> 0.02739375002 | H23: ='For Bill Impact(HideBeforeFile)'!$L$5 -> Dist. Customer Rate
A25: =IF(A9<>"",A9,"") -> Block 1 (First 1,000 m3 per month) | B25: =IFERROR(B9*$D9/100,"") -> 534.7350455 | C25: =IFERROR(C9*$D9/100,"") -> 549.3834437 | D25: =IFERROR(C25-B25,"") -> 14.64839816 | E25: =IFERROR(D25/B25,"") -> 0.02739375002 | H25: ='For Bill Impact(HideBeforeFile)'!$M$5 -> Dist. Vol. Rate Tier 1
A26: =IF(A10<>"",A10,"") -> Block 2 (Over 1,000 m3 per month) | B26: =IFERROR(B10*$D10/100,"") -> 3300.037327 | C26: =IFERROR(C10*$D10/100,"") -> 3390.437725 | D26: =IFERROR(C26-B26,"") -> 90.40039759 | E26: =IFERROR(D26/B26,"") -> 0.02739375002 | H26: ='For Bill Impact(HideBeforeFile)'!$N$5 -> Dist. Vol. Rate Tier 2
A27: Total Distribution | B27: =SUM(B23:B26) -> 4049.242373 | C27: =SUM(C23:C26) -> 4160.166306 | D27: =SUM(D23:D26) -> 110.9239333 | E27: =IF(ISERROR(D27/B27),0,D27/B27) -> 0.02739375002
A29: Bill 32 | B29: =1*D8 -> 9 | C29: =1*D8 -> 9 | D29: =IFERROR(C29-B29,"") -> 0 | E29: =IFERROR(D29/B29,"") -> 0
A30: =IF(A11<>"",A11,"") -> Transportation | B30: =IFERROR(B11*$D11/100,"") -> 967.8382479 | C30: =IFERROR(C11*$D11/100,"") -> 967.8382479 | D30: =IFERROR(C30-B30,"") -> 0 | E30: =IFERROR(D30/B30,"") -> 0 | H30: ='For Bill Impact(HideBeforeFile)'!$E$5 -> Transportation
A32: Rate Riders
A33: =A12 -> REDA | B33: =B12*$D12 -> 0 | C33: =C12*$D12 -> 0.54 | D33: =IFERROR(C33-B33,"") -> 0.54 | E33: =IFERROR(D33/B33,"") ->  | H33: =H12 -> REDA
A34: PGTVA | B34: =IFERROR(B13*$D13/100,"") -> 217.0302117 | C34: =IFERROR(C13*$D13/100,"") -> 107.5659092 | D34: -109.4643025 | E34: -0.5043735693 | H34: PGTVA
A35: UFGVA | B35: =IFERROR(B14*$D14/100,"") -> 370.9971377 | C35: =IFERROR(C14*$D14/100,"") -> 141.7135032 | D35: -229.2836345 | E35: -0.6180199554 | H35: UFGVA
A36: 0 | B36: =B15*$D15 -> 0 | C36: =C15*$D15 -> 0 | D36: 0 | H36: 0
A37: 0 | B37: =IFERROR(B16*$D16/100,"") -> 0 | C37: =IFERROR(C16*$D16/100,"") -> 0 | D37: 0 | H37: 0
A38: 0 | B38: =B17*$D17 -> 0 | C38: =C17*$D17 -> 0 | D38: 0 | H38: 0
A39: Total Rate Riders | B39: =SUM(B33:B38) -> 588.0273495 | C39: =SUM(C33:C38) -> 249.8194124 | D39: =SUM(D33:D38) -> -338.2079371 | E39: =IF(ISERROR(D39/B39),0,D39/B39) -> -0.5751568143
A41: Total Bill | B41: =B20+B27+B29+B30+B39 -> 11613.80923 | C41: =C20+C27+C29+C30+C39 -> 11386.52522 | D41: =D20+D27+D29+D30+D39 -> -227.2840037 | E41: =IFERROR(D41/B41,"") -> -0.0195701513
A43: ='For Bill Impact(HideBeforeFile)'!C12 -> R4 - Peaking - Jan to Mar | H43: Look-up
A44: Rates | B44: Current | C44: Proposed | D44: Bill Determinant | E44: Calculation
A45: =INDEX('For Bill Impact(HideBeforeFile)'!$D$45:$P$53,MATCH(A43,'For Bill Impact(HideBeforeFile)'!$C$58:$C$66,0),MATCH($H45,'For Bill Impact(HideBeforeFile)'!$D$57:$P$57,0)) -> Commodity | B45: =INDEX('For Bill Impact(HideBeforeFile)'!$D$6:$P$14,MATCH(A43,'For Bill Impact(HideBeforeFile)'!$C$58:$C$66,0),MATCH($H45,'For Bill Impact(HideBeforeFile)'!$D$57:$P$57,0)) -> 18.077 | C45: =INDEX('For Bill Impact(HideBeforeFile)'!$D$19:$P$27,MATCH(A43,'For Bill Impact(HideBeforeFile)'!$C$58:$C$66,0),MATCH($H45,'For Bill Impact(HideBeforeFile)'!$D$57:$P$57,0)) -> 18.077 | D45: =INDEX('For Bill Impact(HideBeforeFile)'!$D$32:$P$40,MATCH(A43,'For Bill Impact(HideBeforeFile)'!$C$58:$C$66,0),MATCH($H45,'For Bill Impact(HideBeforeFile)'!$D$57:$P$57,0)) -> 637.3224445 | E45: =INDEX('For Bill Impact(HideBeforeFile)'!$D$58:$P$66,MATCH(A43,'For Bill Impact(HideBeforeFile)'!$C$58:$C$66,0),MATCH($H45,'For Bill Impact(HideBeforeFile)'!$D$57:$P$57,0)) -> cents / m3 | H45: ='For Bill Impact(HideBeforeFile)'!$D$5 -> Commodity
A46: =INDEX('For Bill Impact(HideBeforeFile)'!$D$45:$P$53,MATCH(A43,'For Bill Impact(HideBeforeFile)'!$C$58:$C$66,0),MATCH($H46,'For Bill Impact(HideBeforeFile)'!$D$57:$P$57,0)) -> Monthly Service Charge | B46: =INDEX('For Bill Impact(HideBeforeFile)'!$D$6:$P$14,MATCH(A43,'For Bill Impact(HideBeforeFile)'!$C$58:$C$66,0),MATCH($H46,'For Bill Impact(HideBeforeFile)'!$D$57:$P$57,0)) -> 23.83 | C46: =INDEX('For Bill Impact(HideBeforeFile)'!$D$19:$P$27,MATCH(A43,'For Bill Impact(HideBeforeFile)'!$C$58:$C$66,0),MATCH($H46,'For Bill Impact(HideBeforeFile)'!$D$57:$P$57,0)) -> 24.48279306 | D46: =INDEX('For Bill Impact(HideBeforeFile)'!$D$32:$P$40,MATCH(A43,'For Bill Impact(HideBeforeFile)'!$C$58:$C$66,0),MATCH($H46,'For Bill Impact(HideBeforeFile)'!$D$57:$P$57,0)) -> 3 | E46: =INDEX('For Bill Impact(HideBeforeFile)'!$D$58:$P$66,MATCH(A43,'For Bill Impact(HideBeforeFile)'!$C$58:$C$66,0),MATCH($H46,'For Bill Impact(HideBeforeFile)'!$D$57:$P$57,0)) -> $ / month | H46: ='For Bill Impact(HideBeforeFile)'!$L$5 -> Dist. Customer Rate
A47: =INDEX('For Bill Impact(HideBeforeFile)'!$D$45:$P$53,MATCH(A43,'For Bill Impact(HideBeforeFile)'!$C$58:$C$66,0),MATCH($H47,'For Bill Impact(HideBeforeFile)'!$D$57:$P$57,0)) -> Block 1 (First 1,000 m3 per month) | B47: =INDEX('For Bill Impact(HideBeforeFile)'!$D$6:$P$14,MATCH(A43,'For Bill Impact(HideBeforeFile)'!$C$58:$C$66,0),MATCH($H47,'For Bill Impact(HideBeforeFile)'!$D$57:$P$57,0)) -> 25.2614 | C47: =INDEX('For Bill Impact(HideBeforeFile)'!$D$19:$P$27,MATCH(A43,'For Bill Impact(HideBeforeFile)'!$C$58:$C$66,0),MATCH($H47,'For Bill Impact(HideBeforeFile)'!$D$57:$P$57,0)) -> 25.95340448 | D47: =INDEX('For Bill Impact(HideBeforeFile)'!$D$32:$P$40,MATCH(A43,'For Bill Impact(HideBeforeFile)'!$C$58:$C$66,0),MATCH($H47,'For Bill Impact(HideBeforeFile)'!$D$57:$P$57,0)) -> 530.0202668 | E47: =INDEX('For Bill Impact(HideBeforeFile)'!$D$58:$P$66,MATCH(A43,'For Bill Impact(HideBeforeFile)'!$C$58:$C$66,0),MATCH($H47,'For Bill Impact(HideBeforeFile)'!$D$57:$P$57,0)) -> cents / m3 | H47: ='For Bill Impact(HideBeforeFile)'!$M$5 -> Dist. Vol. Rate Tier 1
A48: =INDEX('For Bill Impact(HideBeforeFile)'!$D$45:$P$53,MATCH($A$43,'For Bill Impact(HideBeforeFile)'!$C$58:$C$66,0),MATCH($H48,'For Bill Impact(HideBeforeFile)'!$D$57:$P$57,0)) -> Block 2 (Over 1,000 m3 per month) | B48: =INDEX('For Bill Impact(HideBeforeFile)'!$D$6:$P$14,MATCH(A43,'For Bill Impact(HideBeforeFile)'!$C$58:$C$66,0),MATCH($H48,'For Bill Impact(HideBeforeFile)'!$D$57:$P$57,0)) -> 18.9517 | C48: =INDEX('For Bill Impact(HideBeforeFile)'!$D$19:$P$27,MATCH(A43,'For Bill Impact(HideBeforeFile)'!$C$58:$C$66,0),MATCH($H48,'For Bill Impact(HideBeforeFile)'!$D$57:$P$57,0)) -> 19.47085813 | D48: =INDEX('For Bill Impact(HideBeforeFile)'!$D$32:$P$40,MATCH(A43,'For Bill Impact(HideBeforeFile)'!$C$58:$C$66,0),MATCH($H48,'For Bill Impact(HideBeforeFile)'!$D$57:$P$57,0)) -> 107.3021776 | E48: =INDEX('For Bill Impact(HideBeforeFile)'!$D$58:$P$66,MATCH(A43,'For Bill Impact(HideBeforeFile)'!$C$58:$C$66,0),MATCH($H48,'For Bill Impact(HideBeforeFile)'!$D$57:$P$57,0)) -> cents / m3 | H48: ='For Bill Impact(HideBeforeFile)'!$N$5 -> Dist. Vol. Rate Tier 2
A49: =INDEX('For Bill Impact(HideBeforeFile)'!$D$45:$P$53,MATCH(A43,'For Bill Impact(HideBeforeFile)'!$C$58:$C$66,0),MATCH($H49,'For Bill Impact(HideBeforeFile)'!$D$57:$P$57,0)) -> Transportation | B49: =INDEX('For Bill Impact(HideBeforeFile)'!$D$6:$P$14,MATCH(A43,'For Bill Impact(HideBeforeFile)'!$C$58:$C$66,0),MATCH($H49,'For Bill Impact(HideBeforeFile)'!$D$57:$P$57,0)) -> 2.916080527 | C49: =INDEX('For Bill Impact(HideBeforeFile)'!$D$19:$P$27,MATCH(A43,'For Bill Impact(HideBeforeFile)'!$C$58:$C$66,0),MATCH($H49,'For Bill Impact(HideBeforeFile)'!$D$57:$P$57,0)) -> 2.916080527 | D49: =D45 -> 637.3224445 | E49: =INDEX('For Bill Impact(HideBeforeFile)'!$D$58:$P$66,MATCH(A43,'For Bill Impact(HideBeforeFile)'!$C$58:$C$66,0),MATCH($H49,'For Bill Impact(HideBeforeFile)'!$D$57:$P$57,0)) -> cents / m3 | H49: ='For Bill Impact(HideBeforeFile)'!$E$5 -> Transportation
A50: =INDEX('For Bill Impact(HideBeforeFile)'!$D$45:$P$53,MATCH(A43,'For Bill Impact(HideBeforeFile)'!$C$58:$C$66,0),MATCH($H50,'For Bill Impact(HideBeforeFile)'!$D$57:$P$57,0)) -> REDA | B50: =INDEX('For Bill Impact(HideBeforeFile)'!$D$6:$P$14,MATCH(A43,'For Bill Impact(HideBeforeFile)'!$C$58:$C$66,0),MATCH($H50,'For Bill Impact(HideBeforeFile)'!$D$57:$P$57,0)) -> 0 | C50: =INDEX('For Bill Impact(HideBeforeFile)'!$D$19:$P$27,MATCH(A43,'For Bill Impact(HideBeforeFile)'!$C$58:$C$66,0),MATCH($H50,'For Bill Impact(HideBeforeFile)'!$D$57:$P$57,0)) -> 0.06 | D50: =INDEX('For Bill Impact(HideBeforeFile)'!$D$32:$P$40,MATCH(A43,'For Bill Impact(HideBeforeFile)'!$C$58:$C$66,0),MATCH($H50,'For Bill Impact(HideBeforeFile)'!$D$57:$P$57,0)) -> 3 | E50: =INDEX('For Bill Impact(HideBeforeFile)'!$D$58:$P$66,MATCH(A43,'For Bill Impact(HideBeforeFile)'!$C$58:$C$66,0),MATCH($H50,'For Bill Impact(HideBeforeFile)'!$D$57:$P$57,0)) -> $ / month | H50: ='For Bill Impact(HideBeforeFile)'!$F$5 -> REDA
A51: =INDEX('For Bill Impact(HideBeforeFile)'!$D$45:$P$53,MATCH(A43,'For Bill Impact(HideBeforeFile)'!$C$58:$C$66,0),MATCH($H51,'For Bill Impact(HideBeforeFile)'!$D$57:$P$57,0)) -> PGTVA | B51: =INDEX('For Bill Impact(HideBeforeFile)'!$D$6:$P$14,MATCH(A43,'For Bill Impact(HideBeforeFile)'!$C$58:$C$66,0),MATCH($H51,'For Bill Impact(HideBeforeFile)'!$D$57:$P$57,0)) -> 0.6539084146 | C51: =INDEX('For Bill Impact(HideBeforeFile)'!$D$19:$P$27,MATCH(A43,'For Bill Impact(HideBeforeFile)'!$C$58:$C$66,0),MATCH($H51,'For Bill Impact(HideBeforeFile)'!$D$57:$P$57,0)) -> 0.3240942935 | D51: =D45 -> 637.3224445 | E51: =INDEX('For Bill Impact(HideBeforeFile)'!$D$58:$P$66,MATCH(A43,'For Bill Impact(HideBeforeFile)'!$C$58:$C$66,0),MATCH($H51,'For Bill Impact(HideBeforeFile)'!$D$57:$P$57,0)) -> cents / m3 | H51: ='For Bill Impact(HideBeforeFile)'!$G$5 -> PGTVA
A52: =INDEX('For Bill Impact(HideBeforeFile)'!$D$45:$P$53,MATCH(A43,'For Bill Impact(HideBeforeFile)'!$C$58:$C$66,0),MATCH($H52,'For Bill Impact(HideBeforeFile)'!$D$57:$P$57,0)) -> UFGVA | B52: =INDEX('For Bill Impact(HideBeforeFile)'!$D$6:$P$14,MATCH(A43,'For Bill Impact(HideBeforeFile)'!$C$58:$C$66,0),MATCH($H52,'For Bill Impact(HideBeforeFile)'!$D$57:$P$57,0)) -> 1.117808199 | C52: =INDEX('For Bill Impact(HideBeforeFile)'!$D$19:$P$27,MATCH(A43,'For Bill Impact(HideBeforeFile)'!$C$58:$C$66,0),MATCH($H52,'For Bill Impact(HideBeforeFile)'!$D$57:$P$57,0)) -> 0.4269804258 | D52: =D45 -> 637.3224445 | E52: =INDEX('For Bill Impact(HideBeforeFile)'!$D$58:$P$66,MATCH(A43,'For Bill Impact(HideBeforeFile)'!$C$58:$C$66,0),MATCH($H52,'For Bill Impact(HideBeforeFile)'!$D$57:$P$57,0)) -> cents / m3 | H52: ='For Bill Impact(HideBeforeFile)'!$H$5 -> UFGVA
A53: =INDEX('For Bill Impact(HideBeforeFile)'!$D$45:$P$53,MATCH(A43,'For Bill Impact(HideBeforeFile)'!$C$58:$C$66,0),MATCH($H53,'For Bill Impact(HideBeforeFile)'!$D$57:$P$57,0)) -> 0 | B53: =INDEX('For Bill Impact(HideBeforeFile)'!$D$6:$P$14,MATCH(A43,'For Bill Impact(HideBeforeFile)'!$C$58:$C$66,0),MATCH($H53,'For Bill Impact(HideBeforeFile)'!$D$57:$P$57,0)) -> 0 | C53: =INDEX('For Bill Impact(HideBeforeFile)'!$D$19:$P$27,MATCH(A43,'For Bill Impact(HideBeforeFile)'!$C$58:$C$66,0),MATCH($H53,'For Bill Impact(HideBeforeFile)'!$D$57:$P$57,0)) -> 0 | D53: =INDEX('For Bill Impact(HideBeforeFile)'!$D$32:$P$40,MATCH(A43,'For Bill Impact(HideBeforeFile)'!$C$58:$C$66,0),MATCH($H53,'For Bill Impact(HideBeforeFile)'!$D$57:$P$57,0)) -> 3 | E53: =INDEX('For Bill Impact(HideBeforeFile)'!$D$58:$P$66,MATCH(A43,'For Bill Impact(HideBeforeFile)'!$C$58:$C$66,0),MATCH($H53,'For Bill Impact(HideBeforeFile)'!$D$57:$P$57,0)) -> $ / month | H53: ='For Bill Impact(HideBeforeFile)'!$I$5 -> 0
A54: =INDEX('For Bill Impact(HideBeforeFile)'!$D$45:$P$53,MATCH(A43,'For Bill Impact(HideBeforeFile)'!$C$58:$C$66,0),MATCH($H54,'For Bill Impact(HideBeforeFile)'!$D$57:$P$57,0)) -> 0 | B54: =INDEX('For Bill Impact(HideBeforeFile)'!$D$6:$P$14,MATCH(A43,'For Bill Impact(HideBeforeFile)'!$C$58:$C$66,0),MATCH($H54,'For Bill Impact(HideBeforeFile)'!$D$57:$P$57,0)) -> 0 | C54: =INDEX('For Bill Impact(HideBeforeFile)'!$D$19:$P$27,MATCH(A43,'For Bill Impact(HideBeforeFile)'!$C$58:$C$66,0),MATCH($H54,'For Bill Impact(HideBeforeFile)'!$D$57:$P$57,0)) -> 0 | D54: =D45 -> 637.3224445 | E54: =INDEX('For Bill Impact(HideBeforeFile)'!$D$58:$P$66,MATCH(A43,'For Bill Impact(HideBeforeFile)'!$C$58:$C$66,0),MATCH($H54,'For Bill Impact(HideBeforeFile)'!$D$57:$P$57,0)) -> $ / month | H54: ='For Bill Impact(HideBeforeFile)'!$J$5 -> 0
A55: =INDEX('For Bill Impact(HideBeforeFile)'!$D$45:$P$53,MATCH(A43,'For Bill Impact(HideBeforeFile)'!$C$58:$C$66,0),MATCH($H55,'For Bill Impact(HideBeforeFile)'!$D$57:$P$57,0)) -> 0 | B55: =INDEX('For Bill Impact(HideBeforeFile)'!$D$6:$P$14,MATCH(A43,'For Bill Impact(HideBeforeFile)'!$C$58:$C$66,0),MATCH($H55,'For Bill Impact(HideBeforeFile)'!$D$57:$P$57,0)) -> 0 | C55: =INDEX('For Bill Impact(HideBeforeFile)'!$D$19:$P$27,MATCH(A43,'For Bill Impact(HideBeforeFile)'!$C$58:$C$66,0),MATCH($H55,'For Bill Impact(HideBeforeFile)'!$D$57:$P$57,0)) -> 0 | D55: =INDEX('For Bill Impact(HideBeforeFile)'!$D$32:$P$40,MATCH(A43,'For Bill Impact(HideBeforeFile)'!$C$58:$C$66,0),MATCH($H55,'For Bill Impact(HideBeforeFile)'!$D$57:$P$57,0)) -> 3 | E55: =INDEX('For Bill Impact(HideBeforeFile)'!$D$58:$P$66,MATCH(A43,'For Bill Impact(HideBeforeFile)'!$C$58:$C$66,0),MATCH($H55,'For Bill Impact(HideBeforeFile)'!$D$57:$P$57,0)) -> $ / month | H55: ='For Bill Impact(HideBeforeFile)'!$K$5 -> 0
A57: Annual Billings | B57: Current | C57: Proposed | D57: Variance $ | E57: Variance %
A58: Commodity | B58: =B45*$D45/100 -> 115.2087783 | C58: =C45*$D45/100 -> 115.2087783 | D58: =C58-B58 -> 0 | E58: =IFERROR(D58/B58,"") -> 0 | H58: ='For Bill Impact(HideBeforeFile)'!$D$5 -> Commodity
A60: Distribution
A61: =IF(A46<>"",A46,"") -> Monthly Service Charge | B61: =B46*$D46 -> 71.49 | C61: =C46*$D46 -> 73.44837919 | D61: =IFERROR(C61-B61,"") -> 1.958379189 | E61: =IFERROR(D61/B61,"") -> 0.02739375002 | H61: ='For Bill Impact(HideBeforeFile)'!$L$5 -> Dist. Customer Rate
A63: =IF(A47<>"",A47,"") -> Block 1 (First 1,000 m3 per month) | B63: =IFERROR(B47*$D47/100,"") -> 133.8905397 | C63: =IFERROR(C47*$D47/100,"") -> 137.5583037 | D63: =IFERROR(C63-B63,"") -> 3.667763974 | E63: =IFERROR(D63/B63,"") -> 0.02739375002 | H63: ='For Bill Impact(HideBeforeFile)'!$M$5 -> Dist. Vol. Rate Tier 1
A64: =IF(A48<>"",A48,"") -> Block 2 (Over 1,000 m3 per month) | B64: =IFERROR(B48*$D48/100,"") -> 20.3355868 | C64: =IFERROR(C48*$D48/100,"") -> 20.89265478 | D64: =IFERROR(C64-B64,"") -> 0.5570679812 | E64: =IFERROR(D64/B64,"") -> 0.02739375002 | H64: ='For Bill Impact(HideBeforeFile)'!$N$5 -> Dist. Vol. Rate Tier 2
A65: Total Distribution | B65: =SUM(B61:B64) -> 225.7161265 | C65: =SUM(C61:C64) -> 231.8993376 | D65: =SUM(D61:D64) -> 6.183211144 | E65: =IF(ISERROR(D65/B65),0,D65/B65) -> 0.02739375002
A67: Bill 32 | B67: =1*D46 -> 3 | C67: =1*D46 -> 3 | D67: =IFERROR(C67-B67,"") -> 0 | E67: =IFERROR(D67/B67,"") -> 0
A68: =IF(A49<>"",A49,"") -> Transportation | B68: =IFERROR(B49*$D49/100,"") -> 18.5848357 | C68: =IFERROR(C49*$D49/100,"") -> 18.5848357 | D68: =IFERROR(C68-B68,"") -> 0 | E68: =IFERROR(D68/B68,"") -> 0 | H68: ='For Bill Impact(HideBeforeFile)'!$E$5 -> Transportation
A70: Rate Riders
A71: =A50 -> REDA | B71: =B50*$D50 -> 0 | C71: =C50*$D50 -> 0.18 | D71: =IFERROR(C71-B71,"") -> 0.18 | E71: =IFERROR(D71/B71,"") ->  | H71: =H50 -> REDA
A72: PGTVA | B72: =IFERROR(B51*$D51/100,"") -> 4.167505092 | C72: =IFERROR(C51*$D51/100,"") -> 2.065525674 | D72: -2.101979419 | E72: -0.5043735693 | H72: PGTVA
A73: UFGVA | B73: =IFERROR(B52*$D52/100,"") -> 7.124042539 | C73: =IFERROR(C52*$D52/100,"") -> 2.721242087 | D73: -4.402800452 | E73: -0.6180199554 | H73: UFGVA
A74: 0 | B74: =B53*$D53 -> 0 | C74: =C53*$D53 -> 0 | D74: 0 | H74: 0
A75: 0 | B75: =IFERROR(B54*$D54/100,"") -> 0 | C75: =IFERROR(C54*$D54/100,"") -> 0 | D75: 0 | H75: 0
A76: 0 | B76: =B55*$D55 -> 0 | C76: =C55*$D55 -> 0 | D76: 0 | H76: 0
A77: Total Rate Riders | B77: =SUM(B71:B76) -> 11.29154763 | C77: =SUM(C71:C76) -> 4.966767761 | D77: =SUM(D71:D76) -> -6.324779871 | E77: =IF(ISERROR(D77/B77),0,D77/B77) -> -0.5601340115
A79: Total Bill | B79: =B58+B65+B67+B68+B77 -> 373.8012881 | C79: =C58+C65+C67+C68+C77 -> 373.6597194 | D79: =D58+D65+D67+D68+D77 -> -0.1415687273 | E79: =IFERROR(D79/B79,"") -> -0.0003787272323
A81: R4 - Peaking - Full Year
A82: Annual Billings | B82: Current | C82: Proposed | D82: Variance $ | E82: Variance %
A83: Commodity | B83: =B20+B58 -> 6114.910036 | C83: =C20+C58 -> 6114.910036 | D83: =D20+D58 -> 0 | E83: =IFERROR(D83/B83,"") -> 0 | H83: ='For Bill Impact(HideBeforeFile)'!$D$5 -> Commodity
A85: =A60 -> Distribution
A86: =A61 -> Monthly Service Charge | B86: =B23+B61 -> 285.96 | C86: =C23+C61 -> 293.7935168 | D86: =D23+D61 -> 7.833516755 | E86: =IFERROR(D86/B86,"") -> 0.02739375002 | H86: ='For Bill Impact(HideBeforeFile)'!$L$5 -> Dist. Customer Rate
E87: =IFERROR(D87/B87,"") -> 
A88: =A63 -> Block 1 (First 1,000 m3 per month) | B88: =B25+B63 -> 668.6255852 | C88: 686.9417473 | D88: 18.31616214 | E88: 0.02739375002 | H88: ='For Bill Impact(HideBeforeFile)'!$M$5 -> Dist. Vol. Rate Tier 1
A89: =A64 -> Block 2 (Over 1,000 m3 per month) | B89: 3320.372914 | C89: 3411.33038 | D89: 90.95746558 | E89: 0.02739375002 | H89: ='For Bill Impact(HideBeforeFile)'!$N$5 -> Dist. Vol. Rate Tier 2
A90: Total Distribution | B90: =SUM(B86:B89) -> 4274.958499 | C90: =SUM(C86:C89) -> 4392.065644 | D90: =SUM(D86:D89) -> 117.1071445 | E90: =IF(ISERROR(D90/B90),0,D90/B90) -> 0.02739375002
A92: Bill 32 | B92: =B29+B67 -> 12 | C92: 12 | D92: 0 | E92: =IFERROR(D92/B92,"") -> 0
A93: =A68 -> Transportation | B93: 986.4230836 | C93: 986.4230836 | D93: 0 | E93: =IFERROR(D93/B93,"") -> 0 | H93: ='For Bill Impact(HideBeforeFile)'!$E$5 -> Transportation
A95: Rate Riders
A96: =A71 -> REDA | B96: =B33+B71 -> 0 | C96: 0.72 | D96: 0.72 | E96: =IFERROR(D96/B96,"") -> 
A97: =A72 -> PGTVA | B97: 221.1977168 | C97: 109.6314349 | D97: -111.566282 | E97: -0.5043735693
A98: UFGVA | B98: 378.1211803 | C98: 144.4347453 | D98: -233.686435 | E98: -0.6180199554
A99: 0 | B99: 0 | C99: 0 | D99: 0
A100: 0 | B100: 0 | C100: 0 | D100: 0
A101: 0 | B101: 0 | C101: 0 | D101: 0
A102: Total Rate Riders | B102: =SUM(B96:B101) -> 599.3188971 | C102: =SUM(C96:C101) -> 254.7861802 | D102: =SUM(D96:D101) -> -344.5327169 | E102: =IF(ISERROR(D102/B102),0,D102/B102) -> -0.5748737752
A104: Total Bill | B104: =B83+B90+B92+B93+B102 -> 11987.61052 | C104: =C83+C90+C92+C93+C102 -> 11760.18494 | D104: =D83+D90+D92+D93+D102 -> -227.4255725 | E104: =IFERROR(D104/B104,"") -> -0.01897171852

Sheet G5. R5 Bill Impact
A1: ='D1a. Rate 1-Res Adjustment'!A1 -> EPCOR Natural Gas Limited Partnership
A2: ='D1a. Rate 1-Res Adjustment'!A2 -> EB-2025-0177
A3: =MID(CELL("filename",A3),FIND("]",CELL("filename",A3))+1,255) -> G5. R5 Bill Impact
A5: ='For Bill Impact(HideBeforeFile)'!C13 -> R5 - Interruptible Peaking | H5: Look-up
A6: Rates | B6: Current | C6: Proposed | D6: Bill Determinant | E6: Calculation
A7: =INDEX('For Bill Impact(HideBeforeFile)'!$D$45:$P$53,MATCH(A5,'For Bill Impact(HideBeforeFile)'!$C$58:$C$66,0),MATCH($H7,'For Bill Impact(HideBeforeFile)'!$D$57:$P$57,0)) -> Commodity | B7: =INDEX('For Bill Impact(HideBeforeFile)'!$D$6:$P$14,MATCH(A5,'For Bill Impact(HideBeforeFile)'!$C$58:$C$66,0),MATCH($H7,'For Bill Impact(HideBeforeFile)'!$D$57:$P$57,0)) -> 18.077 | C7: =INDEX('For Bill Impact(HideBeforeFile)'!$D$19:$P$27,MATCH(A5,'For Bill Impact(HideBeforeFile)'!$C$58:$C$66,0),MATCH($H7,'For Bill Impact(HideBeforeFile)'!$D$57:$P$57,0)) -> 18.077 | D7: =INDEX('For Bill Impact(HideBeforeFile)'!$D$32:$P$40,MATCH(A5,'For Bill Impact(HideBeforeFile)'!$C$58:$C$66,0),MATCH($H7,'For Bill Impact(HideBeforeFile)'!$D$57:$P$57,0)) -> 125990.575 | E7: =INDEX('For Bill Impact(HideBeforeFile)'!$D$58:$P$66,MATCH(A5,'For Bill Impact(HideBeforeFile)'!$C$58:$C$66,0),MATCH($H7,'For Bill Impact(HideBeforeFile)'!$D$57:$P$57,0)) -> cents / m3 | H7: ='For Bill Impact(HideBeforeFile)'!$D$5 -> Commodity
A8: =INDEX('For Bill Impact(HideBeforeFile)'!$D$45:$P$53,MATCH(A5,'For Bill Impact(HideBeforeFile)'!$C$58:$C$66,0),MATCH($H8,'For Bill Impact(HideBeforeFile)'!$D$57:$P$57,0)) -> Monthly Service Charge | B8: =INDEX('For Bill Impact(HideBeforeFile)'!$D$6:$P$14,MATCH(A5,'For Bill Impact(HideBeforeFile)'!$C$58:$C$66,0),MATCH($H8,'For Bill Impact(HideBeforeFile)'!$D$57:$P$57,0)) -> 196.22 | C8: =INDEX('For Bill Impact(HideBeforeFile)'!$D$19:$P$27,MATCH(A5,'For Bill Impact(HideBeforeFile)'!$C$58:$C$66,0),MATCH($H8,'For Bill Impact(HideBeforeFile)'!$D$57:$P$57,0)) -> 201.5952016 | D8: =INDEX('For Bill Impact(HideBeforeFile)'!$D$32:$P$40,MATCH(A5,'For Bill Impact(HideBeforeFile)'!$C$58:$C$66,0),MATCH($H8,'For Bill Impact(HideBeforeFile)'!$D$57:$P$57,0)) -> 12 | E8: =INDEX('For Bill Impact(HideBeforeFile)'!$D$58:$P$66,MATCH(A5,'For Bill Impact(HideBeforeFile)'!$C$58:$C$66,0),MATCH($H8,'For Bill Impact(HideBeforeFile)'!$D$57:$P$57,0)) -> $ / month | H8: ='For Bill Impact(HideBeforeFile)'!$L$5 -> Dist. Customer Rate
A9: =INDEX('For Bill Impact(HideBeforeFile)'!$D$45:$P$53,MATCH(A5,'For Bill Impact(HideBeforeFile)'!$C$58:$C$66,0),MATCH($H9,'For Bill Impact(HideBeforeFile)'!$D$57:$P$57,0)) -> Delivery - Firm | B9: =INDEX('For Bill Impact(HideBeforeFile)'!$D$6:$P$14,MATCH(A5,'For Bill Impact(HideBeforeFile)'!$C$58:$C$66,0),MATCH($H9,'For Bill Impact(HideBeforeFile)'!$D$57:$P$57,0)) -> 5.7033 | C9: =INDEX('For Bill Impact(HideBeforeFile)'!$D$19:$P$27,MATCH(A5,'For Bill Impact(HideBeforeFile)'!$C$58:$C$66,0),MATCH($H9,'For Bill Impact(HideBeforeFile)'!$D$57:$P$57,0)) -> 5.859534774 | D9: =INDEX('For Bill Impact(HideBeforeFile)'!$D$32:$P$40,MATCH(A5,'For Bill Impact(HideBeforeFile)'!$C$58:$C$66,0),MATCH($H9,'For Bill Impact(HideBeforeFile)'!$D$57:$P$57,0)) -> 125990.575 | E9: =INDEX('For Bill Impact(HideBeforeFile)'!$D$58:$P$66,MATCH(A5,'For Bill Impact(HideBeforeFile)'!$C$58:$C$66,0),MATCH($H9,'For Bill Impact(HideBeforeFile)'!$D$57:$P$57,0)) -> cents / m3 | H9: ='For Bill Impact(HideBeforeFile)'!$M$5 -> Dist. Vol. Rate Tier 1
A10: =INDEX('For Bill Impact(HideBeforeFile)'!$D$45:$P$53,MATCH(A5,'For Bill Impact(HideBeforeFile)'!$C$58:$C$66,0),MATCH($H10,'For Bill Impact(HideBeforeFile)'!$D$57:$P$57,0)) -> Transportation | B10: =INDEX('For Bill Impact(HideBeforeFile)'!$D$6:$P$14,MATCH(A5,'For Bill Impact(HideBeforeFile)'!$C$58:$C$66,0),MATCH($H10,'For Bill Impact(HideBeforeFile)'!$D$57:$P$57,0)) -> 2.916080527 | C10: =INDEX('For Bill Impact(HideBeforeFile)'!$D$19:$P$27,MATCH(A5,'For Bill Impact(HideBeforeFile)'!$C$58:$C$66,0),MATCH($H10,'For Bill Impact(HideBeforeFile)'!$D$57:$P$57,0)) -> 2.916080527 | D10: =INDEX('For Bill Impact(HideBeforeFile)'!$D$32:$P$40,MATCH(A5,'For Bill Impact(HideBeforeFile)'!$C$58:$C$66,0),MATCH($H10,'For Bill Impact(HideBeforeFile)'!$D$57:$P$57,0)) -> 125990.575 | E10: =INDEX('For Bill Impact(HideBeforeFile)'!$D$58:$P$66,MATCH(A5,'For Bill Impact(HideBeforeFile)'!$C$58:$C$66,0),MATCH($H10,'For Bill Impact(HideBeforeFile)'!$D$57:$P$57,0)) -> cents / m3 | H10: ='For Bill Impact(HideBeforeFile)'!$E$5 -> Transportation
A11: =INDEX('For Bill Impact(HideBeforeFile)'!$D$45:$P$53,MATCH(A5,'For Bill Impact(HideBeforeFile)'!$C$58:$C$66,0),MATCH($H11,'For Bill Impact(HideBeforeFile)'!$D$57:$P$57,0)) -> REDA | B11: =INDEX('For Bill Impact(HideBeforeFile)'!$D$6:$P$14,MATCH(A5,'For Bill Impact(HideBeforeFile)'!$C$58:$C$66,0),MATCH($H11,'For Bill Impact(HideBeforeFile)'!$D$57:$P$57,0)) -> 0 | C11: =INDEX('For Bill Impact(HideBeforeFile)'!$D$19:$P$27,MATCH(A5,'For Bill Impact(HideBeforeFile)'!$C$58:$C$66,0),MATCH($H11,'For Bill Impact(HideBeforeFile)'!$D$57:$P$57,0)) -> 0.06 | D11: =INDEX('For Bill Impact(HideBeforeFile)'!$D$32:$P$40,MATCH(A5,'For Bill Impact(HideBeforeFile)'!$C$58:$C$66,0),MATCH($H11,'For Bill Impact(HideBeforeFile)'!$D$57:$P$57,0)) -> 12 | E11: =INDEX('For Bill Impact(HideBeforeFile)'!$D$58:$P$66,MATCH(A5,'For Bill Impact(HideBeforeFile)'!$C$58:$C$66,0),MATCH($H11,'For Bill Impact(HideBeforeFile)'!$D$57:$P$57,0)) -> $ / month | H11: ='For Bill Impact(HideBeforeFile)'!$F$5 -> REDA
A12: =INDEX('For Bill Impact(HideBeforeFile)'!$D$45:$P$53,MATCH(A5,'For Bill Impact(HideBeforeFile)'!$C$58:$C$66,0),MATCH($H12,'For Bill Impact(HideBeforeFile)'!$D$57:$P$57,0)) -> PGTVA | B12: =INDEX('For Bill Impact(HideBeforeFile)'!$D$6:$P$14,MATCH(A5,'For Bill Impact(HideBeforeFile)'!$C$58:$C$66,0),MATCH($H12,'For Bill Impact(HideBeforeFile)'!$D$57:$P$57,0)) -> 1.037404084 | C12: =INDEX('For Bill Impact(HideBeforeFile)'!$D$19:$P$27,MATCH(A5,'For Bill Impact(HideBeforeFile)'!$C$58:$C$66,0),MATCH($H12,'For Bill Impact(HideBeforeFile)'!$D$57:$P$57,0)) -> 0.3240942935 | D12: =INDEX('For Bill Impact(HideBeforeFile)'!$D$32:$P$40,MATCH(A5,'For Bill Impact(HideBeforeFile)'!$C$58:$C$66,0),MATCH($H12,'For Bill Impact(HideBeforeFile)'!$D$57:$P$57,0)) -> 125990.575 | E12: =INDEX('For Bill Impact(HideBeforeFile)'!$D$58:$P$66,MATCH(A5,'For Bill Impact(HideBeforeFile)'!$C$58:$C$66,0),MATCH($H12,'For Bill Impact(HideBeforeFile)'!$D$57:$P$57,0)) -> cents / m3 | H12: ='For Bill Impact(HideBeforeFile)'!$G$5 -> PGTVA
A13: =INDEX('For Bill Impact(HideBeforeFile)'!$D$45:$P$53,MATCH(A5,'For Bill Impact(HideBeforeFile)'!$C$58:$C$66,0),MATCH($H13,'For Bill Impact(HideBeforeFile)'!$D$57:$P$57,0)) -> UFGVA | B13: =INDEX('For Bill Impact(HideBeforeFile)'!$D$6:$P$14,MATCH(A5,'For Bill Impact(HideBeforeFile)'!$C$58:$C$66,0),MATCH($H13,'For Bill Impact(HideBeforeFile)'!$D$57:$P$57,0)) -> 1.593380434 | C13: =INDEX('For Bill Impact(HideBeforeFile)'!$D$19:$P$27,MATCH(A5,'For Bill Impact(HideBeforeFile)'!$C$58:$C$66,0),MATCH($H13,'For Bill Impact(HideBeforeFile)'!$D$57:$P$57,0)) -> 0.4269804258 | D13: =INDEX('For Bill Impact(HideBeforeFile)'!$D$32:$P$40,MATCH(A5,'For Bill Impact(HideBeforeFile)'!$C$58:$C$66,0),MATCH($H13,'For Bill Impact(HideBeforeFile)'!$D$57:$P$57,0)) -> 125990.575 | E13: =INDEX('For Bill Impact(HideBeforeFile)'!$D$58:$P$66,MATCH(A5,'For Bill Impact(HideBeforeFile)'!$C$58:$C$66,0),MATCH($H13,'For Bill Impact(HideBeforeFile)'!$D$57:$P$57,0)) -> cents / m3 | H13: ='For Bill Impact(HideBeforeFile)'!$H$5 -> UFGVA
A14: =INDEX('For Bill Impact(HideBeforeFile)'!$D$45:$P$53,MATCH(A5,'For Bill Impact(HideBeforeFile)'!$C$58:$C$66,0),MATCH($H14,'For Bill Impact(HideBeforeFile)'!$D$57:$P$57,0)) -> 0 | B14: =INDEX('For Bill Impact(HideBeforeFile)'!$D$6:$P$14,MATCH(A5,'For Bill Impact(HideBeforeFile)'!$C$58:$C$66,0),MATCH($H14,'For Bill Impact(HideBeforeFile)'!$D$57:$P$57,0)) -> 0 | C14: =INDEX('For Bill Impact(HideBeforeFile)'!$D$19:$P$27,MATCH(A5,'For Bill Impact(HideBeforeFile)'!$C$58:$C$66,0),MATCH($H14,'For Bill Impact(HideBeforeFile)'!$D$57:$P$57,0)) -> 0 | D14: =INDEX('For Bill Impact(HideBeforeFile)'!$D$32:$P$40,MATCH(A5,'For Bill Impact(HideBeforeFile)'!$C$58:$C$66,0),MATCH($H14,'For Bill Impact(HideBeforeFile)'!$D$57:$P$57,0)) -> 12 | E14: =INDEX('For Bill Impact(HideBeforeFile)'!$D$58:$P$66,MATCH(A5,'For Bill Impact(HideBeforeFile)'!$C$58:$C$66,0),MATCH($H14,'For Bill Impact(HideBeforeFile)'!$D$57:$P$57,0)) -> $ / month | H14: ='For Bill Impact(HideBeforeFile)'!$I$5 -> 0
A15: =INDEX('For Bill Impact(HideBeforeFile)'!$D$45:$P$53,MATCH(A5,'For Bill Impact(HideBeforeFile)'!$C$58:$C$66,0),MATCH($H15,'For Bill Impact(HideBeforeFile)'!$D$57:$P$57,0)) -> 0 | B15: =INDEX('For Bill Impact(HideBeforeFile)'!$D$6:$P$14,MATCH(A5,'For Bill Impact(HideBeforeFile)'!$C$58:$C$66,0),MATCH($H15,'For Bill Impact(HideBeforeFile)'!$D$57:$P$57,0)) -> 0 | C15: =INDEX('For Bill Impact(HideBeforeFile)'!$D$19:$P$27,MATCH(A5,'For Bill Impact(HideBeforeFile)'!$C$58:$C$66,0),MATCH($H15,'For Bill Impact(HideBeforeFile)'!$D$57:$P$57,0)) -> 0 | D15: =INDEX('For Bill Impact(HideBeforeFile)'!$D$32:$P$40,MATCH(A5,'For Bill Impact(HideBeforeFile)'!$C$58:$C$66,0),MATCH($H15,'For Bill Impact(HideBeforeFile)'!$D$57:$P$57,0)) -> 12 | E15: =INDEX('For Bill Impact(HideBeforeFile)'!$D$58:$P$66,MATCH(A5,'For Bill Impact(HideBeforeFile)'!$C$58:$C$66,0),MATCH($H15,'For Bill Impact(HideBeforeFile)'!$D$57:$P$57,0)) -> $ / month | H15: ='For Bill Impact(HideBeforeFile)'!$J$5 -> 0
A16: =INDEX('For Bill Impact(HideBeforeFile)'!$D$45:$P$53,MATCH(A5,'For Bill Impact(HideBeforeFile)'!$C$58:$C$66,0),MATCH($H16,'For Bill Impact(HideBeforeFile)'!$D$57:$P$57,0)) -> 0 | B16: =INDEX('For Bill Impact(HideBeforeFile)'!$D$6:$P$14,MATCH(A5,'For Bill Impact(HideBeforeFile)'!$C$58:$C$66,0),MATCH($H16,'For Bill Impact(HideBeforeFile)'!$D$57:$P$57,0)) -> 0 | C16: =INDEX('For Bill Impact(HideBeforeFile)'!$D$19:$P$27,MATCH(A5,'For Bill Impact(HideBeforeFile)'!$C$58:$C$66,0),MATCH($H16,'For Bill Impact(HideBeforeFile)'!$D$57:$P$57,0)) -> 0 | D16: =INDEX('For Bill Impact(HideBeforeFile)'!$D$32:$P$40,MATCH(A5,'For Bill Impact(HideBeforeFile)'!$C$58:$C$66,0),MATCH($H16,'For Bill Impact(HideBeforeFile)'!$D$57:$P$57,0)) -> 12 | E16: =INDEX('For Bill Impact(HideBeforeFile)'!$D$58:$P$66,MATCH(A5,'For Bill Impact(HideBeforeFile)'!$C$58:$C$66,0),MATCH($H16,'For Bill Impact(HideBeforeFile)'!$D$57:$P$57,0)) -> $ / month | H16: ='For Bill Impact(HideBeforeFile)'!$K$5 -> 0
A18: Annual Billings | B18: Current | C18: Proposed | D18: Variance $ | E18: Variance %
A19: Commodity | B19: =B7*$D7/100 -> 22775.31624 | C19: =C7*$D7/100 -> 22775.31624 | D19: =C19-B19 -> 0 | E19: =IFERROR(D19/B19,"") -> 0 | H19: ='For Bill Impact(HideBeforeFile)'!$D$5 -> Commodity
A21: Distribution
A22: =IF(A8<>"",A8,"") -> Monthly Service Charge | B22: =B8*$D8 -> 2354.64 | C22: =C8*$D8 -> 2419.14242 | D22: =IFERROR(C22-B22,"") -> 64.50241954 | E22: =IFERROR(D22/B22,"") -> 0.02739375002 | H22: ='For Bill Impact(HideBeforeFile)'!$L$5 -> Dist. Customer Rate
A24: =IF(A9<>"",A9,"") -> Delivery - Firm | B24: =IFERROR(B9*$D9/100,"") -> 7185.620464 | C24: =IFERROR(C9*$D9/100,"") -> 7382.461555 | D24: =IFERROR(C24-B24,"") -> 196.8410907 | E24: =IFERROR(D24/B24,"") -> 0.02739375002 | H24: ='For Bill Impact(HideBeforeFile)'!$M$5 -> Dist. Vol. Rate Tier 1
A25: Total Distribution | B25: =SUM(B22:B24) -> 9540.260464 | C25: =SUM(C22:C24) -> 9801.603974 | D25: =SUM(D22:D24) -> 261.3435103 | E25: =IF(ISERROR(D25/B25),0,D25/B25) -> 0.02739375002
A27: Bill 32 | B27: 12 | C27: 12 | D27: =IFERROR(C27-B27,"") -> 0 | E27: =IFERROR(D27/B27,"") -> 0
A28: =IF(A10<>"",A10,"") -> Transportation | B28: =IFERROR(B10*$D10/100,"") -> 3673.986624 | C28: =IFERROR(C10*$D10/100,"") -> 3673.986624 | D28: =IFERROR(C28-B28,"") -> 0 | E28: =IFERROR(D28/B28,"") -> 0 | H28: ='For Bill Impact(HideBeforeFile)'!$E$5 -> Transportation
A30: Rate Riders
A31: =A11 -> REDA | B31: =B11*$D11 -> 0 | C31: =C11*$D11 -> 0.72 | D31: =IFERROR(C31-B31,"") -> 0.72 | E31: =IFERROR(D31/B31,"") ->  | H31: =H11 -> REDA
A32: PGTVA | B32: =IFERROR(B12*$D12/100,"") -> 1307.031371 | C32: =IFERROR(C12*$D12/100,"") -> 408.3282639 | D32: -898.7031071 | E32: -0.6875910763 | H32: =H12 -> PGTVA
A33: UFGVA | B33: =IFERROR(B13*$D13/100,"") -> 2007.509171 | C33: =IFERROR(C13*$D13/100,"") -> 537.9550936 | D33: -1469.554078 | E33: -0.7320285749 | H33: UFGVA
A34: 0 | B34: =B14*$D14 -> 0 | C34: =C14*$D14 -> 0 | D34: 0 | H34: 0
A35: 0 | B35: =IFERROR(B15*$D15/100,"") -> 0 | C35: =IFERROR(C15*$D15/100,"") -> 0 | D35: 0 | H35: 0
A36: 0 | B36: =B16*$D16 -> 0 | C36: =C16*$D16 -> 0 | D36: 0 | H36: 0
A37: Total Rate Riders | B37: =SUM(B31:B36) -> 3314.540542 | C37: =SUM(C31:C36) -> 947.0033575 | D37: =SUM(D31:D36) -> -2367.537185 | E37: =IF(ISERROR(D37/B37),0,D37/B37) -> -0.7142881961
A39: Total Bill | B39: =B19+B25+B27+B28+B37 -> 39316.10387 | C39: =C19+C25+C27+C28+C37 -> 37209.9102 | D39: =D19+D25+D27+D28+D37 -> -2106.193675 | E39: =IFERROR(D39/B39,"") -> -0.05357076279

Sheet G6. R6 Bill Impact
A1: ='D1a. Rate 1-Res Adjustment'!A1 -> EPCOR Natural Gas Limited Partnership
A2: ='D1a. Rate 1-Res Adjustment'!A2 -> EB-2025-0177
A3: =MID(CELL("filename",A3),FIND("]",CELL("filename",A3))+1,255) -> G6. R6 Bill Impact
A5: ='For Bill Impact(HideBeforeFile)'!C14 -> R6 - Alco Energy (IGPC) | H5: Look-up
A6: Rates | B6: Current | C6: Proposed | D6: Bill Determinant | E6: Calculation
A7: =INDEX('For Bill Impact(HideBeforeFile)'!$D$45:$P$53,MATCH(A5,'For Bill Impact(HideBeforeFile)'!$C$58:$C$66,0),MATCH($H7,'For Bill Impact(HideBeforeFile)'!$D$57:$P$57,0)) ->  | B7: =INDEX('For Bill Impact(HideBeforeFile)'!$D$6:$P$14,MATCH(A5,'For Bill Impact(HideBeforeFile)'!$C$58:$C$66,0),MATCH($H7,'For Bill Impact(HideBeforeFile)'!$D$57:$P$57,0)) ->  | C7: =INDEX('For Bill Impact(HideBeforeFile)'!$D$19:$P$27,MATCH(A5,'For Bill Impact(HideBeforeFile)'!$C$58:$C$66,0),MATCH($H7,'For Bill Impact(HideBeforeFile)'!$D$57:$P$57,0)) ->  | D7: =INDEX('For Bill Impact(HideBeforeFile)'!$D$32:$P$40,MATCH(A5,'For Bill Impact(HideBeforeFile)'!$C$58:$C$66,0),MATCH($H7,'For Bill Impact(HideBeforeFile)'!$D$57:$P$57,0)) ->  | E7: =INDEX('For Bill Impact(HideBeforeFile)'!$D$58:$P$66,MATCH(A5,'For Bill Impact(HideBeforeFile)'!$C$58:$C$66,0),MATCH($H7,'For Bill Impact(HideBeforeFile)'!$D$57:$P$57,0)) ->  | H7: ='For Bill Impact(HideBeforeFile)'!$D$5 -> Commodity
A8: =INDEX('For Bill Impact(HideBeforeFile)'!$D$45:$P$53,MATCH(A5,'For Bill Impact(HideBeforeFile)'!$C$58:$C$66,0),MATCH($H8,'For Bill Impact(HideBeforeFile)'!$D$57:$P$57,0)) -> Monthly Service Charge | B8: =INDEX('For Bill Impact(HideBeforeFile)'!$D$6:$P$14,MATCH(A5,'For Bill Impact(HideBeforeFile)'!$C$58:$C$66,0),MATCH($H8,'For Bill Impact(HideBeforeFile)'!$D$57:$P$57,0)) -> 71540.35 | C8: =INDEX('For Bill Impact(HideBeforeFile)'!$D$19:$P$27,MATCH(A5,'For Bill Impact(HideBeforeFile)'!$C$58:$C$66,0),MATCH($H8,'For Bill Impact(HideBeforeFile)'!$D$57:$P$57,0)) -> 73500.10846 | D8: =INDEX('For Bill Impact(HideBeforeFile)'!$D$32:$P$40,MATCH(A5,'For Bill Impact(HideBeforeFile)'!$C$58:$C$66,0),MATCH($H8,'For Bill Impact(HideBeforeFile)'!$D$57:$P$57,0)) -> 12 | E8: =INDEX('For Bill Impact(HideBeforeFile)'!$D$58:$P$66,MATCH(A5,'For Bill Impact(HideBeforeFile)'!$C$58:$C$66,0),MATCH($H8,'For Bill Impact(HideBeforeFile)'!$D$57:$P$57,0)) -> $ / month | H8: ='For Bill Impact(HideBeforeFile)'!$L$5 -> Dist. Customer Rate
A9: =INDEX('For Bill Impact(HideBeforeFile)'!$D$45:$P$53,MATCH(A5,'For Bill Impact(HideBeforeFile)'!$C$58:$C$66,0),MATCH($H9,'For Bill Impact(HideBeforeFile)'!$D$57:$P$57,0)) -> REDA | B9: =INDEX('For Bill Impact(HideBeforeFile)'!$D$6:$P$14,MATCH(A5,'For Bill Impact(HideBeforeFile)'!$C$58:$C$66,0),MATCH($H9,'For Bill Impact(HideBeforeFile)'!$D$57:$P$57,0)) -> 0 | C9: =INDEX('For Bill Impact(HideBeforeFile)'!$D$19:$P$27,MATCH(A5,'For Bill Impact(HideBeforeFile)'!$C$58:$C$66,0),MATCH($H9,'For Bill Impact(HideBeforeFile)'!$D$57:$P$57,0)) -> 0 | D9: =INDEX('For Bill Impact(HideBeforeFile)'!$D$32:$P$40,MATCH(A5,'For Bill Impact(HideBeforeFile)'!$C$58:$C$66,0),MATCH($H9,'For Bill Impact(HideBeforeFile)'!$D$57:$P$57,0)) -> 12 | E9: =INDEX('For Bill Impact(HideBeforeFile)'!$D$58:$P$66,MATCH(A5,'For Bill Impact(HideBeforeFile)'!$C$58:$C$66,0),MATCH($H9,'For Bill Impact(HideBeforeFile)'!$D$57:$P$57,0)) -> $ / month | H9: ='For Bill Impact(HideBeforeFile)'!$F$5 -> REDA
A10: =INDEX('For Bill Impact(HideBeforeFile)'!$D$45:$P$53,MATCH(A5,'For Bill Impact(HideBeforeFile)'!$C$58:$C$66,0),MATCH($H10,'For Bill Impact(HideBeforeFile)'!$D$57:$P$57,0)) -> PGTVA | B10: =INDEX('For Bill Impact(HideBeforeFile)'!$D$6:$P$14,MATCH(A5,'For Bill Impact(HideBeforeFile)'!$C$58:$C$66,0),MATCH($H10,'For Bill Impact(HideBeforeFile)'!$D$57:$P$57,0)) -> 0 | C10: =INDEX('For Bill Impact(HideBeforeFile)'!$D$19:$P$27,MATCH(A5,'For Bill Impact(HideBeforeFile)'!$C$58:$C$66,0),MATCH($H10,'For Bill Impact(HideBeforeFile)'!$D$57:$P$57,0)) -> 0 | D10: =INDEX('For Bill Impact(HideBeforeFile)'!$D$32:$P$40,MATCH(A5,'For Bill Impact(HideBeforeFile)'!$C$58:$C$66,0),MATCH($H10,'For Bill Impact(HideBeforeFile)'!$D$57:$P$57,0)) -> 0 | E10: =INDEX('For Bill Impact(HideBeforeFile)'!$D$58:$P$66,MATCH(A5,'For Bill Impact(HideBeforeFile)'!$C$58:$C$66,0),MATCH($H10,'For Bill Impact(HideBeforeFile)'!$D$57:$P$57,0)) -> $ / month | H10: ='For Bill Impact(HideBeforeFile)'!$G$5 -> PGTVA
A11: =INDEX('For Bill Impact(HideBeforeFile)'!$D$45:$P$53,MATCH(A5,'For Bill Impact(HideBeforeFile)'!$C$58:$C$66,0),MATCH($H11,'For Bill Impact(HideBeforeFile)'!$D$57:$P$57,0)) -> UFGVA | B11: =INDEX('For Bill Impact(HideBeforeFile)'!$D$6:$P$14,MATCH(A5,'For Bill Impact(HideBeforeFile)'!$C$58:$C$66,0),MATCH($H11,'For Bill Impact(HideBeforeFile)'!$D$57:$P$57,0)) -> 0 | C11: =INDEX('For Bill Impact(HideBeforeFile)'!$D$19:$P$27,MATCH(A5,'For Bill Impact(HideBeforeFile)'!$C$58:$C$66,0),MATCH($H11,'For Bill Impact(HideBeforeFile)'!$D$57:$P$57,0)) -> 0 | D11: =INDEX('For Bill Impact(HideBeforeFile)'!$D$32:$P$40,MATCH(A5,'For Bill Impact(HideBeforeFile)'!$C$58:$C$66,0),MATCH($H11,'For Bill Impact(HideBeforeFile)'!$D$57:$P$57,0)) -> 0 | E11: =INDEX('For Bill Impact(HideBeforeFile)'!$D$58:$P$66,MATCH(A5,'For Bill Impact(HideBeforeFile)'!$C$58:$C$66,0),MATCH($H11,'For Bill Impact(HideBeforeFile)'!$D$57:$P$57,0)) -> $ / month | H11: ='For Bill Impact(HideBeforeFile)'!$H$5 -> UFGVA
A12: =INDEX('For Bill Impact(HideBeforeFile)'!$D$45:$P$53,MATCH(A5,'For Bill Impact(HideBeforeFile)'!$C$58:$C$66,0),MATCH($H12,'For Bill Impact(HideBeforeFile)'!$D$57:$P$57,0)) -> 0 | B12: =INDEX('For Bill Impact(HideBeforeFile)'!$D$6:$P$14,MATCH(A5,'For Bill Impact(HideBeforeFile)'!$C$58:$C$66,0),MATCH($H12,'For Bill Impact(HideBeforeFile)'!$D$57:$P$57,0)) -> 0 | C12: =INDEX('For Bill Impact(HideBeforeFile)'!$D$19:$P$27,MATCH(A5,'For Bill Impact(HideBeforeFile)'!$C$58:$C$66,0),MATCH($H12,'For Bill Impact(HideBeforeFile)'!$D$57:$P$57,0)) -> 0 | D12: =INDEX('For Bill Impact(HideBeforeFile)'!$D$32:$P$40,MATCH(A5,'For Bill Impact(HideBeforeFile)'!$C$58:$C$66,0),MATCH($H12,'For Bill Impact(HideBeforeFile)'!$D$57:$P$57,0)) -> 12 | E12: =INDEX('For Bill Impact(HideBeforeFile)'!$D$58:$P$66,MATCH(A5,'For Bill Impact(HideBeforeFile)'!$C$58:$C$66,0),MATCH($H12,'For Bill Impact(HideBeforeFile)'!$D$57:$P$57,0)) -> $ / month | H12: ='For Bill Impact(HideBeforeFile)'!$I$5 -> 0
A13: =INDEX('For Bill Impact(HideBeforeFile)'!$D$45:$P$53,MATCH(A5,'For Bill Impact(HideBeforeFile)'!$C$58:$C$66,0),MATCH($H13,'For Bill Impact(HideBeforeFile)'!$D$57:$P$57,0)) -> 0 | B13: =INDEX('For Bill Impact(HideBeforeFile)'!$D$6:$P$14,MATCH(A5,'For Bill Impact(HideBeforeFile)'!$C$58:$C$66,0),MATCH($H13,'For Bill Impact(HideBeforeFile)'!$D$57:$P$57,0)) -> 0 | C13: =INDEX('For Bill Impact(HideBeforeFile)'!$D$19:$P$27,MATCH(A5,'For Bill Impact(HideBeforeFile)'!$C$58:$C$66,0),MATCH($H13,'For Bill Impact(HideBeforeFile)'!$D$57:$P$57,0)) -> 0 | D13: =INDEX('For Bill Impact(HideBeforeFile)'!$D$32:$P$40,MATCH(A5,'For Bill Impact(HideBeforeFile)'!$C$58:$C$66,0),MATCH($H13,'For Bill Impact(HideBeforeFile)'!$D$57:$P$57,0)) -> 12 | E13: =INDEX('For Bill Impact(HideBeforeFile)'!$D$58:$P$66,MATCH(A5,'For Bill Impact(HideBeforeFile)'!$C$58:$C$66,0),MATCH($H13,'For Bill Impact(HideBeforeFile)'!$D$57:$P$57,0)) -> $ / month | H13: ='For Bill Impact(HideBeforeFile)'!$J$5 -> 0
A14: =INDEX('For Bill Impact(HideBeforeFile)'!$D$45:$P$53,MATCH(A5,'For Bill Impact(HideBeforeFile)'!$C$58:$C$66,0),MATCH($H14,'For Bill Impact(HideBeforeFile)'!$D$57:$P$57,0)) -> 0 | B14: =INDEX('For Bill Impact(HideBeforeFile)'!$D$6:$P$14,MATCH(A5,'For Bill Impact(HideBeforeFile)'!$C$58:$C$66,0),MATCH($H14,'For Bill Impact(HideBeforeFile)'!$D$57:$P$57,0)) -> 0 | C14: =INDEX('For Bill Impact(HideBeforeFile)'!$D$19:$P$27,MATCH(A5,'For Bill Impact(HideBeforeFile)'!$C$58:$C$66,0),MATCH($H14,'For Bill Impact(HideBeforeFile)'!$D$57:$P$57,0)) -> 0 | D14: =INDEX('For Bill Impact(HideBeforeFile)'!$D$32:$P$40,MATCH(A5,'For Bill Impact(HideBeforeFile)'!$C$58:$C$66,0),MATCH($H14,'For Bill Impact(HideBeforeFile)'!$D$57:$P$57,0)) -> 12 | E14: =INDEX('For Bill Impact(HideBeforeFile)'!$D$58:$P$66,MATCH(A5,'For Bill Impact(HideBeforeFile)'!$C$58:$C$66,0),MATCH($H14,'For Bill Impact(HideBeforeFile)'!$D$57:$P$57,0)) -> $ / month | H14: ='For Bill Impact(HideBeforeFile)'!$K$5 -> 0
A16: Annual Billings | B16: Current | C16: Proposed | D16: Variance $ | E16: Variance %
A17: Distribution
A18: =IF(A8<>"",A8,"") -> Monthly Service Charge | B18: =B8*$D8 -> 858484.2 | C18: =C8*$D8 -> 882001.3016 | D18: =IFERROR(C18-B18,"") -> 23517.10157 | E18: =IFERROR(D18/B18,"") -> 0.02739375002 | H18: ='For Bill Impact(HideBeforeFile)'!$L$5 -> Dist. Customer Rate
A20: Total Distribution | B20: =SUM(B18:B19) -> 858484.2 | C20: =SUM(C18:C19) -> 882001.3016 | D20: =SUM(D18:D19) -> 23517.10157 | E20: =IF(ISERROR(D20/B20),0,D20/B20) -> 0.02739375002
A22: Bill 32 | B22: 12 | C22: 12 | D22: =IFERROR(C22-B22,"") -> 0 | E22: =IFERROR(D22/B22,"") -> 0
A24: Rate Riders
A25: =A9 -> REDA | B25: =B9*$D9 -> 0 | C25: =C9*$D9 -> 0 | D25: =IFERROR(C25-B25,"") -> 0 | E25: =IFERROR(D25/B25,"") ->  | H25: =H9 -> REDA
A26: PGTVA | B26: =IFERROR(B10*$D10/100,"") -> 0 | C26: =IFERROR(C10*$D10/100,"") -> 0 | D26: 0 | H26: =H10 -> PGTVA
A27: UFGVA | B27: =IFERROR(B11*$D11/100,"") -> 0 | C27: =IFERROR(C11*$D11/100,"") -> 0 | D27: 0 | H27: UFGVA
A28: 0 | B28: =B12*$D12 -> 0 | C28: =C12*$D12 -> 0 | D28: 0 | H28: 0
A29: 0 | B29: =IFERROR(B13*$D13/100,"") -> 0 | C29: =IFERROR(C13*$D13/100,"") -> 0 | D29: 0 | H29: 0
A30: 0 | B30: =B14*$D14 -> 0 | C30: =C14*$D14 -> 0 | D30: 0 | H30: 0
A31: Total Rate Riders | B31: =SUM(B25:B30) -> 0 | C31: =SUM(C25:C30) -> 0 | D31: =SUM(D25:D30) -> 0 | E31: =IF(ISERROR(D31/B31),0,D31/B31) -> 0
A33: Total Bill | B33: =+B20+B22+B31 -> 858496.2 | C33: =+C20+C22+C31 -> 882013.3016 | D33: 23517.10157 | E33: =IFERROR(D33/B33,"") -> 0.02739336711

Sheet H1. Distribution Revenue
A1: ='D1a. Rate 1-Res Adjustment'!A1 -> EPCOR Natural Gas Limited Partnership
A2: ='D1a. Rate 1-Res Adjustment'!A2 -> EB-2025-0177
A3: =MID(CELL("filename",A3),FIND("]",CELL("filename",A3))+1,255) -> H1. Distribution Revenue
A5: Total Distribution Revenue
A6: Rate Class | B6: Current Rates | C6: Proposed Rates | D6: Variance ($) | E6: Variance (%)
A7: ='E2. Revenue From Proposed Rates'!A6 -> R1 - Residential | B7: ='B3. Revenue From Current Rates'!I6 -> 4596763.837 | C7: ='E2. Revenue From Proposed Rates'!I6 -> 4722680.682 | D7: =C7-B7 -> 125916.845 | E7: =D7/B7 -> 0.02739249817
A8: ='E2. Revenue From Proposed Rates'!A7 -> R1 - General Service | B8: ='B3. Revenue From Current Rates'!I7 -> 1293300.803 | C8: ='E2. Revenue From Proposed Rates'!I7 -> 1328729.162 | D8: 35428.3589 | E8: 0.02739375002
A9: R2 - Seasonal | B9: ='B3. Revenue From Current Rates'!I8+'B3. Revenue From Current Rates'!I9 -> 126272.8743 | C9: ='E2. Revenue From Proposed Rates'!I8+'E2. Revenue From Proposed Rates'!I9 -> 129731.9619 | D9: 3459.087553 | E9: 0.02739375002
A10: ='E2. Revenue From Proposed Rates'!A10 -> R3 - Large Volume Contract | B10: ='B3. Revenue From Current Rates'!I10 -> 262132.6192 | C10: ='E2. Revenue From Proposed Rates'!I10 -> 269313.4147 | D10: 7180.795442 | E10: 0.02739375002
A11: R4 - Peaking | B11: ='B3. Revenue From Current Rates'!I11+'B3. Revenue From Current Rates'!I12 -> 188098.174 | C11: ='E2. Revenue From Proposed Rates'!I11+'E2. Revenue From Proposed Rates'!I12 -> 193250.8883 | D11: 5152.714357 | E11: 0.02739375002
A12: ='E2. Revenue From Proposed Rates'!A13 -> R5 - Interruptible Peaking | B12: ='B3. Revenue From Current Rates'!I13 -> 38161.04186 | C12: ='E2. Revenue From Proposed Rates'!I13 -> 39206.4159 | D12: 1045.374041 | E12: 0.02739375002
A13: ='E2. Revenue From Proposed Rates'!A14 -> R6 - Alco Energy (IGPC) | B13: ='B3. Revenue From Current Rates'!I14 -> 858484.2 | C13: ='E2. Revenue From Proposed Rates'!I14 -> 882001.3016 | D13: 23517.10157 | E13: 0.02739375002
A14: Total Revenue | B14: =SUM(B7:B13) -> 7363213.549 | C14: =SUM(C7:C13) -> 7564913.826 | D14: =SUM(D7:D13) -> 201700.2769 | E14: 0.02739296851
A16: % of Fixed Distribution Revenue
A17: Rate Class | B17: Current Rates | C17: Proposed Rates | D17: Variance
A18: =A7 -> R1 - Residential | B18: ='B3. Revenue From Current Rates'!B6/B7 -> 0.5920634813 | C18: ='E2. Revenue From Proposed Rates'!B6/C7 -> 0.6808738331 | D18: =C18-B18 -> 0.08881035182
A19: =A8 -> R1 - General Service | B19: ='B3. Revenue From Current Rates'!B7/B8 -> 0.1630989477 | C19: ='E2. Revenue From Proposed Rates'!B7/C8 -> 0.1875637898 | D19: =C19-B19 -> 0.02446484215
A20: R2 - Seasonal | B20: =('B3. Revenue From Current Rates'!B8+'B3. Revenue From Current Rates'!B9)/B9 -> 0.1137992627 | C20: =('E2. Revenue From Proposed Rates'!B8+'E2. Revenue From Proposed Rates'!B9)/C9 -> 0.1137992627 | D20: 0
A21: R3 - Large Volume Contract | B21: ='B3. Revenue From Current Rates'!B10/B10 -> 0.05348742954 | C21: ='E2. Revenue From Proposed Rates'!B10/C10 -> 0.05348742954 | D21: 0
A22: R4 - Peaking | B22: =('B3. Revenue From Current Rates'!B11+'B3. Revenue From Current Rates'!B12)/B11 -> 0.06689187744 | C22: =('E2. Revenue From Proposed Rates'!B11+'E2. Revenue From Proposed Rates'!B12)/C11 -> 0.06689187744 | D22: 0
A23: R5 - Interruptible Peaking | B23: ='B3. Revenue From Current Rates'!B13/B12 -> 0.2468108716 | C23: ='E2. Revenue From Proposed Rates'!B13/C12 -> 0.2468108716 | D23: 0
A24: R6 - Alco Energy (IGPC) | B24: ='B3. Revenue From Current Rates'!B14/B13 -> 1 | C24: ='E2. Revenue From Proposed Rates'!B14/C13 -> 1 | D24: 0
A25: Total Revenue | B25: ='B3. Revenue From Current Rates'!B15/B14 -> 0.5216998712 | C25: ='E2. Revenue From Proposed Rates'!B15/C14 -> 0.5814400992 | D25: 0.05974022805

Sheet H2. Bill Impacts Summary
A1: ='D1a. Rate 1-Res Adjustment'!A1 -> EPCOR Natural Gas Limited Partnership
A2: ='D1a. Rate 1-Res Adjustment'!A2 -> EB-2025-0177
A3: =MID(CELL("filename",A3),FIND("]",CELL("filename",A3))+1,255) -> H2. Bill Impacts Summary
A5: Rate Class | B5: Change in Commodity | D5: Change in Distribution | F5: Change in Transportation | H5: Change in Rate Riders | J5: Total Change | M5: CHECK
B6: $ | C6: % | D6: $ | E6: % | F6: $ | G6: % | H6: $ | I6: % | J6: $ | K6: %
A7: ='E2. Revenue From Proposed Rates'!A6 -> R1 - Residential | B7: ='G1. R1-R Bill Impact'!D20 -> 0 | C7: ='G1. R1-R Bill Impact'!E20 -> 0 | D7: ='G1. R1-R Bill Impact'!D27 -> 13.32465136 | E7: ='G1. R1-R Bill Impact'!E27 -> 0.02739249817 | F7: ='G1. R1-R Bill Impact'!D30 -> 0 | G7: ='G1. R1-R Bill Impact'!E30 -> 0 | H7: ='G1. R1-R Bill Impact'!D39 -> -20.96065022 | I7: ='G1. R1-R Bill Impact'!E39 -> -0.5935728736 | J7: ='G1. R1-R Bill Impact'!D41 -> -7.635998852 | K7: ='G1. R1-R Bill Impact'!E41 -> -0.008347432682 | M7: =J7-H7-D7-F7-B7 -> 0
A8: ='G1. R1-R Bill Impact'!A43 -> R1 - Residential - Bottom 10 Percentile | B8: ='G1. R1-R Bill Impact'!D20 -> 0 | C8: ='G1. R1-R Bill Impact'!E20 -> 0 | D8: ='G1. R1-R Bill Impact'!D66 -> 39.21607159 | E8: ='G1. R1-R Bill Impact'!E66 -> 0.1106167851 | F8: ='G1. R1-R Bill Impact'!D69 -> 0 | G8: ='G1. R1-R Bill Impact'!E69 -> 0 | H8: ='G1. R1-R Bill Impact'!D78 -> -6.548086309 | I8: ='G1. R1-R Bill Impact'!E78 -> -0.5531410843 | J8: ='G1. R1-R Bill Impact'!D80 -> 32.66798528 | K8: ='G1. R1-R Bill Impact'!E80 -> 0.06454945002 | M8: =J8-H8-D8-F8-B8 -> 0
A9: ='G1. R1-GS Bill Impact'!A5 -> R1 - General Service | B9: ='G1. R1-GS Bill Impact'!D20 -> 0 | C9: ='G1. R1-GS Bill Impact'!E20 -> 0 | D9: ='G1. R1-GS Bill Impact'!D27 -> 47.36411618 | E9: ='G1. R1-GS Bill Impact'!E27 -> 0.02739375002 | F9: ='G1. R1-GS Bill Impact'!D30 -> 0 | G9: ='G1. R1-GS Bill Impact'!E30 -> 0 | H9: ='G1. R1-GS Bill Impact'!D39 -> -163.0815175 | I9: ='G1. R1-GS Bill Impact'!E39 -> -0.6112634393 | J9: ='G1. R1-GS Bill Impact'!D41 -> -115.7174014 | K9: ='G1. R1-GS Bill Impact'!E41 -> -0.02368092014 | M9: =J9-H9-D9-F9-B9 -> 0
A10: ='G1. R1-GS Bill Impact'!A43 -> R1 - General Service - Bottom 10 Percentile | B10: ='G1. R1-GS Bill Impact'!D59 -> 0 | C10: ='G1. R1-GS Bill Impact'!E59 -> 0 | D10: ='G1. R1-GS Bill Impact'!D66 -> 50.67642245 | E10: ='G1. R1-GS Bill Impact'!E66 -> 0.1068654549 | F10: ='G1. R1-GS Bill Impact'!D69 -> 0 | G10: ='G1. R1-GS Bill Impact'!E69 -> 0 | H10: ='G1. R1-GS Bill Impact'!D78 -> -18.32071135 | I10: ='G1. R1-GS Bill Impact'!E78 -> -0.5907459603 | J10: ='G1. R1-GS Bill Impact'!D80 -> 32.35571109 | K10: ='G1. R1-GS Bill Impact'!E80 -> 0.03798286253 | M10: =J10-H10-D10-F10-B10 -> 0
A11: ='G2. R2 Bill Impact'!A85 -> R2 - Seasonal - Full Year | B11: ='G2. R2 Bill Impact'!D87 -> 0 | C11: ='G2. R2 Bill Impact'!E87 -> 0 | D11: ='G2. R2 Bill Impact'!D95 -> 67.82524614 | E11: ='G2. R2 Bill Impact'!E95 -> 0.02739375002 | F11: ='G2. R2 Bill Impact'!D98 -> 0 | G11: ='G2. R2 Bill Impact'!E98 -> 0 | H11: ='G2. R2 Bill Impact'!D107 -> -304.5167938 | I11: ='G2. R2 Bill Impact'!E107 -> -0.6528538424 | J11: ='G2. R2 Bill Impact'!D109 -> -236.6915477 | K11: ='G2. R2 Bill Impact'!E109 -> -0.0317276257 | M11: =J11-H11-D11-F11-B11 -> 0
A12: ='G3. R3 Bill Impact'!A5 -> R3 - Large Volume Contract | B12: ='G3. R3 Bill Impact'!D21 -> 0 | C12: ='G3. R3 Bill Impact'!E21 -> 0 | D12: ='G3. R3 Bill Impact'!D29 -> 1436.159088 | E12: ='G3. R3 Bill Impact'!E29 -> 0.02739375002 | F12: ='G3. R3 Bill Impact'!D32 -> 0 | G12: ='G3. R3 Bill Impact'!E32 -> 0 | H12: ='G3. R3 Bill Impact'!D41 -> -58.20130012 | I12: ='G3. R3 Bill Impact'!E41 -> -0.01329480292 | J12: ='G3. R3 Bill Impact'!D43 -> 1377.957788 | K12: ='G3. R3 Bill Impact'!E43 -> 0.00776180427 | M12: =J12-H12-D12-F12-B12 -> 0
A13: ='G4. R4 Bill Impact'!A81 -> R4 - Peaking - Full Year | B13: ='G4. R4 Bill Impact'!D83 -> 0 | C13: ='G4. R4 Bill Impact'!E83 -> 0 | D13: ='G4. R4 Bill Impact'!D90 -> 117.1071445 | E13: ='G4. R4 Bill Impact'!E90 -> 0.02739375002 | F13: ='G4. R4 Bill Impact'!D93 -> 0 | G13: ='G4. R4 Bill Impact'!E93 -> 0 | H13: ='G4. R4 Bill Impact'!D102 -> -344.5327169 | I13: ='G4. R4 Bill Impact'!E102 -> -0.5748737752 | J13: ='G4. R4 Bill Impact'!D104 -> -227.4255725 | K13: ='G4. R4 Bill Impact'!E104 -> -0.01897171852 | M13: -1.421085472e-14
A14: ='G5. R5 Bill Impact'!A5 -> R5 - Interruptible Peaking | B14: ='G5. R5 Bill Impact'!D19 -> 0 | C14: ='G5. R5 Bill Impact'!E19 -> 0 | D14: ='G5. R5 Bill Impact'!D25 -> 261.3435103 | E14: ='G5. R5 Bill Impact'!E25 -> 0.02739375002 | F14: ='G5. R5 Bill Impact'!D28 -> 0 | G14: ='G5. R5 Bill Impact'!E28 -> 0 | H14: ='G5. R5 Bill Impact'!D37 -> -2367.537185 | I14: ='G5. R5 Bill Impact'!E37 -> -0.7142881961 | J14: ='G5. R5 Bill Impact'!D39 -> -2106.193675 | K14: ='G5. R5 Bill Impact'!E39 -> -0.05357076279 | M14: 0
A15: ='G6. R6 Bill Impact'!A5 -> R6 - Alco Energy (IGPC) | B15: 0 | C15: 0 | D15: ='G6. R6 Bill Impact'!D20 -> 23517.10157 | E15: ='G6. R6 Bill Impact'!E20 -> 0.02739375002 | F15: 0 | G15: 0 | H15: ='G6. R6 Bill Impact'!D31 -> 0 | I15: ='G6. R6 Bill Impact'!E31 -> 0 | J15: ='G6. R6 Bill Impact'!D33 -> 23517.10157 | K15: ='G6. R6 Bill Impact'!E33 -> 0.02739336711 | M15: 0
